Ref No,Fund Type,Dept,Cost Centre Description    ,Description    ,Creditor Name    ,GL Code Net Amount,Payment date        
2,Revenue,CAHD,Bed Purchasing - South,Permanent Residential,.,1589.20, 27-Sep-2016
3,Revenue,CAHD,Bed Purchasing - North,Permanent Nursing,.,2729.20, 27-Sep-2016
4,Revenue,CAHD,Bed Purchasing - North,Permanent Nursing,.,11782.28, 27-Sep-2016
5,Revenue,CAHD,Bed Purchasing - North,Permanent Nursing,.,2753.20, 27-Sep-2016
6,Revenue,CAHD,South Glos Users in South Glos Homes,Permanent Nursing,.,625.00, 27-Sep-2016
7,Revenue,CAHD,Section 117 Placements MH Younger,Permanent Nursing,.,3920.00, 27-Sep-2016
8,Revenue,CAHD,Bed Purchasing - South,Permanent Nursing,.,2729.20, 27-Sep-2016
9,Revenue,CAHD,South Glos Users in South Glos Homes,Permanent Nursing,.,625.00, 27-Sep-2016
10,Revenue,CAHD,Bed Purchasing - North,Permanent Nursing,.,8218.81, 27-Sep-2016
11,Revenue,CAHD,Bed Purchasing - North,Permanent Nursing,.,1155.44, 27-Sep-2016
12,Revenue,CAHD,South Glos Users in South Glos Homes,Permanent Nursing,.,1049.11, 27-Sep-2016
13,Revenue,CAHD,South Glos Users in South Glos Homes,Permanent Nursing,.,625.00, 27-Sep-2016
14,Revenue,CAHD,Bed Purchasing - North,Permanent Nursing,.,3352.00, 27-Sep-2016
15,Revenue,CAHD,South Glos Users in South Glos Homes,Permanent Nursing,.,1205.36, 27-Sep-2016
16,Revenue,CAHD,South Glos Users in South Glos Homes,Permanent Nursing,.,625.00, 27-Sep-2016
17,Revenue,CAHD,South Glos Users in South Glos Homes,Permanent Nursing,.,647.32, 27-Sep-2016
18,Revenue,CAHD,South Glos Users in South Glos Homes,Permanent Nursing,.,625.00, 27-Sep-2016
19,Revenue,CAHD,Bed Purchasing - North,Permanent Nursing,.,2718.60, 27-Sep-2016
20,Revenue,CAHD,South Glos Users in South Glos Homes,Permanent Nursing,.,625.00, 27-Sep-2016
21,Revenue,CAHD,Bed Purchasing - North,Permanent Nursing,.,5299.24, 27-Sep-2016
22,Revenue,CAHD,Bed Purchasing - North,Permanent Nursing,.,2432.44, 27-Sep-2016
23,Revenue,CAHD,South Glos Users in South Glos Homes,Permanent Nursing,.,1361.61, 27-Sep-2016
24,Revenue,CAHD,South Glos Users in South Glos Homes,Permanent Nursing,.,625.00, 27-Sep-2016
25,Revenue,CAHD,Bed Purchasing - North,Permanent Nursing,.,2644.88, 27-Sep-2016
26,Revenue,CAHD,South Glos Users in South Glos Homes,Permanent Nursing,.,1227.68, 27-Sep-2016
27,Revenue,CAHD,South Glos Users in South Glos Homes,Permanent Nursing,.,625.00, 27-Sep-2016
28,Revenue,CAHD,18-25 Year Olds,Permanent Residential,1 St Georges House,13663.04, 27-Sep-2016
29,Revenue,CAHD,Supporting People Programme,Grants to Voluntary Bodies,1625 Independent People,17102.16, 01-Sep-2016
30,Revenue,CAHD,Supporting People Programme,Grants to Voluntary Bodies,1625 Independent People,17102.16, 30-Sep-2016
31,Revenue,CAHD,Home Care - Elderly - North,Supported Living,2430 The Quadrant,5041.76, 27-Sep-2016
32,Revenue,CAHD,Home Care - Elderly - North,Supported Living,2430 The Quadrant,5041.76, 27-Sep-2016
33,Revenue,CAHD,Home Care - Elderly - South,Day Care / Social Activities,3 Trees Community Support Ltd,91.60, 02-Sep-2016
34,Revenue,CAHD,Home Care - Elderly - North,Day Care / Social Activities,3 Trees Community Support Ltd,1685.44, 02-Sep-2016
35,Revenue,CAHD,Home Care - Elderly - North,Other Small Contracts,3 Trees Community Support Ltd,696.16, 02-Sep-2016
36,Revenue,CAHD,Home Care - Elderly - North,Supported Living,3 Trees Community Support Ltd,9167.40, 02-Sep-2016
37,Revenue,CAHD,Home Care - Elderly - South,Day Care / Social Activities,3 Trees Community Support Ltd,96.18, 07-Sep-2016
38,Revenue,CAHD,Home Care - Elderly - North,Day Care / Social Activities,3 Trees Community Support Ltd,1566.36, 07-Sep-2016
39,Revenue,CAHD,Home Care - Elderly - North,Other Small Contracts,3 Trees Community Support Ltd,696.16, 07-Sep-2016
40,Revenue,CAHD,Home Care - Elderly - North,Supported Living,3 Trees Community Support Ltd,9886.79, 07-Sep-2016
41,Revenue,CAHD,Home Care - Elderly - South,Day Care / Social Activities,3 Trees Community Support Ltd,91.60, 07-Sep-2016
42,Revenue,CAHD,Home Care - Elderly - North,Day Care / Social Activities,3 Trees Community Support Ltd,1346.52, 07-Sep-2016
43,Revenue,CAHD,Home Care - Elderly - North,Other Small Contracts,3 Trees Community Support Ltd,700.74, 07-Sep-2016
44,Revenue,CAHD,Home Care - Elderly - North,Supported Living,3 Trees Community Support Ltd,9451.72, 07-Sep-2016
45,Revenue,CAHD,Home Care - Elderly - South,Day Care / Social Activities,3 Trees Community Support Ltd,91.60, 16-Sep-2016
46,Revenue,CAHD,Home Care - Elderly - North,Day Care / Social Activities,3 Trees Community Support Ltd,1548.04, 16-Sep-2016
47,Revenue,CAHD,Home Care - Elderly - North,Other Small Contracts,3 Trees Community Support Ltd,691.58, 16-Sep-2016
48,Revenue,CAHD,Home Care - Elderly - North,Supported Living,3 Trees Community Support Ltd,8141.80, 16-Sep-2016
49,Revenue,CAHD,Home Care - Elderly - South,Day Care / Social Activities,3 Trees Community Support Ltd,91.60, 29-Sep-2016
50,Revenue,CAHD,Home Care - Elderly - North,Day Care / Social Activities,3 Trees Community Support Ltd,1676.28, 29-Sep-2016
51,Revenue,CAHD,Home Care - Elderly - North,Other Small Contracts,3 Trees Community Support Ltd,696.16, 29-Sep-2016
52,Revenue,CAHD,Home Care - Elderly - North,Supported Living,3 Trees Community Support Ltd,7601.06, 29-Sep-2016
53,Revenue,CAHD,Home Care - Elderly - South,Day Care / Social Activities,3 Trees Community Support Ltd,91.60, 29-Sep-2016
54,Revenue,CAHD,Home Care - Elderly - North,Day Care / Social Activities,3 Trees Community Support Ltd,1671.70, 29-Sep-2016
55,Revenue,CAHD,Home Care - Elderly - North,Other Small Contracts,3 Trees Community Support Ltd,691.58, 29-Sep-2016
56,Revenue,CAHD,Home Care - Elderly - North,Supported Living,3 Trees Community Support Ltd,7792.80, 29-Sep-2016
57,Revenue,CAHD,Bed Purchasing - South,Permanent Residential,5Th Floor Harlech Court,16462.84, 27-Sep-2016
58,Revenue,CAHD,18-25 Year Olds,Permanent Residential,5Th Floor Harlech Court,14031.44, 27-Sep-2016
59,Revenue,CAHD,18-25 Year Olds,Permanent Residential,5Th Floor Harlech Court,14309.60, 27-Sep-2016
60,Revenue,CAHD,18-25 Year Olds,Permanent Residential,5Th Floor Harlech Court,12561.64, 27-Sep-2016
61,Revenue,CAHD,Bed Purchasing - North,Permanent Residential,5Th Floor Harlech Court,15666.92, 27-Sep-2016
62,Revenue,CAHD,Bed Purchasing - North,Permanent Residential,5Th Floor Harlech Court,19367.24, 27-Sep-2016
63,Revenue,CAHD,Bed Purchasing - North,Permanent Residential,5Th Floor Harlech Court,13923.28, 27-Sep-2016
64,Revenue,CAHD,Jointly Funded H&SC Packages,Permanent Residential,5Th Floor Harlech Court,3078.96, 27-Sep-2016
65,Revenue,CAHD,18-25 Year Olds,Permanent Residential,5Th Floor Harlech Court,16146.32, 27-Sep-2016
66,Revenue,CAHD,Bed Purchasing - South,Permanent Residential,5Th Floor Harlech Court,9535.64, 27-Sep-2016
67,Revenue,CAHD,Bed purchasing - S28A Under 65 - South,Permanent Residential,5Th Floor Harlech Court,9950.84, 27-Sep-2016
68,Revenue,CAHD,Bed Purchasing - South,Permanent Residential,5Th Floor Harlech Court,10497.68, 27-Sep-2016
69,Revenue,CAHD,Bed Purchasing - North,Permanent Nursing,ABI Development Limited,7147.00, 27-Sep-2016
70,Revenue,CAHD,Home Care - Elderly - South,Day Care / Social Activities,About Me Care and Support Limited,1341.68, 22-Sep-2016
71,Revenue,CAHD,Home Care - Elderly - South,Day Care / Social Activities,About Me Care and Support Limited,822.32, 22-Sep-2016
72,Revenue,CAHD,Home Care - Elderly - North,Day Care / Social Activities,About Me Care and Support Limited,519.36, 21-Sep-2016
73,Revenue,CAHD,Home Care - Elderly - South,Day Care / Social Activities,About Me Care and Support Limited,822.32, 21-Sep-2016
74,Revenue,CAHD,Training - Adult Services,Training Expenses,Acorn Health & Safety Limited,465.00, 14-Sep-2016
75,Revenue,CAHD,Tenancy Start Up Scheme,Other Supplies & Services,Acorn Property Letting and Management,1450.00, 22-Sep-2016
76,Revenue,CAHD,Older People's Commissioned Se,Grants to Voluntary Bodies,Action for Blind People,24606.00, 30-Sep-2016
77,Revenue,CAHD,Home Care - Elderly - South,Supported Living,Action on Hearing Loss,656.60, 30-Sep-2016
78,Revenue,CAHD,Home Care - Elderly - South,Supported Living,Action on Hearing Loss,871.00, 28-Sep-2016
79,Revenue,CAHD,Home Care - Elderly - South,Supported Living,Action on Hearing Loss,797.30, 28-Sep-2016
80,Revenue,CAHD,Home Care - Elderly - South,Other Small Contracts,Agincare UK Limited,680.34, 06-Sep-2016
81,Revenue,CAHD,Home Care - Elderly - North,Other Small Contracts,Agincare UK Limited,523.94, 06-Sep-2016
82,Revenue,CAHD,Home Care - Elderly - South,Other Small Contracts,Agincare UK Limited,797.64, 06-Sep-2016
83,Revenue,CAHD,Home Care - Elderly - North,Other Small Contracts,Agincare UK Limited,398.82, 06-Sep-2016
84,Revenue,CAHD,Home Care - Elderly - South,Other Small Contracts,Agincare UK Limited,457.47, 06-Sep-2016
85,Revenue,CAHD,Home Care - Elderly - North,Other Small Contracts,Agincare UK Limited,1036.15, 06-Sep-2016
86,Revenue,CAHD,Home Care - Elderly - South,Other Small Contracts,Agincare UK Limited,449.65, 14-Sep-2016
87,Revenue,CAHD,Home Care - Elderly - North,Other Small Contracts,Agincare UK Limited,1192.55, 14-Sep-2016
88,Revenue,CAHD,Home Care - Elderly - South,Other Small Contracts,Agincare UK Limited,449.65, 19-Sep-2016
89,Revenue,CAHD,Home Care - Elderly - North,Other Small Contracts,Agincare UK Limited,1192.55, 19-Sep-2016
90,Revenue,CAHD,Home Care - Elderly - South,Other Small Contracts,Agincare UK Limited,531.76, 19-Sep-2016
91,Revenue,CAHD,Home Care - Elderly - North,Other Small Contracts,Agincare UK Limited,1079.16, 19-Sep-2016
92,Revenue,CAHD,Prison Assessments & Costs,Other Supplies & Services,Agincare UK Limited,6013.12, 09-Sep-2016
93,Revenue,CAHD,Prison Assessments & Costs,Other Supplies & Services,Agincare UK Limited,4830.41, 27-Sep-2016
94,Revenue,CAHD,Home Care - Elderly - North,Day Care / Social Activities,Agincare UK Nutfield,152.49, 20-Sep-2016
95,Revenue,CAHD,Home Care - Elderly - North,Other Small Contracts,Agincare UK Nutfield,1634.38, 20-Sep-2016
96,Revenue,CAHD,Home Care - Elderly - North,Day Care / Social Activities,Agincare UK Nutfield,152.49, 20-Sep-2016
97,Revenue,CAHD,Home Care - Elderly - North,Other Small Contracts,Agincare UK Nutfield,1622.65, 20-Sep-2016
98,Revenue,CAHD,Home Care - Elderly - North,Day Care / Social Activities,Agincare UK Nutfield,148.58, 20-Sep-2016
99,Revenue,CAHD,Home Care - Elderly - North,Other Small Contracts,Agincare UK Nutfield,1841.61, 20-Sep-2016
100,Revenue,CAHD,Home Care - Elderly - North,Day Care / Social Activities,Agincare UK Nutfield,152.49, 20-Sep-2016
101,Revenue,CAHD,Home Care - Elderly - North,Other Small Contracts,Agincare UK Nutfield,1802.51, 20-Sep-2016
102,Revenue,CAHD,Home Care - Elderly - North,Day Care / Social Activities,Agincare UK Nutfield,152.49, 29-Sep-2016
103,Revenue,CAHD,Home Care - Elderly - North,Other Small Contracts,Agincare UK Nutfield,1767.32, 29-Sep-2016
104,Revenue,CAHD,Home Care - Elderly - South,Supported Living,Alexandra Homes (Bristol) Limited,1294.90, 16-Sep-2016
105,Revenue,CAHD,Home Care - Elderly - South,Other Small Contracts,AliMo Care Ltd,1611.20, 02-Sep-2016
106,Revenue,CAHD,Home Care - Elderly - South,Other Small Contracts,AliMo Care Ltd,911.60, 30-Sep-2016
107,Revenue,CAHD,Home Care - Elderly - South,Other Small Contracts,AliMo Care Ltd,1585.76, 23-Sep-2016
108,Revenue,CAHD,Home Care - Elderly - South,Other Small Contracts,AliMo Care Ltd,1534.88, 23-Sep-2016
109,Revenue,CAHD,Bed Purchasing - South,Permanent Nursing,Ambleside Nusing Home,1576.08, 27-Sep-2016
110,Revenue,CAHD,Bed Purchasing - Southmead Hospital,Permanent Nursing,Amerind Grove Nursing Home,1950.64, 27-Sep-2016
111,Revenue,CAHD,Bed Purchasing - Southmead Hospital,Permanent Nursing,Amerind Grove Nursing Home,1711.28, 27-Sep-2016
112,Revenue,CAHD,Tenancy Start Up Scheme,Other Supplies & Services,Individual,526.60, 08-Sep-2016
113,Revenue,CAHD,Direct Payments - Phys Dis - North,Grants to Voluntary Bodies,Aquarium Card Management Solutions Ltd,2156.00, 30-Sep-2016
114,Revenue,CAHD,Bed Purchasing - North,Permanent Residential,Ark Care Homes Ltd,10494.48, 27-Sep-2016
115,Revenue,CAHD,S117 Placements PCT,Permanent Residential,Ash View House,7148.68, 27-Sep-2016
116,Revenue,CAHD,18-25 Year Olds,Permanent Residential,Ash View House,6315.92, 27-Sep-2016
117,Revenue,CAHD,Section 117 Placements MH Younger,Permanent Residential,Ash View House,4658.52, 27-Sep-2016
118,Revenue,CAHD,Jointly Funded H&SC Packages,Permanent Residential,Ash View House,1996.52, 27-Sep-2016
119,Revenue,CAHD,Bed purchasing - Elderly S117 - South,Permanent Residential,Ash View House,6331.72, 27-Sep-2016
120,Revenue,CAHD,Bed Purchasing - North,Permanent Residential,Aspects 2 Limited,6441.16, 27-Sep-2016
121,Revenue,CAHD,Supporting People Programme,Grants to Voluntary Bodies,Aspects and Milestones Trust,3298.58, 01-Sep-2016
122,Revenue,CAHD,Supporting People Programme,Grants to Voluntary Bodies,Aspects and Milestones Trust,1653.75, 01-Sep-2016
123,Revenue,CAHD,Supporting People Programme,Grants to Voluntary Bodies,Aspects and Milestones Trust,2014.33, 01-Sep-2016
124,Revenue,CAHD,Supporting People Programme,Grants to Voluntary Bodies,Aspects and Milestones Trust,2510.16, 01-Sep-2016
125,Revenue,CAHD,Supporting People Programme,Grants to Voluntary Bodies,Aspects and Milestones Trust,3298.58, 30-Sep-2016
126,Revenue,CAHD,Supporting People Programme,Grants to Voluntary Bodies,Aspects and Milestones Trust,1653.75, 30-Sep-2016
127,Revenue,CAHD,Supporting People Programme,Grants to Voluntary Bodies,Aspects and Milestones Trust,2014.33, 30-Sep-2016
128,Revenue,CAHD,Bed Purchasing - South,Permanent Residential,Autism Specialised Care Homes,5755.24, 27-Sep-2016
129,Revenue,CAHD,Younger Adult Mental Health,Health Services (Third Party Payments),Avon & Wiltshire Mental Health,1667.00, 07-Sep-2016
130,Revenue,CAHD,Younger Adult Mental Health,Health Services (Third Party Payments),Avon & Wiltshire Mental Health,1666.00, 30-Sep-2016
131,Revenue,CAHD,Purchase of RAC places,Other L.A.'s - General,Bath & North East Somerset Council,5583.50, 01-Sep-2016
132,Revenue,CAHD,Purchase of RAC places,Other L.A.'s - General,Bath & North East Somerset Council,5282.92, 09-Sep-2016
133,Revenue,CAHD,Bed Purchasing - Southmead Hospital,Permanent Nursing,Bayview Nursing & Residential Home,1503.96, 27-Sep-2016
134,Revenue,CAHD,Pathway 3 - (Complex Beds),Permanent Nursing,Beaufort Care Ltd,5271.00, 09-Sep-2016
135,Revenue,CAHD,South Glos Users in South Glos Homes,Permanent Nursing,Beaufort Grange Care Home,625.00, 27-Sep-2016
136,Revenue,CAHD,South Glos Users in South Glos Homes,Permanent Nursing,Beaufort Grange Care Home,625.00, 27-Sep-2016
137,Revenue,CAHD,South Glos Users in South Glos Homes,Permanent Nursing,Beaufort Grange Care Home,625.00, 27-Sep-2016
138,Revenue,CAHD,South Glos Users in South Glos Homes,Permanent Nursing,Beaufort Grange Care Home,625.00, 27-Sep-2016
139,Revenue,CAHD,South Glos Users in South Glos Homes,Permanent Nursing,Beaufort Grange Care Home,625.00, 27-Sep-2016
140,Revenue,CAHD,South Glos Users in South Glos Homes,Permanent Nursing,Beaufort Grange Care Home,625.00, 27-Sep-2016
141,Revenue,CAHD,South Glos Users in South Glos Homes,Permanent Nursing,Beaufort Grange Care Home,625.00, 27-Sep-2016
142,Revenue,CAHD,South Glos Users in South Glos Homes,Permanent Nursing,Beaufort Grange Care Home,625.00, 27-Sep-2016
143,Revenue,CAHD,South Glos Users in South Glos Homes,Permanent Nursing,Beaufort Grange Care Home,625.00, 27-Sep-2016
144,Revenue,CAHD,South Glos Users in South Glos Homes,Permanent Nursing,Beaufort Grange Care Home,625.00, 27-Sep-2016
145,Revenue,CAHD,South Glos Users in South Glos Homes,Permanent Nursing,Beaufort Grange Care Home,625.00, 27-Sep-2016
146,Revenue,CAHD,South Glos Users in South Glos Homes,Permanent Nursing,Beaufort Grange Care Home,625.00, 27-Sep-2016
147,Revenue,CAHD,South Glos Users in South Glos Homes,Permanent Nursing,Beaufort Grange Care Home,3392.86, 27-Sep-2016
148,Revenue,CAHD,South Glos Users in South Glos Homes,Permanent Nursing,Beaufort Grange Care Home,625.00, 27-Sep-2016
149,Revenue,CAHD,South Glos Users in South Glos Homes,Permanent Nursing,Beaufort Grange Care Home,625.00, 27-Sep-2016
150,Revenue,CAHD,South Glos Users in South Glos Homes,Permanent Nursing,Beaufort Grange Care Home,625.00, 27-Sep-2016
151,Revenue,CAHD,South Glos Users in South Glos Homes,Permanent Nursing,Beaufort Grange Care Home,625.00, 27-Sep-2016
152,Revenue,CAHD,Bed Purchasing - Elderly S117- North,Permanent Nursing,Beaufort Grange Care Home,4411.20, 27-Sep-2016
153,Revenue,CAHD,South Glos Users in South Glos Homes,Permanent Nursing,Beaufort Grange Care Home,625.00, 27-Sep-2016
154,Revenue,CAHD,South Glos Users in South Glos Homes,Permanent Nursing,Beaufort Grange Care Home,625.00, 27-Sep-2016
155,Revenue,CAHD,Bed Purchasing - Elderly S117- North,Permanent Nursing,Beaufort Grange Care Home,4613.92, 27-Sep-2016
156,Revenue,CAHD,South Glos Users in South Glos Homes,Permanent Nursing,Beaufort Grange Care Home,625.00, 27-Sep-2016
157,Revenue,CAHD,South Glos Users in South Glos Homes,Permanent Nursing,Beaufort Grange Care Home,625.00, 27-Sep-2016
158,Revenue,CAHD,South Glos Users in South Glos Homes,Permanent Nursing,Beaufort Grange Care Home,625.00, 27-Sep-2016
159,Revenue,CAHD,South Glos Users in South Glos Homes,Permanent Nursing,Beaufort Grange Care Home,625.00, 27-Sep-2016
160,Revenue,CAHD,South Glos Users in South Glos Homes,Permanent Nursing,Beaufort Grange Care Home,625.00, 27-Sep-2016
161,Revenue,CAHD,South Glos Users in South Glos Homes,Permanent Nursing,Beaufort Grange Care Home,625.00, 27-Sep-2016
162,Revenue,CAHD,South Glos Users in South Glos Homes,Permanent Nursing,Beaufort Grange Care Home,625.00, 27-Sep-2016
163,Revenue,CAHD,South Glos Users in South Glos Homes,Permanent Nursing,Beaufort Grange Care Home,625.00, 27-Sep-2016
164,Revenue,CAHD,Bed Purchasing - North,Permanent Residential,Beaufort House,1705.40, 27-Sep-2016
165,Revenue,CAHD,Bed Purchasing - North,Permanent Residential,Beaufort House,2432.64, 27-Sep-2016
166,Revenue,CAHD,Bed Purchasing - South,Permanent Residential,Beaufort House,1501.64, 27-Sep-2016
167,Revenue,CAHD,Bed Purchasing - Southmead Hospital,Permanent Residential,Beaufort House,1302.12, 27-Sep-2016
168,Revenue,CAHD,Bed Purchasing - North,Permanent Residential,Beaufort House,1846.64, 27-Sep-2016
169,Revenue,CAHD,Bed Purchasing - North,Permanent Residential,Beaufort House,1483.64, 27-Sep-2016
170,Revenue,CAHD,Bed Purchasing - North,Permanent Residential,Beaufort House,2031.48, 27-Sep-2016
171,Revenue,CAHD,Bed Purchasing - Southmead Hospital,Permanent Residential,Beaufort House,1857.20, 27-Sep-2016
172,Revenue,CAHD,Bed Purchasing - South,Permanent Residential,Bedrock Lodge,3182.48, 27-Sep-2016
173,Revenue,CAHD,Bed Purchasing - South,Permanent Residential,Bedrock Lodge,3036.56, 27-Sep-2016
174,Revenue,CAHD,Section 117 Placements MH Younger,Permanent Residential,Bedrock Lodge,1925.00, 27-Sep-2016
175,Revenue,CAHD,South Glos Users in South Glos Homes,Permanent Nursing,Beech House,625.00, 27-Sep-2016
176,Revenue,CAHD,Bed Purchasing - South,Permanent Residential,Beech House,2001.20, 27-Sep-2016
177,Revenue,CAHD,South Glos Users in South Glos Homes,Permanent Nursing,Beech House,625.00, 27-Sep-2016
178,Revenue,CAHD,South Glos Users in South Glos Homes,Permanent Nursing,Beech House,625.00, 27-Sep-2016
179,Revenue,CAHD,South Glos Users in South Glos Homes,Permanent Nursing,Beech House,625.00, 27-Sep-2016
180,Revenue,CAHD,South Glos Users in South Glos Homes,Permanent Nursing,Beech House,625.00, 27-Sep-2016
181,Revenue,CAHD,South Glos Users in South Glos Homes,Permanent Nursing,Beech House,625.00, 27-Sep-2016
182,Revenue,CAHD,South Glos Users in South Glos Homes,Permanent Nursing,Beech House,625.00, 27-Sep-2016
183,Revenue,CAHD,South Glos Users in South Glos Homes,Permanent Nursing,Beech House,625.00, 27-Sep-2016
184,Revenue,CAHD,Bed Purchasing - North,Permanent Nursing,Beech House,2172.00, 27-Sep-2016
185,Revenue,CAHD,South Glos Users in South Glos Homes,Permanent Nursing,Beech House,625.00, 27-Sep-2016
186,Revenue,CAHD,Bed Purchasing - North,Permanent Residential,Beech House,2001.20, 27-Sep-2016
187,Revenue,CAHD,South Glos Users in South Glos Homes,Permanent Nursing,Beech House,625.00, 27-Sep-2016
188,Revenue,CAHD,South Glos Users in South Glos Homes,Permanent Nursing,Beech House,2455.36, 27-Sep-2016
189,Revenue,CAHD,South Glos Users in South Glos Homes,Permanent Nursing,Beech House,625.00, 27-Sep-2016
190,Revenue,CAHD,South Glos Users in South Glos Homes,Permanent Nursing,Beech House,625.00, 27-Sep-2016
191,Revenue,CAHD,South Glos Users in South Glos Homes,Permanent Nursing,Beech House,625.00, 27-Sep-2016
192,Revenue,CAHD,South Glos Users in South Glos Homes,Permanent Nursing,Beech House,625.00, 27-Sep-2016
193,Revenue,CAHD,South Glos Users in South Glos Homes,Permanent Nursing,Beech House,625.00, 27-Sep-2016
194,Revenue,CAHD,South Glos Users in South Glos Homes,Permanent Nursing,Beech House,1071.43, 27-Sep-2016
195,Revenue,CAHD,South Glos Users in South Glos Homes,Permanent Nursing,Beech House,625.00, 27-Sep-2016
196,Revenue,CAHD,South Glos Users in South Glos Homes,Permanent Nursing,Beech House,625.00, 27-Sep-2016
197,Revenue,CAHD,South Glos Users in South Glos Homes,Permanent Nursing,Beech House,625.00, 27-Sep-2016
198,Revenue,CAHD,South Glos Users in South Glos Homes,Permanent Nursing,Beech House,625.00, 27-Sep-2016
199,Revenue,CAHD,South Glos Users in South Glos Homes,Permanent Nursing,Beech House,625.00, 27-Sep-2016
200,Revenue,CAHD,South Glos Users in South Glos Homes,Permanent Nursing,Beech House,625.00, 27-Sep-2016
201,Revenue,CAHD,South Glos Users in South Glos Homes,Permanent Nursing,Beech House,625.00, 27-Sep-2016
202,Revenue,CAHD,South Glos Users in South Glos Homes,Permanent Nursing,Beech House,625.00, 27-Sep-2016
203,Revenue,CAHD,South Glos Users in South Glos Homes,Permanent Nursing,Beech House,625.00, 27-Sep-2016
204,Revenue,CAHD,Bed Purchasing - North,Permanent Nursing,Beech House,1094.80, 27-Sep-2016
205,Revenue,CAHD,South Glos Users in South Glos Homes,Permanent Nursing,Beech House,625.00, 27-Sep-2016
206,Revenue,CAHD,South Glos Users in South Glos Homes,Permanent Nursing,Beech House,625.00, 27-Sep-2016
207,Revenue,CAHD,South Glos Users in South Glos Homes,Permanent Nursing,Beech House,625.00, 27-Sep-2016
208,Revenue,CAHD,South Glos Users in South Glos Homes,Permanent Nursing,Beech House,625.00, 27-Sep-2016
209,Revenue,CAHD,South Glos Users in South Glos Homes,Permanent Nursing,Beech House,625.00, 27-Sep-2016
210,Revenue,CAHD,Tenancy Start Up Scheme,Other Supplies & Services,Besley Hill Lettings,1669.00, 12-Sep-2016
211,Revenue,CAHD,Tenancy Start Up Scheme,Other Supplies & Services,Besley Hill Lettings,1716.00, 27-Sep-2016
212,Revenue,CAHD,Home Care - Elderly - North,Other Small Contracts,Bibby Factors Bristol Limited,8664.32, 08-Sep-2016
213,Revenue,CAHD,Home Care - Elderly - North,Other Small Contracts,Bibby Factors Bristol Limited,8283.68, 09-Sep-2016
214,Revenue,CAHD,Home Care - Elderly - North,Other Small Contracts,Bibby Factors Bristol Limited,8187.66, 16-Sep-2016
215,Revenue,CAHD,Home Care - Elderly - North,Other Small Contracts,Bibby Factors Bristol Limited,8567.54, 30-Sep-2016
216,Revenue,CAHD,Home Care - Elderly - North,Other Small Contracts,Bibby Factors Bristol Limited,8487.66, 30-Sep-2016
217,Revenue,CAHD,Bed Purchasing - North,Permanent Nursing,Blossom Field,2402.12, 27-Sep-2016
218,Revenue,CAHD,South Glos Users in South Glos Homes,Permanent Nursing,Blossom Field,625.00, 27-Sep-2016
219,Revenue,CAHD,Bed Purchasing - North,Permanent Nursing,Blossom Field,2438.72, 27-Sep-2016
220,Revenue,CAHD,South Glos Users in South Glos Homes,Permanent Nursing,Blossom Field,625.00, 27-Sep-2016
221,Revenue,CAHD,Bed Purchasing - Elderly S117- North,Permanent Nursing,Blossom Field,2040.00, 27-Sep-2016
222,Revenue,CAHD,South Glos Users in South Glos Homes,Permanent Nursing,Blossom Field,625.00, 27-Sep-2016
223,Revenue,CAHD,South Glos Users in South Glos Homes,Permanent Nursing,Blossom Field,625.00, 27-Sep-2016
224,Revenue,CAHD,Bed Purchasing - Southmead Hospital,Permanent Nursing,Blossom Field,4063.04, 27-Sep-2016
225,Revenue,CAHD,South Glos Users in South Glos Homes,Permanent Nursing,Blossom Field,625.00, 27-Sep-2016
226,Revenue,CAHD,South Glos Users in South Glos Homes,Permanent Nursing,Blossom Field,625.00, 27-Sep-2016
227,Revenue,CAHD,Bed Purchasing - North,Permanent Nursing,Blossom Field,2447.92, 27-Sep-2016
228,Revenue,CAHD,South Glos Users in South Glos Homes,Permanent Nursing,Blossom Field,625.00, 27-Sep-2016
229,Revenue,CAHD,South Glos Users in South Glos Homes,Permanent Nursing,Blossom Field,625.00, 27-Sep-2016
230,Revenue,CAHD,South Glos Users in South Glos Homes,Permanent Nursing,Blossom Field,625.00, 27-Sep-2016
231,Revenue,CAHD,South Glos Users in South Glos Homes,Permanent Nursing,Blossom Field,625.00, 27-Sep-2016
232,Revenue,CAHD,South Glos Users in South Glos Homes,Permanent Nursing,Blossom Field,625.00, 27-Sep-2016
233,Revenue,CAHD,South Glos Users in South Glos Homes,Permanent Nursing,Blossom Field,625.00, 27-Sep-2016
234,Revenue,CAHD,Bed purchasing - Elderly S117 - South,Permanent Nursing,Blossom Field,4459.84, 27-Sep-2016
235,Revenue,CAHD,South Glos Users in South Glos Homes,Permanent Nursing,Blossom Field,625.00, 27-Sep-2016
236,Revenue,CAHD,South Glos Users in South Glos Homes,Permanent Nursing,Blossom Field,625.00, 27-Sep-2016
237,Revenue,CAHD,South Glos Users in South Glos Homes,Permanent Nursing,Blossom Field,625.00, 27-Sep-2016
238,Revenue,CAHD,South Glos Users in South Glos Homes,Permanent Nursing,Blossom Field,625.00, 27-Sep-2016
239,Revenue,CAHD,Bed purchasing - Elderly S117 - South,Permanent Nursing,Blossom Field,4411.20, 27-Sep-2016
240,Revenue,CAHD,South Glos Users in South Glos Homes,Permanent Nursing,Blossom Field,625.00, 27-Sep-2016
241,Revenue,CAHD,South Glos Users in South Glos Homes,Permanent Nursing,Blossom Field,625.00, 27-Sep-2016
242,Revenue,CAHD,South Glos Users in South Glos Homes,Permanent Nursing,Blossom Field,625.00, 27-Sep-2016
243,Revenue,CAHD,South Glos Users in South Glos Homes,Permanent Nursing,Blossom Field,625.00, 27-Sep-2016
244,Revenue,CAHD,South Glos Users in South Glos Homes,Permanent Nursing,Blossom Field,625.00, 27-Sep-2016
245,Revenue,CAHD,South Glos Users in South Glos Homes,Permanent Nursing,Blossom Field,625.00, 27-Sep-2016
246,Revenue,CAHD,South Glos Users in South Glos Homes,Permanent Nursing,Blossom Field,625.00, 27-Sep-2016
247,Revenue,CAHD,South Glos Users in South Glos Homes,Permanent Nursing,Blossom Field,1674.11, 27-Sep-2016
248,Revenue,CAHD,South Glos Users in South Glos Homes,Permanent Nursing,Blossom Field,625.00, 27-Sep-2016
249,Revenue,CAHD,South Glos Users in South Glos Homes,Permanent Nursing,Blossom Field,781.25, 27-Sep-2016
250,Revenue,CAHD,South Glos Users in South Glos Homes,Permanent Nursing,Blossom Field,625.00, 27-Sep-2016
251,Revenue,CAHD,South Glos Users in South Glos Homes,Permanent Nursing,Blossom Field,625.00, 27-Sep-2016
252,Revenue,CAHD,South Glos Users in South Glos Homes,Permanent Nursing,Blossom Field,625.00, 27-Sep-2016
253,Revenue,CAHD,Bed Purchasing - North,Permanent Nursing,Blossom Field,2835.56, 27-Sep-2016
254,Revenue,CAHD,South Glos Users in South Glos Homes,Permanent Nursing,Blossom Field,625.00, 27-Sep-2016
255,Revenue,CAHD,Bed Purchasing - North,Permanent Nursing,Blossom Field,2806.52, 27-Sep-2016
256,Revenue,CAHD,South Glos Users in South Glos Homes,Permanent Nursing,Blossom Field,625.00, 27-Sep-2016
257,Revenue,CAHD,South Glos Users in South Glos Homes,Permanent Nursing,Blossom Field,625.00, 27-Sep-2016
258,Revenue,CAHD,South Glos Users in South Glos Homes,Permanent Nursing,Blossom Field,625.00, 27-Sep-2016
259,Revenue,CAHD,South Glos Users in South Glos Homes,Permanent Nursing,Blossom Field,625.00, 27-Sep-2016
260,Revenue,CAHD,South Glos Users in South Glos Homes,Permanent Nursing,Blossom Fields,625.00, 22-Sep-2016
261,Revenue,CAHD,South Glos Users in South Glos Homes,Permanent Nursing,Blossom Fields,625.00, 22-Sep-2016
262,Revenue,CAHD,South Glos Users in South Glos Homes,Permanent Nursing,Blossom Fields,625.00, 22-Sep-2016
263,Revenue,CAHD,Bed Purchasing - North,Permanent Nursing,Blossom Fields,1860.16, 22-Sep-2016
264,Revenue,CAHD,Bed Purchasing - Southmead Hospital,Permanent Nursing,Blossom Fields,2129.20, 22-Sep-2016
265,Revenue,CAHD,Bed Purchasing - North,Permanent Nursing,Blossom Fields,2652.00, 22-Sep-2016
266,Revenue,CAHD,Home Care - Elderly - South,Other Small Contracts,Bluebird Care (South Gloucestershire),597.38, 08-Sep-2016
267,Revenue,CAHD,Home Care - Elderly - North,Other Small Contracts,Bluebird Care (South Gloucestershire),1847.05, 08-Sep-2016
268,Revenue,CAHD,Home Care - Elderly - South,Other Small Contracts,Bluebird Care (South Gloucestershire),607.42, 19-Sep-2016
269,Revenue,CAHD,Home Care - Elderly - North,Other Small Contracts,Bluebird Care (South Gloucestershire),1722.23, 19-Sep-2016
270,Revenue,CAHD,Home Care - Elderly - South,Other Small Contracts,Bluebird Care (South Gloucestershire),587.34, 19-Sep-2016
271,Revenue,CAHD,Home Care - Elderly - North,Other Small Contracts,Bluebird Care (South Gloucestershire),1669.36, 19-Sep-2016
272,Revenue,CAHD,Home Care - Elderly - South,Other Small Contracts,Bluebird Care (South Gloucestershire),582.32, 20-Sep-2016
273,Revenue,CAHD,Home Care - Elderly - North,Other Small Contracts,Bluebird Care (South Gloucestershire),1435.10, 20-Sep-2016
274,Revenue,CAHD,Home Care - Elderly - South,Other Small Contracts,Bluebird Care (South Gloucestershire),532.12, 20-Sep-2016
275,Revenue,CAHD,Home Care - Elderly - North,Other Small Contracts,Bluebird Care (South Gloucestershire),1936.83, 20-Sep-2016
276,Revenue,CAHD,Training - Adult Services,Training Expenses,Bob Dawson,1350.00, 07-Sep-2016
277,Revenue,CAHD,Bed purchasing - S28A Under 65 - South,Permanent Residential,Bradbury House,4391.28, 27-Sep-2016
278,Revenue,CAHD,Bed Purchasing - South,Permanent Residential,Bradbury House,7945.92, 27-Sep-2016
279,Revenue,CAHD,Bed purchasing - S28A Under 65 - South,Permanent Residential,Bradbury House,6534.72, 27-Sep-2016
280,Revenue,CAHD,18-25 Year Olds,Permanent Residential,Bradbury House,8981.52, 27-Sep-2016
281,Revenue,CAHD,Bed purchasing - Elderly S117 - South,Permanent Residential,Bradbury House,8462.56, 27-Sep-2016
282,Revenue,CAHD,Jointly Funded H&SC Packages,Permanent Residential,Bradbury House,3144.08, 27-Sep-2016
283,Revenue,CAHD,Bed Purchasing - North,Permanent Residential,Bradley House,1556.64, 27-Sep-2016
284,Revenue,CAHD,South Glos Users in South Glos Homes,Permanent Nursing,Brandon Trust,625.00, 27-Sep-2016
285,Revenue,CAHD,South Glos Users in South Glos Homes,Permanent Nursing,Brandon Trust,625.00, 27-Sep-2016
286,Revenue,CAHD,Bed Purchasing - South,Permanent Nursing,Brandon Trust,5239.96, 27-Sep-2016
287,Revenue,CAHD,South Glos Users in South Glos Homes,Permanent Nursing,Brandon Trust,625.00, 27-Sep-2016
288,Revenue,CAHD,Bed Purchasing - South,Permanent Residential,Brandon Trust,10525.96, 27-Sep-2016
289,Revenue,CAHD,Bed Purchasing - South,Permanent Residential,Brandon Trust,4174.12, 27-Sep-2016
290,Revenue,CAHD,Bed Purchasing - Southmead Hospital,Permanent Nursing,Brandon Trust,4615.24, 27-Sep-2016
291,Revenue,CAHD,South Glos Users in South Glos Homes,Permanent Nursing,Brandon Trust,625.00, 27-Sep-2016
292,Revenue,CAHD,Bed Purchasing - South,Permanent Nursing,Brandon Trust,5166.12, 27-Sep-2016
293,Revenue,CAHD,South Glos Users in South Glos Homes,Permanent Nursing,Brandon Trust,625.00, 27-Sep-2016
294,Revenue,CAHD,Bed purchasing - S28A Under 65 - South,Permanent Nursing,Brandon Trust,5574.32, 27-Sep-2016
295,Revenue,CAHD,South Glos Users in South Glos Homes,Permanent Nursing,Brandon Trust,625.00, 27-Sep-2016
296,Revenue,CAHD,Bed purchasing - S28A Under 65 - South,Permanent Residential,Brandon Trust,4539.64, 27-Sep-2016
297,Revenue,CAHD,Bed Purchasing - LD S28A- Over 65- South,Permanent Nursing,Brandon Trust,5251.12, 27-Sep-2016
298,Revenue,CAHD,South Glos Users in South Glos Homes,Permanent Nursing,Brandon Trust,625.00, 27-Sep-2016
299,Revenue,CAHD,Bed Purchasing - LD S28A- Over 65- South,Permanent Nursing,Brandon Trust,4964.92, 27-Sep-2016
300,Revenue,CAHD,South Glos Users in South Glos Homes,Permanent Nursing,Brandon Trust,625.00, 27-Sep-2016
301,Revenue,CAHD,Bed Purchasing - South,Permanent Residential,Brandon Trust,3308.08, 27-Sep-2016
302,Revenue,CAHD,Bed purchasing - S28A Under 65 - South,Permanent Residential,Brandon Trust,5335.92, 27-Sep-2016
303,Revenue,CAHD,Bed purchasing - S28A Under 65 - South,Permanent Residential,Brandon Trust,5392.96, 27-Sep-2016
304,Revenue,CAHD,South Glos Users in South Glos Homes,Permanent Nursing,Brandon Trust,625.00, 27-Sep-2016
305,Revenue,CAHD,Bed purchasing - S28A Under 65 - South,Permanent Nursing,Brandon Trust,5496.12, 27-Sep-2016
306,Revenue,CAHD,South Glos Users in South Glos Homes,Permanent Nursing,Brandon Trust,625.00, 27-Sep-2016
307,Revenue,CAHD,Bed purchasing -S28A  Under 65 - North,Permanent Nursing,Brandon Trust,5007.44, 27-Sep-2016
308,Revenue,CAHD,Bed purchasing - S28A Under 65 - South,Permanent Residential,Brandon Trust,5392.96, 27-Sep-2016
309,Revenue,CAHD,Bed Purchasing - LD S28A- Over 65- South,Permanent Residential,Brandon Trust,4849.92, 27-Sep-2016
310,Revenue,CAHD,Social Lettings Agency,Fees - General,Individual,11.41, 02-Sep-2016
311,Revenue,CAHD,Social Lettings Agency,Other Supplies & Services,Individual,746.54, 02-Sep-2016
312,Revenue,CAHD,Bed Purchasing - Southmead Hospital,Permanent Residential,Bridge House Care Home,1901.20, 27-Sep-2016
313,Revenue,CAHD,Bed Purchasing - North,Permanent Residential,Bridge House Care Home,1257.32, 27-Sep-2016
314,Revenue,CAHD,Bed Purchasing - North,Permanent Residential,Bridge House Care Home,1351.92, 27-Sep-2016
315,Revenue,CAHD,Bed purchasing - Elderly S117 - South,Respite Planned - Residential,Bridge House Care Home,2392.00, 27-Sep-2016
316,Revenue,CAHD,Bed purchasing - Elderly S117 - South,Respite Planned - Residential,Bridge House Care Home,939.71, 27-Sep-2016
317,Revenue,CAHD,Bed Purchasing - North,Permanent Residential,Bridge House Care Home,1089.80, 27-Sep-2016
318,Revenue,CAHD,Bed Purchasing - North,Permanent Residential,Bridge House Care Home,1550.80, 27-Sep-2016
319,Revenue,CAHD,Bed Purchasing - North,Permanent Residential,Bridgwater Court,10192.44, 27-Sep-2016
320,Revenue,CAHD,Bed Purchasing - South,Permanent Residential,Brightbow,2131.88, 27-Sep-2016
321,Revenue,CAHD,MH Purchasing - Younger,Permanent Residential,Brightbow,1519.76, 27-Sep-2016
322,Revenue,CAHD,Older People's Commissioned Se,Grants to Voluntary Bodies,Bristol Area Stroke Foundation,17419.00, 30-Sep-2016
323,Revenue,CAHD,Purchase of RAC places,Other L.A.'s - General,Bristol City Council,8588.88, 29-Sep-2016
324,Revenue,CAHD,Purchase of RAC places,Other L.A.'s - General,Bristol City Council,9052.80, 23-Sep-2016
325,Revenue,CAHD,Home Care - Elderly - North,Day Care / Social Activities,Bristol Houses UK Limited,1005.48, 01-Sep-2016
326,Revenue,CAHD,Home Care - Elderly - North,Day Care / Social Activities,Bristol Houses UK Limited,1356.60, 30-Sep-2016
327,Revenue,CAHD,Training - Adult Services,Training Expenses,Bristol MIND,347.50, 22-Sep-2016
328,Revenue,CAHD,Supporting People Programme,Grants to Voluntary Bodies,Bristol Missing Link,2039.66, 01-Sep-2016
329,Revenue,CAHD,Supporting People Programme,Grants to Voluntary Bodies,Bristol Missing Link,1484.66, 01-Sep-2016
330,Revenue,CAHD,Newton House,Water Charges,Bristol Wessex Billing Services Limited,3799.68, 01-Sep-2016
331,Revenue,CAHD,Newton House,Water Charges,Bristol Wessex Billing Services Limited,1224.58, 15-Sep-2016
332,Revenue,CAHD,Alexandra Way,Water Charges,Bristol Wessex Billing Services Limited,676.03, 30-Sep-2016
333,Revenue,CAHD,Home Care - Elderly - North,SU Employment Support,Britannia House,702.96, 27-Sep-2016
334,Revenue,CAHD,Home Care - Elderly - North,Day Care / Social Activities,Britannia House,937.28, 27-Sep-2016
335,Revenue,CAHD,Home Care - Elderly - North,Day Care / Social Activities,Britannia House,702.96, 27-Sep-2016
336,Revenue,CAHD,Home Care - Elderly - North,Day Care / Social Activities,Britannia House,702.96, 27-Sep-2016
337,Revenue,CAHD,Home Care - Elderly - North,Day Care / Social Activities,Britannia House,937.28, 27-Sep-2016
338,Revenue,CAHD,Home Care - Elderly - North,Day Care / Social Activities,Britannia House,644.38, 27-Sep-2016
339,Revenue,CAHD,Home Care - Elderly - South,Day Care / Social Activities,Britannia House,937.28, 27-Sep-2016
340,Revenue,CAHD,Home Care - Elderly - South,Day Care / Social Activities,Britannia House,702.96, 27-Sep-2016
341,Revenue,CAHD,Home Care - Elderly - South,Day Care / Social Activities,Britannia House,702.96, 27-Sep-2016
342,Revenue,CAHD,Supporting People Programme,Grants to Voluntary Bodies,Bromford Housing Group,14395.08, 01-Sep-2016
343,Revenue,CAHD,Supporting People Programme,Grants to Voluntary Bodies,Bromford Housing Group,14395.08, 30-Sep-2016
344,Revenue,CAHD,Home Care - Elderly - North,Private & Voluntary Home Care,Brunelcare,23822.65, 05-Sep-2016
345,Revenue,CAHD,Home Care - Elderly - North,Private & Voluntary Home Care,Brunelcare,23822.65, 12-Sep-2016
346,Revenue,CAHD,Home Care - Elderly - North,Private & Voluntary Home Care,Brunelcare,23822.65, 19-Sep-2016
347,Revenue,CAHD,Home Care - Elderly - North,Private & Voluntary Home Care,Brunelcare,23822.65, 26-Sep-2016
348,Revenue,CAHD,Bed Purchasing - Southmead Hospital,Permanent Nursing,Brunelcare,1398.70, 13-Sep-2016
349,Revenue,CAHD,South Glos Users in South Glos Homes,Permanent Nursing,Brunelcare,691.96, 13-Sep-2016
350,Revenue,CAHD,Bed Purchasing - Elderly S117- North,Permanent Nursing,Brunelcare,3179.71, 13-Sep-2016
351,Revenue,CAHD,South Glos Users in South Glos Homes,Permanent Nursing,Brunelcare,691.96, 13-Sep-2016
352,Revenue,CAHD,Bed Purchasing - South,Permanent Nursing,Brunelcare,2353.56, 13-Sep-2016
353,Revenue,CAHD,Bed Purchasing - Elderly S117- North,Permanent Nursing,Brunelcare,3077.14, 13-Sep-2016
354,Revenue,CAHD,South Glos Users in South Glos Homes,Permanent Nursing,Brunelcare,691.96, 13-Sep-2016
355,Revenue,CAHD,Bed Purchasing - Southmead Hospital,Permanent Nursing,Brunelcare,1444.07, 13-Sep-2016
356,Revenue,CAHD,South Glos Users in South Glos Homes,Permanent Nursing,Brunelcare,691.96, 13-Sep-2016
357,Revenue,CAHD,Bed Purchasing - South,Permanent Nursing,Brunelcare,2600.90, 13-Sep-2016
358,Revenue,CAHD,South Glos Users in South Glos Homes,Permanent Nursing,Brunelcare,691.96, 13-Sep-2016
359,Revenue,CAHD,Bed Purchasing - South,Permanent Nursing,Brunelcare,2409.41, 13-Sep-2016
360,Revenue,CAHD,South Glos Users in South Glos Homes,Permanent Nursing,Brunelcare,691.96, 13-Sep-2016
361,Revenue,CAHD,Bed purchasing - Elderly S117 - South,Permanent Nursing,Brunelcare,3179.71, 13-Sep-2016
362,Revenue,CAHD,South Glos Users in South Glos Homes,Permanent Nursing,Brunelcare,691.96, 13-Sep-2016
363,Revenue,CAHD,Bed Purchasing - North,Permanent Nursing,Brunelcare,2529.78, 13-Sep-2016
364,Revenue,CAHD,South Glos Users in South Glos Homes,Permanent Nursing,Brunelcare,691.96, 13-Sep-2016
365,Revenue,CAHD,Bed Purchasing - Southmead Hospital,Permanent Nursing,Brunelcare,2430.09, 13-Sep-2016
366,Revenue,CAHD,South Glos Users in South Glos Homes,Permanent Nursing,Brunelcare,691.96, 13-Sep-2016
367,Revenue,CAHD,Bed Purchasing - North,Permanent Nursing,Brunelcare,2552.72, 13-Sep-2016
368,Revenue,CAHD,South Glos Users in South Glos Homes,Permanent Nursing,Brunelcare,691.96, 13-Sep-2016
369,Revenue,CAHD,Bed Purchasing - North,Permanent Nursing,Brunelcare,2600.90, 13-Sep-2016
370,Revenue,CAHD,South Glos Users in South Glos Homes,Permanent Nursing,Brunelcare,691.96, 13-Sep-2016
371,Revenue,CAHD,Bed Purchasing - Southmead Hospital,Permanent Nursing,Brunelcare,2600.90, 13-Sep-2016
372,Revenue,CAHD,South Glos Users in South Glos Homes,Permanent Nursing,Brunelcare,691.96, 13-Sep-2016
373,Revenue,CAHD,Bed Purchasing - Southmead Hospital,Permanent Nursing,Brunelcare,2511.35, 13-Sep-2016
374,Revenue,CAHD,South Glos Users in South Glos Homes,Permanent Nursing,Brunelcare,691.96, 13-Sep-2016
375,Revenue,CAHD,Bed Purchasing - Elderly S117- North,Permanent Nursing,Brunelcare,3179.71, 13-Sep-2016
376,Revenue,CAHD,Bed Purchasing - North,Respite Planned - Nursing,Brunelcare,820.57, 13-Sep-2016
377,Revenue,CAHD,Bed Purchasing - North,Respite Planned - Nursing,Brunelcare,1538.57, 13-Sep-2016
378,Revenue,CAHD,Bed Purchasing - North,Respite Planned - Nursing,Brunelcare,615.43, 13-Sep-2016
379,Revenue,CAHD,Pathway 2 - (Interim Beds),Permanent Nursing,Brunelcare,15407.00, 09-Sep-2016
380,Revenue,CAHD,Home Care - Elderly - South,Other Small Contracts,Brunelcare,1763.99, 15-Sep-2016
381,Revenue,CAHD,Home Care - Elderly - North,Other Small Contracts,Brunelcare,1508.40, 15-Sep-2016
382,Revenue,CAHD,Home Care - Elderly - South,Other Small Contracts,Brunelcare,1906.45, 14-Sep-2016
383,Revenue,CAHD,Home Care - Elderly - North,Other Small Contracts,Brunelcare,1311.47, 14-Sep-2016
384,Revenue,CAHD,Home Care - Elderly - South,Other Small Contracts,Brunelcare,2027.96, 14-Sep-2016
385,Revenue,CAHD,Home Care - Elderly - North,Other Small Contracts,Brunelcare,1282.14, 14-Sep-2016
386,Revenue,CAHD,Home Care - Elderly - South,Other Small Contracts,Brunelcare,2229.08, 14-Sep-2016
387,Revenue,CAHD,Home Care - Elderly - North,Other Small Contracts,Brunelcare,1776.56, 14-Sep-2016
388,Revenue,CAHD,Home Care - Elderly - South,Other Small Contracts,Brunelcare,2627.13, 29-Sep-2016
389,Revenue,CAHD,Home Care - Elderly - North,Other Small Contracts,Brunelcare,1784.94, 29-Sep-2016
390,Revenue,CAHD,Home Care - Elderly - South,Other Small Contracts,Brunelcare,2446.96, 29-Sep-2016
391,Revenue,CAHD,Home Care - Elderly - North,Other Small Contracts,Brunelcare,1546.11, 29-Sep-2016
392,Revenue,CAHD,Woodleaze,Agency Staff (Admin/Support Staff) Pay,BS Project Services Limited,650.49, 01-Sep-2016
393,Revenue,CAHD,Woodleaze,Agency Staff (Admin/Support Staff) Pay,BS Project Services Limited,588.76, 21-Sep-2016
394,Revenue,CAHD,Bed Purchasing - North,Permanent Nursing,Bupa Care Services  Bridge House,1740.00, 27-Sep-2016
395,Revenue,CAHD,Jointly Funded H&SC Packages,Permanent Nursing,Bupa Care Services  Bridge House,4344.04, 27-Sep-2016
396,Revenue,CAHD,South Glos Users in all other LA Homes,Permanent Nursing,Bupa Care Services  Bridge House,856.20, 27-Sep-2016
397,Revenue,CAHD,Bed Purchasing - Elderly S117- North,Permanent Residential,Cameo House,3400.00, 27-Sep-2016
398,Revenue,CAHD,Home Care - Elderly - North,Day Care / Social Activities,Camphill Communities Thornbury Limited,372.00, 01-Sep-2016
399,Revenue,CAHD,Home Care - Elderly - North,Other Small Contracts,Camphill Communities Thornbury Limited,144.00, 01-Sep-2016
400,Revenue,CAHD,Home Care - Elderly - North,Supported Living,Camphill Communities Thornbury Limited,992.00, 01-Sep-2016
401,Revenue,CAHD,Home Care - Elderly - North,Day Care / Social Activities,Camphill Communities Thornbury Limited,832.00, 14-Sep-2016
402,Revenue,CAHD,Home Care - Elderly - North,Supported Living,Camphill Communities Thornbury Limited,1028.00, 14-Sep-2016
403,Revenue,CAHD,Home Care - Elderly - North,Day Care / Social Activities,Camphill Communities Thornbury Limited,996.00, 16-Sep-2016
404,Revenue,CAHD,Home Care - Elderly - North,Supported Living,Camphill Communities Thornbury Limited,696.00, 16-Sep-2016
405,Revenue,CAHD,Home Care - Elderly - North,Day Care / Social Activities,Camphill Communities Thornbury Limited,956.00, 22-Sep-2016
406,Revenue,CAHD,Home Care - Elderly - North,Other Small Contracts,Camphill Communities Thornbury Limited,144.00, 22-Sep-2016
407,Revenue,CAHD,Home Care - Elderly - North,Supported Living,Camphill Communities Thornbury Limited,584.00, 22-Sep-2016
408,Revenue,CAHD,Home Care - Elderly - North,Day Care / Social Activities,Camphill Communities Thornbury Limited,1064.00, 30-Sep-2016
409,Revenue,CAHD,Home Care - Elderly - North,Other Small Contracts,Camphill Communities Thornbury Limited,144.00, 30-Sep-2016
410,Revenue,CAHD,Home Care - Elderly - North,Supported Living,Camphill Communities Thornbury Limited,668.00, 30-Sep-2016
411,Revenue,CAHD,Bed Purchasing - Elderly S117- North,Permanent Residential,Canjayor,2391.32, 27-Sep-2016
412,Revenue,CAHD,Information Systems - Software,Software Support & Maintenance,Capita Business Services Ltd,3500.00, 02-Sep-2016
413,Revenue,CAHD,Home Care - Elderly - South,Other Small Contracts,Care 1st Homecare,3667.81, 08-Sep-2016
414,Revenue,CAHD,Home Care - Elderly - North,Other Small Contracts,Care 1st Homecare,3463.61, 08-Sep-2016
415,Revenue,CAHD,Home Care - Elderly - South,Other Small Contracts,Care 1st Homecare,3629.02, 08-Sep-2016
416,Revenue,CAHD,Home Care - Elderly - North,Other Small Contracts,Care 1st Homecare,3831.26, 08-Sep-2016
417,Revenue,CAHD,Home Care - Elderly - South,Other Small Contracts,Care 1st Homecare,3374.73, 08-Sep-2016
418,Revenue,CAHD,Home Care - Elderly - North,Other Small Contracts,Care 1st Homecare,2848.20, 08-Sep-2016
419,Revenue,CAHD,Home Care - Elderly - South,Other Small Contracts,Care 1st Homecare,3469.55, 08-Sep-2016
420,Revenue,CAHD,Home Care - Elderly - North,Other Small Contracts,Care 1st Homecare,2348.95, 08-Sep-2016
421,Revenue,CAHD,Home Care - Elderly - South,Other Small Contracts,Care 1st Homecare,3094.58, 08-Sep-2016
422,Revenue,CAHD,Home Care - Elderly - North,Other Small Contracts,Care 1st Homecare,2387.74, 08-Sep-2016
423,Revenue,CAHD,s256 - Additional Support Funding,Other Supplies & Services,Care and Support West,12145.73, 15-Sep-2016
424,Revenue,CAHD,Home Care - Elderly - North,Day Care / Social Activities,Care Futures,727.08, 22-Sep-2016
425,Revenue,CAHD,Home Care - Elderly - South,Day Care / Social Activities,Care Futures,2227.34, 08-Sep-2016
426,Revenue,CAHD,Home Care - Elderly - South,Other Small Contracts,Care Horizons Limited,360.24, 01-Sep-2016
427,Revenue,CAHD,Home Care - Elderly - North,Day Care / Social Activities,Care Horizons Limited,542.64, 01-Sep-2016
428,Revenue,CAHD,Home Care - Elderly - North,Other Small Contracts,Care Horizons Limited,652.08, 01-Sep-2016
429,Revenue,CAHD,Home Care - Elderly - South,Other Small Contracts,Care Horizons Limited,369.36, 15-Sep-2016
430,Revenue,CAHD,Home Care - Elderly - North,Day Care / Social Activities,Care Horizons Limited,551.76, 15-Sep-2016
431,Revenue,CAHD,Home Care - Elderly - North,Other Small Contracts,Care Horizons Limited,656.64, 15-Sep-2016
432,Revenue,CAHD,Home Care Monitoring (CM2000),Other Supplies & Services,Care Monitoring 2000 Limited,9581.65, 15-Sep-2016
433,Revenue,CAHD,Home Care - Elderly - South,Other Small Contracts,Carers R Us (Bristol) Limited,680.60, 06-Sep-2016
434,Revenue,CAHD,Home Care - Elderly - South,Other Small Contracts,Carers R Us (Bristol) Limited,688.80, 06-Sep-2016
435,Revenue,CAHD,Home Care - Elderly - South,Other Small Contracts,Carers R Us (Bristol) Limited,692.90, 06-Sep-2016
436,Revenue,CAHD,Home Care - Elderly - South,Other Small Contracts,Carers R Us (Bristol) Limited,735.18, 06-Sep-2016
437,Revenue,CAHD,Home Care - Elderly - South,Other Small Contracts,Carers R Us (Bristol) Limited,697.00, 21-Sep-2016
438,Revenue,CAHD,Home Care - Elderly - North,Other Small Contracts,Carers R Us (Bristol) Limited,2430.84, 21-Sep-2016
439,Revenue,CAHD,Home Care - Elderly - South,Other Small Contracts,Carers R Us (Bristol) Limited,709.30, 21-Sep-2016
440,Revenue,CAHD,Home Care - Elderly - North,Other Small Contracts,Carers R Us (Bristol) Limited,2922.18, 21-Sep-2016
441,Revenue,CAHD,SLA Grants - Support Serv,Grants to Voluntary Bodies,Carers Support Centre,12275.00, 30-Sep-2016
442,Revenue,CAHD,SLA Grants - Support Serv,Grants to Voluntary Bodies,Carers Support Centre,25025.00, 30-Sep-2016
443,Revenue,CAHD,SLA Grants - Support Serv,Grants to Voluntary Bodies,Carers Support Centre,18991.50, 30-Sep-2016
444,Revenue,CAHD,Home Care - Elderly - North,Other Small Contracts,Caring Comes 1st Ltd,1145.32, 22-Sep-2016
445,Revenue,CAHD,Social Lettings Agency,Fees - General,Individual,10.53, 01-Sep-2016
446,Revenue,CAHD,Social Lettings Agency,Fees & Charges Income - General,Individual,595.11, 01-Sep-2016
447,Revenue,CAHD,Bed Purchasing - North,Permanent Residential,Charlton House,955.48, 27-Sep-2016
448,Revenue,CAHD,Home Care - Elderly - South,Other Small Contracts,Cherish Able Care Limited,5660.30, 02-Sep-2016
449,Revenue,CAHD,Home Care - Elderly - North,Other Small Contracts,Cherish Able Care Limited,736.16, 02-Sep-2016
450,Revenue,CAHD,Home Care - Elderly - South,Other Small Contracts,Cherish Able Care Limited,5486.96, 08-Sep-2016
451,Revenue,CAHD,Home Care - Elderly - North,Other Small Contracts,Cherish Able Care Limited,740.44, 08-Sep-2016
452,Revenue,CAHD,Home Care - Elderly - South,Other Small Contracts,Cherish Able Care Limited,5936.36, 15-Sep-2016
453,Revenue,CAHD,Home Care - Elderly - North,Other Small Contracts,Cherish Able Care Limited,736.16, 15-Sep-2016
454,Revenue,CAHD,Home Care - Elderly - South,Other Small Contracts,Cherish Able Care Limited,5983.44, 22-Sep-2016
455,Revenue,CAHD,Home Care - Elderly - North,Other Small Contracts,Cherish Able Care Limited,740.44, 22-Sep-2016
456,Revenue,CAHD,Home Care - Elderly - South,Other Small Contracts,Cherish Able Care Limited,6017.68, 29-Sep-2016
457,Revenue,CAHD,Home Care - Elderly - North,Other Small Contracts,Cherish Able Care Limited,740.44, 29-Sep-2016
458,Revenue,CAHD,Bed purchasing -S28A  Under 65 - North,Permanent Residential,Chescombe Lodge,8915.92, 27-Sep-2016
459,Revenue,CAHD,Home Care - Elderly - South,Supported Living,Choisy Care Limited,871.20, 12-Sep-2016
460,Revenue,CAHD,Bed Purchasing - Southmead Hospital,Permanent Nursing,Cholwell House Nursing Home Ltd,2005.92, 27-Sep-2016
461,Revenue,CAHD,18-25 Year Olds,Permanent Residential,Chosen Care Ltd  Citibase Watford,7190.44, 27-Sep-2016
462,Revenue,CAHD,Bed Purchasing - Elderly S117- North,Permanent Residential,Chosen Care Ltd  Citibase Watford,4575.68, 27-Sep-2016
463,Revenue,CAHD,Jointly Funded H&SC Packages,Permanent Residential,Chosen Care Ltd  Citibase Watford,4575.72, 27-Sep-2016
464,Revenue,CAHD,18-25 Year Olds,Permanent Residential,Chosen Care Ltd  Citibase Watford,5594.88, 27-Sep-2016
465,Revenue,CAHD,Bed Purchasing - Southmead Hospital,Permanent Nursing,Churchill Property Services,1710.24, 27-Sep-2016
466,Revenue,CAHD,Home Care - Elderly - North,Other Small Contracts,City of Bradford MDC,2327.19, 23-Sep-2016
467,Revenue,CAHD,Bed Purchasing - Southmead Hospital,Permanent Nursing,Clarence Park Nursing Home,2109.20, 09-Sep-2016
468,Revenue,CAHD,Bed Purchasing - Southmead Hospital,Permanent Nursing,Clarence Park Nursing Home,2109.20, 27-Sep-2016
469,Revenue,CAHD,Home Care - Elderly - South,Day Care / Social Activities,Cleeve Court Care Home,899.80, 27-Sep-2016
470,Revenue,CAHD,Bed Purchasing - South,Permanent Residential,Cleeve Lodge,588.00, 27-Sep-2016
471,Revenue,CAHD,Bed Purchasing - Southmead Hospital,Permanent Residential,Cleeve Lodge,1494.76, 27-Sep-2016
472,Revenue,CAHD,Bed Purchasing - South,Permanent Residential,Cleeve Lodge,1769.56, 27-Sep-2016
473,Revenue,CAHD,Bed Purchasing - South,Respite Planned - Residential,Cleeve Lodge,1290.00, 27-Sep-2016
474,Revenue,CAHD,Bed Purchasing - South,Permanent Residential,Cleeve Lodge,1855.40, 27-Sep-2016
475,Revenue,CAHD,Bed Purchasing - South,Permanent Residential,Cleeve Lodge,1852.60, 27-Sep-2016
476,Revenue,CAHD,Bed Purchasing - South,Permanent Residential,Collingwood Residential Home,1467.24, 27-Sep-2016
477,Revenue,CAHD,Bed Purchasing - Southmead Hospital,Permanent Residential,Collingwood Residential Home,1424.48, 27-Sep-2016
478,Revenue,CAHD,Bed Purchasing - South,Permanent Residential,Collingwood Residential Home,1484.12, 27-Sep-2016
479,Revenue,CAHD,Home Care - Elderly - South,Day Care / Social Activities,Collingwood Residential Home,553.44, 27-Sep-2016
480,Revenue,CAHD,Bed Purchasing - South,Permanent Residential,Collingwood Residential Home,1461.76, 27-Sep-2016
481,Revenue,CAHD,Bed Purchasing - South,Permanent Residential,Collingwood Residential Home,1677.20, 27-Sep-2016
482,Revenue,CAHD,Bed Purchasing - South,Permanent Residential,Collingwood Residential Home,1437.60, 27-Sep-2016
483,Revenue,CAHD,Bed Purchasing - South,Permanent Residential,Collingwood Residential Home,1374.16, 27-Sep-2016
484,Revenue,CAHD,Bed Purchasing - South,Permanent Nursing,Community Integrated Care,676.64, 27-Sep-2016
485,Revenue,CAHD,Bed and Breakfast,Bed & Breakfast,Connolly & Callaghan Limited,455.00, 30-Sep-2016
486,Revenue,CAHD,Bed and Breakfast,Bed & Breakfast,Connolly & Callaghan Limited,468.00, 19-Sep-2016
487,Revenue,CAHD,Bed and Breakfast,Bed & Breakfast,Connolly & Callaghan Limited,511.00, 01-Sep-2016
488,Revenue,CAHD,Bed and Breakfast,Bed & Breakfast,Connolly & Callaghan Limited,546.00, 01-Sep-2016
489,Revenue,CAHD,Bed and Breakfast,Bed & Breakfast,Connolly & Callaghan Limited,476.00, 01-Sep-2016
490,Revenue,CAHD,Bed and Breakfast,Bed & Breakfast,Connolly & Callaghan Limited,581.00, 01-Sep-2016
491,Revenue,CAHD,Bed and Breakfast,Bed & Breakfast,Connolly & Callaghan Limited,511.00, 07-Sep-2016
492,Revenue,CAHD,Bed and Breakfast,Bed & Breakfast,Connolly & Callaghan Limited,441.00, 01-Sep-2016
493,Revenue,CAHD,Bed and Breakfast,Bed & Breakfast,Connolly & Callaghan Limited,476.00, 01-Sep-2016
494,Revenue,CAHD,Bed and Breakfast,Bed & Breakfast,Connolly & Callaghan Limited,546.00, 01-Sep-2016
495,Revenue,CAHD,Bed and Breakfast,Bed & Breakfast,Connolly & Callaghan Limited,546.00, 01-Sep-2016
496,Revenue,CAHD,Bed and Breakfast,Bed & Breakfast,Connolly & Callaghan Limited,511.00, 01-Sep-2016
497,Revenue,CAHD,Bed and Breakfast,Bed & Breakfast,Connolly & Callaghan Limited,616.00, 01-Sep-2016
498,Revenue,CAHD,Bed and Breakfast,Bed & Breakfast,Connolly & Callaghan Limited,476.00, 01-Sep-2016
499,Revenue,CAHD,Bed and Breakfast,Bed & Breakfast,Connolly & Callaghan Limited,546.00, 01-Sep-2016
500,Revenue,CAHD,Bed and Breakfast,Bed & Breakfast,Connolly & Callaghan Limited,511.00, 08-Sep-2016
501,Revenue,CAHD,Bed and Breakfast,Bed & Breakfast,Connolly & Callaghan Limited,546.00, 08-Sep-2016
502,Revenue,CAHD,Bed and Breakfast,Bed & Breakfast,Connolly & Callaghan Limited,476.00, 08-Sep-2016
503,Revenue,CAHD,Bed and Breakfast,Bed & Breakfast,Connolly & Callaghan Limited,581.00, 08-Sep-2016
504,Revenue,CAHD,Bed and Breakfast,Bed & Breakfast,Connolly & Callaghan Limited,511.00, 08-Sep-2016
505,Revenue,CAHD,Bed and Breakfast,Bed & Breakfast,Connolly & Callaghan Limited,441.00, 08-Sep-2016
506,Revenue,CAHD,Bed and Breakfast,Bed & Breakfast,Connolly & Callaghan Limited,476.00, 08-Sep-2016
507,Revenue,CAHD,Bed and Breakfast,Bed & Breakfast,Connolly & Callaghan Limited,546.00, 08-Sep-2016
508,Revenue,CAHD,Bed and Breakfast,Bed & Breakfast,Connolly & Callaghan Limited,546.00, 30-Sep-2016
509,Revenue,CAHD,Bed and Breakfast,Bed & Breakfast,Connolly & Callaghan Limited,616.00, 08-Sep-2016
510,Revenue,CAHD,Bed and Breakfast,Bed & Breakfast,Connolly & Callaghan Limited,476.00, 08-Sep-2016
511,Revenue,CAHD,Bed and Breakfast,Bed & Breakfast,Connolly & Callaghan Limited,546.00, 08-Sep-2016
512,Revenue,CAHD,Bed and Breakfast,Bed & Breakfast,Connolly & Callaghan Limited,438.00, 12-Sep-2016
513,Revenue,CAHD,Bed and Breakfast,Bed & Breakfast,Connolly & Callaghan Limited,546.00, 12-Sep-2016
514,Revenue,CAHD,Bed and Breakfast,Bed & Breakfast,Connolly & Callaghan Limited,476.00, 12-Sep-2016
515,Revenue,CAHD,Bed and Breakfast,Bed & Breakfast,Connolly & Callaghan Limited,581.00, 14-Sep-2016
516,Revenue,CAHD,Bed and Breakfast,Bed & Breakfast,Connolly & Callaghan Limited,511.00, 12-Sep-2016
517,Revenue,CAHD,Bed and Breakfast,Bed & Breakfast,Connolly & Callaghan Limited,441.00, 12-Sep-2016
518,Revenue,CAHD,Bed and Breakfast,Bed & Breakfast,Connolly & Callaghan Limited,476.00, 12-Sep-2016
519,Revenue,CAHD,Bed and Breakfast,Bed & Breakfast,Connolly & Callaghan Limited,546.00, 12-Sep-2016
520,Revenue,CAHD,Bed and Breakfast,Bed & Breakfast,Connolly & Callaghan Limited,546.00, 14-Sep-2016
521,Revenue,CAHD,Bed and Breakfast,Bed & Breakfast,Connolly & Callaghan Limited,616.00, 12-Sep-2016
522,Revenue,CAHD,Bed and Breakfast,Bed & Breakfast,Connolly & Callaghan Limited,476.00, 12-Sep-2016
523,Revenue,CAHD,Bed and Breakfast,Bed & Breakfast,Connolly & Callaghan Limited,546.00, 12-Sep-2016
524,Revenue,CAHD,Bed and Breakfast,Bed & Breakfast,Connolly & Callaghan Limited,438.00, 12-Sep-2016
525,Revenue,CAHD,Bed and Breakfast,Bed & Breakfast,Connolly & Callaghan Limited,468.00, 19-Sep-2016
526,Revenue,CAHD,Bed Purchasing - S28A - Over 65- North,Permanent Residential,Cream Ii Ltd  Longrun House,8222.76, 27-Sep-2016
527,Revenue,CAHD,Bed Purchasing - South,Permanent Residential,Cream Ii Ltd  Longrun House,3083.64, 27-Sep-2016
528,Revenue,CAHD,Jointly Funded H&SC Packages,Permanent Residential,Cream Ii Ltd  Longrun House,2683.04, 27-Sep-2016
529,Revenue,CAHD,Bed purchasing -S28A  Under 65 - North,Permanent Residential,Creedy Court,9527.44, 27-Sep-2016
530,Revenue,CAHD,Bed Purchasing - S28A - Over 65- North,Permanent Residential,Creedy Court,7901.72, 27-Sep-2016
531,Revenue,CAHD,Bed Purchasing - North,Permanent Residential,Creedy Court,12895.24, 27-Sep-2016
532,Revenue,CAHD,Brokerage and Information Service,Grants to Voluntary Bodies,Curo Care & Support,33845.00, 30-Sep-2016
533,Revenue,CAHD,Bed Purchasing - South,Permanent Residential,Daneswood,11269.36, 27-Sep-2016
534,Revenue,CAHD,Bed Purchasing - North,Permanent Residential,Daneswood,9343.92, 27-Sep-2016
535,Revenue,CAHD,Bed Purchasing - Elderly S117- North,Permanent Nursing,Danshell Healthcare Group,10285.72, 27-Sep-2016
536,Revenue,CAHD,Jointly Funded H&SC Packages,Permanent Nursing,Danshell Healthcare Group,1526.28, 27-Sep-2016
537,Revenue,CAHD,Learning Difficulties PSL,Other Supplies & Services,Individual,2105.50, 22-Sep-2016
538,Revenue,CAHD,SLA Grants - Support Serv,Grants to Voluntary Bodies,Delia Robins,500.00, 28-Sep-2016
539,Revenue,CAHD,Home Care - Elderly - South,Supported Living,Design House,2711.04, 27-Sep-2016
540,Revenue,CAHD,Home Care - Elderly - South,Supported Living,Design House,2898.08, 27-Sep-2016
541,Revenue,CAHD,Home Care - Elderly - South,Supported Living,Design House,2964.08, 27-Sep-2016
542,Revenue,CAHD,Home Care - Elderly - South,Supported Living,Design House,2832.08, 27-Sep-2016
543,Revenue,CAHD,Home Care - Elderly - South,Supported Living,Design House,2496.52, 27-Sep-2016
544,Revenue,CAHD,Home Care - Elderly - South,Supported Living,Design House,2496.52, 27-Sep-2016
545,Revenue,CAHD,Home Care - Elderly - South,Supported Living,Design House,4539.14, 27-Sep-2016
546,Revenue,CAHD,Home Care - Elderly - South,Supported Living,Design House,1741.04, 27-Sep-2016
547,Revenue,CAHD,Home Care - Elderly - South,Supported Living,Design House,2381.04, 27-Sep-2016
548,Revenue,CAHD,Home Care - Elderly - South,Supported Living,Design House,3852.08, 27-Sep-2016
549,Revenue,CAHD,Home Care - Elderly - South,Supported Living,Design House,2744.04, 27-Sep-2016
550,Revenue,CAHD,Home Care - Elderly - South,Supported Living,Design House,2793.56, 27-Sep-2016
551,Revenue,CAHD,Home Care - Elderly - South,Supported Living,Design House,2135.92, 27-Sep-2016
552,Revenue,CAHD,Home Care - Elderly - South,Supported Living,Design House,9078.28, 27-Sep-2016
553,Revenue,CAHD,Home Care - Elderly - South,Supported Living,Design House,2135.92, 27-Sep-2016
554,Revenue,CAHD,Bed Purchasing - South,Permanent Residential,Devon & Cornwall Autistic Community Trus,9082.00, 27-Sep-2016
555,Revenue,CAHD,Bed Purchasing - South,Permanent Residential,Dimensions  Suite 2,5005.24, 27-Sep-2016
556,Revenue,CAHD,Community Support - North,Preventative Assistance,Dobbins Industrial Cleaning Limited,1480.00, 12-Sep-2016
557,Revenue,CAHD,Home Care - Elderly - South,Day Care / Social Activities,DoCare Ltd,71.40, 14-Sep-2016
558,Revenue,CAHD,Home Care - Elderly - South,Other Small Contracts,DoCare Ltd,576.30, 14-Sep-2016
559,Revenue,CAHD,Home Care - Elderly - North,Other Small Contracts,DoCare Ltd,2603.10, 14-Sep-2016
560,Revenue,CAHD,Home Care - Elderly - South,Day Care / Social Activities,DoCare Ltd,71.40, 15-Sep-2016
561,Revenue,CAHD,Home Care - Elderly - South,Other Small Contracts,DoCare Ltd,520.20, 15-Sep-2016
562,Revenue,CAHD,Home Care - Elderly - North,Other Small Contracts,DoCare Ltd,3356.40, 15-Sep-2016
563,Revenue,CAHD,Home Care - Elderly - South,Day Care / Social Activities,DoCare Ltd,71.40, 29-Sep-2016
564,Revenue,CAHD,Home Care - Elderly - South,Other Small Contracts,DoCare Ltd,550.80, 29-Sep-2016
565,Revenue,CAHD,Home Care - Elderly - North,Other Small Contracts,DoCare Ltd,3849.90, 29-Sep-2016
566,Revenue,CAHD,Home Care - Elderly - South,Day Care / Social Activities,DoCare Ltd,76.50, 29-Sep-2016
567,Revenue,CAHD,Home Care - Elderly - South,Other Small Contracts,DoCare Ltd,561.00, 29-Sep-2016
568,Revenue,CAHD,Home Care - Elderly - North,Other Small Contracts,DoCare Ltd,4333.80, 29-Sep-2016
569,Revenue,CAHD,Social Lettings Agency,Other Supplies & Services,Individual,605.64, 23-Sep-2016
570,Revenue,CAHD,Bed Purchasing - North,Permanent Nursing,Drakes Court,1367.72, 27-Sep-2016
571,Revenue,CAHD,South Glos Users in South Glos Homes,Permanent Nursing,Drakes Court,625.00, 27-Sep-2016
572,Revenue,CAHD,South Glos Users in South Glos Homes,Permanent Nursing,Drakes Court,625.00, 27-Sep-2016
573,Revenue,CAHD,Bed Purchasing - Southmead Hospital,Permanent Nursing,Drakes Court,1371.64, 27-Sep-2016
574,Revenue,CAHD,South Glos Users in South Glos Homes,Permanent Nursing,Drakes Court,625.00, 27-Sep-2016
575,Revenue,CAHD,Bed Purchasing - Southmead Hospital,Permanent Nursing,Drakes Court,680.40, 27-Sep-2016
576,Revenue,CAHD,South Glos Users in South Glos Homes,Permanent Nursing,Drakes Court,625.00, 27-Sep-2016
577,Revenue,CAHD,South Glos Users in South Glos Homes,Permanent Nursing,Drakes Court,625.00, 27-Sep-2016
578,Revenue,CAHD,Bed Purchasing - North,Permanent Nursing,Drakes Court,867.32, 27-Sep-2016
579,Revenue,CAHD,South Glos Users in South Glos Homes,Permanent Nursing,Drakes Court,625.00, 27-Sep-2016
580,Revenue,CAHD,South Glos Users in South Glos Homes,Permanent Nursing,Drakes Court,625.00, 27-Sep-2016
581,Revenue,CAHD,Bed Purchasing - Southmead Hospital,Permanent Residential,Drakes Court,1252.24, 27-Sep-2016
582,Revenue,CAHD,South Glos Users in South Glos Homes,Permanent Nursing,Drakes Court,625.00, 27-Sep-2016
583,Revenue,CAHD,Bed Purchasing - North,Permanent Nursing,Drakes Court,1287.84, 27-Sep-2016
584,Revenue,CAHD,Bed Purchasing - Southmead Hospital,Permanent Nursing,Drakes Court,1152.76, 27-Sep-2016
585,Revenue,CAHD,South Glos Users in South Glos Homes,Permanent Nursing,Drakes Court,625.00, 27-Sep-2016
586,Revenue,CAHD,Bed Purchasing - North,Permanent Residential,Drakes Court,1320.52, 27-Sep-2016
587,Revenue,CAHD,Bed Purchasing - Southmead Hospital,Permanent Nursing,Drakes Court,1257.40, 27-Sep-2016
588,Revenue,CAHD,South Glos Users in South Glos Homes,Permanent Nursing,Drakes Court,625.00, 27-Sep-2016
589,Revenue,CAHD,Bed Purchasing - North,Permanent Nursing,Drakes Court,1731.20, 27-Sep-2016
590,Revenue,CAHD,South Glos Users in South Glos Homes,Permanent Nursing,Drakes Court,625.00, 27-Sep-2016
591,Revenue,CAHD,Bed Purchasing - Southmead Hospital,Permanent Nursing,Drakes Court,1050.08, 27-Sep-2016
592,Revenue,CAHD,South Glos Users in South Glos Homes,Permanent Nursing,Drakes Court,625.00, 27-Sep-2016
593,Revenue,CAHD,South Glos Users in South Glos Homes,Permanent Nursing,Drakes Court,625.00, 27-Sep-2016
594,Revenue,CAHD,South Glos Users in South Glos Homes,Permanent Nursing,Drakes Court,625.00, 27-Sep-2016
595,Revenue,CAHD,South Glos Users in South Glos Homes,Permanent Nursing,Drakes Court,625.00, 27-Sep-2016
596,Revenue,CAHD,MH Purchasing - Younger,Permanent Residential,Dunraven House,1843.20, 27-Sep-2016
597,Revenue,CAHD,Bed and Breakfast,Bed & Breakfast,E J Bartlett,434.00, 08-Sep-2016
598,Revenue,CAHD,Bed and Breakfast,Bed & Breakfast,E J Bartlett,648.00, 08-Sep-2016
599,Revenue,CAHD,Bed and Breakfast,Bed & Breakfast,E J Bartlett,420.00, 08-Sep-2016
600,Revenue,CAHD,Bed and Breakfast,Bed & Breakfast,E J Bartlett,434.00, 15-Sep-2016
601,Revenue,CAHD,Bed and Breakfast,Bed & Breakfast,E J Bartlett,504.00, 14-Sep-2016
602,Revenue,CAHD,Bed and Breakfast,Bed & Breakfast,E J Bartlett,420.00, 14-Sep-2016
603,Revenue,CAHD,Bed and Breakfast,Bed & Breakfast,E J Bartlett,434.00, 26-Sep-2016
604,Revenue,CAHD,Bed and Breakfast,Bed & Breakfast,E J Bartlett,504.00, 15-Sep-2016
605,Revenue,CAHD,Bed and Breakfast,Bed & Breakfast,E J Bartlett,420.00, 15-Sep-2016
606,Revenue,CAHD,Bed and Breakfast,Bed & Breakfast,E J Bartlett,560.00, 26-Sep-2016
607,Revenue,CAHD,Bed and Breakfast,Bed & Breakfast,E J Bartlett,434.00, 27-Sep-2016
608,Revenue,CAHD,Bed and Breakfast,Bed & Breakfast,E J Bartlett,504.00, 27-Sep-2016
609,Revenue,CAHD,Bed and Breakfast,Bed & Breakfast,E J Bartlett,420.00, 27-Sep-2016
610,Revenue,CAHD,Bed Purchasing - North,Permanent Residential,East Court,2292.68, 27-Sep-2016
611,Revenue,CAHD,Home Care - Elderly - South,Day Care / Social Activities,Easton Community Centre,533.28, 27-Sep-2016
612,Revenue,CAHD,Home Care - Elderly - South,Day Care / Social Activities,Easton Community Centre,533.28, 27-Sep-2016
613,Revenue,CAHD,Home Care - Elderly - North,Day Care / Social Activities,Easton Community Centre,533.28, 27-Sep-2016
614,Revenue,CAHD,Home Care - Elderly - South,Day Care / Social Activities,Eclipse Office Park,753.12, 27-Sep-2016
615,Revenue,CAHD,Home Care - Elderly - South,Day Care / Social Activities,Eclipse Office Park,502.08, 27-Sep-2016
616,Revenue,CAHD,Home Care - Elderly - North,Day Care / Social Activities,Eclipse Office Park,1004.16, 27-Sep-2016
617,Revenue,CAHD,Home Care - Elderly - South,Day Care / Social Activities,Eclipse Office Park,502.08, 27-Sep-2016
618,Revenue,CAHD,Home Care - Elderly - South,Day Care / Social Activities,Eclipse Office Park,502.08, 27-Sep-2016
619,Revenue,CAHD,Home Care - Elderly - South,Day Care / Social Activities,Eclipse Office Park,878.64, 27-Sep-2016
620,Revenue,CAHD,Home Care - Elderly - South,Day Care / Social Activities,Eclipse Office Park,753.12, 27-Sep-2016
621,Revenue,CAHD,Home Care - Elderly - South,Day Care / Social Activities,Eclipse Office Park,878.64, 27-Sep-2016
622,Revenue,CAHD,Home Care - Elderly - South,Day Care / Social Activities,Eclipse Office Park,502.08, 27-Sep-2016
623,Revenue,CAHD,Home Care - Elderly - South,Day Care / Social Activities,Eclipse Office Park,502.08, 27-Sep-2016
624,Revenue,CAHD,Home Care - Elderly - South,Day Care / Social Activities,Eclipse Office Park,1255.20, 27-Sep-2016
625,Revenue,CAHD,Home Care - Elderly - South,Day Care / Social Activities,Eclipse Office Park,753.12, 27-Sep-2016
626,Revenue,CAHD,Home Care - Elderly - South,Day Care / Social Activities,Eclipse Office Park,1004.16, 27-Sep-2016
627,Revenue,CAHD,Home Care - Elderly - South,Day Care / Social Activities,Eclipse Office Park,878.64, 27-Sep-2016
628,Revenue,CAHD,18-25 Year Olds,Day Care / Social Activities,Eclipse Office Park,502.08, 27-Sep-2016
629,Revenue,CAHD,MH Purchasing - Younger,Permanent Residential,Eclipse Office Park,6211.04, 27-Sep-2016
630,Revenue,CAHD,Bed Purchasing - North,Permanent Residential,Edgecumbe Lodge,6080.20, 27-Sep-2016
631,Revenue,CAHD,Bed Purchasing - North,Permanent Residential,Edgecumbe Lodge,1737.20, 27-Sep-2016
632,Revenue,CAHD,Bed Purchasing - Southmead Hospital,Permanent Residential,Edgecumbe Lodge,1831.32, 27-Sep-2016
633,Revenue,CAHD,Bed Purchasing - South,Permanent Residential,Edgecumbe Lodge,1073.52, 27-Sep-2016
634,Revenue,CAHD,Bed Purchasing - Southmead Hospital,Permanent Residential,Edgecumbe Lodge,1628.76, 27-Sep-2016
635,Revenue,CAHD,Bed Purchasing - South,Permanent Residential,Edgecumbe Lodge,1559.32, 27-Sep-2016
636,Revenue,CAHD,Bed Purchasing - North,Permanent Residential,Edgecumbe Lodge,1039.76, 27-Sep-2016
637,Revenue,CAHD,Bed Purchasing - South,Permanent Residential,Edgecumbe Lodge,1590.12, 27-Sep-2016
638,Revenue,CAHD,Bed Purchasing - North,Permanent Residential,Edgecumbe Lodge,1465.28, 27-Sep-2016
639,Revenue,CAHD,Bed Purchasing - Southmead Hospital,Permanent Residential,Edgemont House Ltd,1329.68, 27-Sep-2016
640,Revenue,CAHD,Bed Purchasing - Southmead Hospital,Respite Planned - Residential,Edgemont House Ltd,2000.00, 27-Sep-2016
641,Revenue,CAHD,Bed Purchasing - South,Permanent Residential,Edgemont House Ltd,1332.56, 27-Sep-2016
642,Revenue,CAHD,South Glos Users in South Glos Homes,Permanent Nursing,Edgemont View Nursing Home,625.00, 27-Sep-2016
643,Revenue,CAHD,South Glos Users in South Glos Homes,Permanent Nursing,Edgemont View Nursing Home,625.00, 27-Sep-2016
644,Revenue,CAHD,South Glos Users in South Glos Homes,Permanent Nursing,Edgemont View Nursing Home,625.00, 27-Sep-2016
645,Revenue,CAHD,South Glos Users in South Glos Homes,Permanent Nursing,Edgemont View Nursing Home,625.00, 27-Sep-2016
646,Revenue,CAHD,South Glos Users in South Glos Homes,Permanent Nursing,Edgemont View Nursing Home,625.00, 27-Sep-2016
647,Revenue,CAHD,South Glos Users in South Glos Homes,Permanent Nursing,Edgemont View Nursing Home,625.00, 27-Sep-2016
648,Revenue,CAHD,South Glos Users in South Glos Homes,Permanent Nursing,Edgemont View Nursing Home,625.00, 27-Sep-2016
649,Revenue,CAHD,South Glos Users in South Glos Homes,Permanent Nursing,Edgemont View Nursing Home,625.00, 27-Sep-2016
650,Revenue,CAHD,South Glos Users in South Glos Homes,Permanent Nursing,Edgemont View Nursing Home,625.00, 27-Sep-2016
651,Revenue,CAHD,South Glos Users in South Glos Homes,Permanent Nursing,Edgemont View Nursing Home,625.00, 27-Sep-2016
652,Revenue,CAHD,South Glos Users in South Glos Homes,Permanent Nursing,Edgemont View Nursing Home,1227.68, 27-Sep-2016
653,Revenue,CAHD,South Glos Users in South Glos Homes,Permanent Nursing,Edgemont View Nursing Home,625.00, 27-Sep-2016
654,Revenue,CAHD,South Glos Users in South Glos Homes,Permanent Nursing,Edgemont View Nursing Home,1696.43, 27-Sep-2016
655,Revenue,CAHD,South Glos Users in South Glos Homes,Permanent Nursing,Edgemont View Nursing Home,625.00, 27-Sep-2016
656,Revenue,CAHD,Bed Purchasing - South,Permanent Nursing,Edgemont View Nursing Home,1776.28, 27-Sep-2016
657,Revenue,CAHD,South Glos Users in South Glos Homes,Permanent Nursing,Edgemont View Nursing Home,625.00, 27-Sep-2016
658,Revenue,CAHD,Bed Purchasing - South,Permanent Nursing,Edgemont View Nursing Home,1660.08, 27-Sep-2016
659,Revenue,CAHD,South Glos Users in South Glos Homes,Permanent Nursing,Edgemont View Nursing Home,625.00, 27-Sep-2016
660,Revenue,CAHD,South Glos Users in South Glos Homes,Permanent Nursing,Edgemont View Nursing Home,625.00, 27-Sep-2016
661,Revenue,CAHD,South Glos Users in South Glos Homes,Permanent Nursing,Edgemont View Nursing Home,625.00, 27-Sep-2016
662,Revenue,CAHD,South Glos Users in South Glos Homes,Permanent Nursing,Edgemont View Nursing Home,625.00, 27-Sep-2016
663,Revenue,CAHD,South Glos Users in South Glos Homes,Permanent Nursing,Edgemont View Nursing Home,625.00, 27-Sep-2016
664,Revenue,CAHD,South Glos Users in South Glos Homes,Permanent Nursing,Edgemont View Nursing Home,625.00, 27-Sep-2016
665,Revenue,CAHD,Bed Purchasing - Southmead Hospital,Permanent Nursing,Edgemont View Nursing Home,2357.20, 27-Sep-2016
666,Revenue,CAHD,Bed Purchasing - Southmead Hospital,Permanent Nursing,Edgemont View Nursing Home,1767.90, 27-Sep-2016
667,Revenue,CAHD,Planning and Partnerships Procurement,Other Supplies & Services,Eldercare,3059.76, 30-Sep-2016
668,Revenue,CAHD,Supporting People Programme,Grants to Voluntary Bodies,Elim Housing Association Limited,5139.16, 01-Sep-2016
669,Revenue,CAHD,Supporting People Programme,Grants to Voluntary Bodies,Elim Housing Association Limited,5139.16, 30-Sep-2016
670,Revenue,CAHD,Home Care - Elderly - South,Day Care / Social Activities,Elite Home Care Ltd,188.16, 07-Sep-2016
671,Revenue,CAHD,Home Care - Elderly - South,Other Small Contracts,Elite Home Care Ltd,6575.24, 07-Sep-2016
672,Revenue,CAHD,Home Care - Elderly - South,Day Care / Social Activities,Elite Home Care Ltd,179.20, 07-Sep-2016
673,Revenue,CAHD,Home Care - Elderly - South,Other Small Contracts,Elite Home Care Ltd,6440.84, 07-Sep-2016
674,Revenue,CAHD,Home Care - Elderly - South,Day Care / Social Activities,Elite Home Care Ltd,152.32, 15-Sep-2016
675,Revenue,CAHD,Home Care - Elderly - South,Other Small Contracts,Elite Home Care Ltd,6401.02, 15-Sep-2016
676,Revenue,CAHD,Bed Purchasing - North,Permanent Residential,Epworth House,1060.80, 27-Sep-2016
677,Revenue,CAHD,Home Care - Elderly - South,Other Small Contracts,Everycare (Bristol) Ltd,3514.16, 01-Sep-2016
678,Revenue,CAHD,Home Care - Elderly - North,Other Small Contracts,Everycare (Bristol) Ltd,1931.48, 01-Sep-2016
679,Revenue,CAHD,Home Care - Elderly - South,Other Small Contracts,Everycare (Bristol) Ltd,3466.20, 01-Sep-2016
680,Revenue,CAHD,Home Care - Elderly - North,Other Small Contracts,Everycare (Bristol) Ltd,1722.20, 01-Sep-2016
681,Revenue,CAHD,Home Care - Elderly - South,Other Small Contracts,Everycare (Bristol) Ltd,3518.52, 29-Sep-2016
682,Revenue,CAHD,Home Care - Elderly - North,Other Small Contracts,Everycare (Bristol) Ltd,1953.28, 29-Sep-2016
683,Revenue,CAHD,Home Care - Elderly - South,Other Small Contracts,Everycare (Bristol) Ltd,3343.30, 29-Sep-2016
684,Revenue,CAHD,Home Care - Elderly - North,Other Small Contracts,Everycare (Bristol) Ltd,2001.24, 29-Sep-2016
685,Revenue,CAHD,Home Care - Elderly - South,Other Small Contracts,Everycare (Bristol) Ltd,3509.80, 29-Sep-2016
686,Revenue,CAHD,Home Care - Elderly - North,Other Small Contracts,Everycare (Bristol) Ltd,1726.56, 29-Sep-2016
687,Revenue,CAHD,Home Care - Elderly - South,Other Small Contracts,Everycare (Bristol) Ltd,3444.40, 29-Sep-2016
688,Revenue,CAHD,Home Care - Elderly - North,Other Small Contracts,Everycare (Bristol) Ltd,1900.96, 29-Sep-2016
689,Revenue,CAHD,Home Care - Elderly - South,Other Small Contracts,Everycare (Bristol) Ltd,3352.84, 29-Sep-2016
690,Revenue,CAHD,Home Care - Elderly - North,Other Small Contracts,Everycare (Bristol) Ltd,1918.40, 29-Sep-2016
691,Revenue,CAHD,Homeless - Private Sector Leasing,Prop.Serv. General Repairs,Express Property Services Limited,2381.07, 21-Sep-2016
692,Revenue,CAHD,Homeless - Private Sector Leasing,Prop.Serv. General Repairs,Express Property Services Limited,1448.53, 21-Sep-2016
693,Revenue,CAHD,Homeless - Private Sector Leasing,Prop.Serv. General Repairs,Express Property Services Limited,1111.90, 01-Sep-2016
694,Revenue,CAHD,South Glos Users in South Glos Homes,Permanent Nursing,Fairview Court,625.00, 27-Sep-2016
695,Revenue,CAHD,South Glos Users in South Glos Homes,Permanent Nursing,Fairview Court,625.00, 27-Sep-2016
696,Revenue,CAHD,Bed Purchasing - South,Permanent Nursing,Fairview Court,2469.36, 27-Sep-2016
697,Revenue,CAHD,South Glos Users in South Glos Homes,Permanent Nursing,Fairview Court,625.00, 27-Sep-2016
698,Revenue,CAHD,Bed Purchasing - Southmead Hospital,Permanent Nursing,Fairview Court,1910.88, 27-Sep-2016
699,Revenue,CAHD,South Glos Users in South Glos Homes,Permanent Nursing,Fairview Court,625.00, 27-Sep-2016
700,Revenue,CAHD,South Glos Users in South Glos Homes,Permanent Nursing,Fairview Court,625.00, 27-Sep-2016
701,Revenue,CAHD,South Glos Users in South Glos Homes,Permanent Nursing,Fairview Court,625.00, 27-Sep-2016
702,Revenue,CAHD,Bed Purchasing - Southmead Hospital,Permanent Nursing,Fairview Court,2183.72, 27-Sep-2016
703,Revenue,CAHD,South Glos Users in South Glos Homes,Permanent Nursing,Fairview Court,625.00, 27-Sep-2016
704,Revenue,CAHD,Bed Purchasing - South,Permanent Nursing,Fairview Court,1110.52, 27-Sep-2016
705,Revenue,CAHD,South Glos Users in South Glos Homes,Permanent Nursing,Fairview Court,625.00, 27-Sep-2016
706,Revenue,CAHD,Bed purchasing - Elderly S117 - South,Permanent Nursing,Fairview Court,2040.00, 27-Sep-2016
707,Revenue,CAHD,South Glos Users in South Glos Homes,Permanent Nursing,Fairview Court,625.00, 27-Sep-2016
708,Revenue,CAHD,Bed Purchasing - South,Permanent Nursing,Fairview Court,1591.68, 27-Sep-2016
709,Revenue,CAHD,South Glos Users in South Glos Homes,Permanent Nursing,Fairview Court,625.00, 27-Sep-2016
710,Revenue,CAHD,South Glos Users in South Glos Homes,Permanent Nursing,Fairview Court,625.00, 27-Sep-2016
711,Revenue,CAHD,South Glos Users in South Glos Homes,Permanent Nursing,Fairview Court,625.00, 27-Sep-2016
712,Revenue,CAHD,South Glos Users in South Glos Homes,Permanent Nursing,Fairview Court,2566.96, 27-Sep-2016
713,Revenue,CAHD,South Glos Users in South Glos Homes,Permanent Nursing,Fairview Court,625.00, 27-Sep-2016
714,Revenue,CAHD,South Glos Users in South Glos Homes,Permanent Nursing,Fairview Court,625.00, 27-Sep-2016
715,Revenue,CAHD,South Glos Users in South Glos Homes,Permanent Nursing,Fairview Court,625.00, 27-Sep-2016
716,Revenue,CAHD,South Glos Users in South Glos Homes,Permanent Nursing,Fairview Court,625.00, 27-Sep-2016
717,Revenue,CAHD,Bed Purchasing - South,Permanent Nursing,Fairview Court,2224.72, 27-Sep-2016
718,Revenue,CAHD,South Glos Users in South Glos Homes,Permanent Nursing,Fairview Court,625.00, 27-Sep-2016
719,Revenue,CAHD,Bed Purchasing - Southmead Hospital,Permanent Nursing,Fairview Court,2766.90, 27-Sep-2016
720,Revenue,CAHD,Bed Purchasing - Southmead Hospital,Permanent Nursing,Fairview Court,2213.52, 27-Sep-2016
721,Revenue,CAHD,South Glos Users in South Glos Homes,Permanent Nursing,Fairview Court,781.25, 27-Sep-2016
722,Revenue,CAHD,South Glos Users in South Glos Homes,Permanent Nursing,Fairview Court,625.00, 27-Sep-2016
723,Revenue,CAHD,South Glos Users in South Glos Homes,Permanent Nursing,Fairview Court,625.00, 27-Sep-2016
724,Revenue,CAHD,South Glos Users in South Glos Homes,Permanent Nursing,Fairview Court,625.00, 27-Sep-2016
725,Revenue,CAHD,Bed Purchasing - Southmead Hospital,Permanent Nursing,Fairview Court,2529.20, 27-Sep-2016
726,Revenue,CAHD,South Glos Users in South Glos Homes,Permanent Nursing,Fairview Court,2299.11, 27-Sep-2016
727,Revenue,CAHD,South Glos Users in South Glos Homes,Permanent Nursing,Fairview Court,625.00, 27-Sep-2016
728,Revenue,CAHD,South Glos Users in South Glos Homes,Permanent Nursing,Fairview Court,625.00, 27-Sep-2016
729,Revenue,CAHD,South Glos Users in South Glos Homes,Permanent Nursing,Fairview Court,625.00, 27-Sep-2016
730,Revenue,CAHD,South Glos Users in South Glos Homes,Permanent Nursing,Fairview Court,625.00, 27-Sep-2016
731,Revenue,CAHD,South Glos Users in South Glos Homes,Permanent Nursing,Fairview Court,625.00, 27-Sep-2016
732,Revenue,CAHD,South Glos Users in South Glos Homes,Permanent Nursing,Fairview Court,625.00, 27-Sep-2016
733,Revenue,CAHD,Bed Purchasing - South,Permanent Nursing,Fairview Court,1894.88, 27-Sep-2016
734,Revenue,CAHD,South Glos Users in South Glos Homes,Permanent Nursing,Fairview Court,625.00, 27-Sep-2016
735,Revenue,CAHD,South Glos Users in South Glos Homes,Permanent Nursing,Fairview Court,758.93, 27-Sep-2016
736,Revenue,CAHD,South Glos Users in South Glos Homes,Permanent Nursing,Fairview Court,625.00, 27-Sep-2016
737,Revenue,CAHD,Bed Purchasing - North,Permanent Nursing,Fairview Court,2485.36, 27-Sep-2016
738,Revenue,CAHD,South Glos Users in South Glos Homes,Permanent Nursing,Fairview Court,625.00, 27-Sep-2016
739,Revenue,CAHD,Bed Purchasing - South,Permanent Nursing,Fairview Court,1807.52, 27-Sep-2016
740,Revenue,CAHD,South Glos Users in South Glos Homes,Permanent Nursing,Fairview Court,625.00, 27-Sep-2016
741,Revenue,CAHD,Bed Purchasing - South,Permanent Nursing,Fairview Court,2035.76, 27-Sep-2016
742,Revenue,CAHD,South Glos Users in South Glos Homes,Permanent Nursing,Fairview Court,625.00, 27-Sep-2016
743,Revenue,CAHD,Bed purchasing - Elderly S117 - South,Permanent Residential,Fairview House,1998.08, 27-Sep-2016
744,Revenue,CAHD,Bed Purchasing - Southmead Hospital,Permanent Residential,Fairview House,1085.08, 27-Sep-2016
745,Revenue,CAHD,Bed Purchasing - South,Permanent Residential,Fairview House,910.92, 27-Sep-2016
746,Revenue,CAHD,Bed Purchasing - South,Permanent Residential,Fairview House,767.48, 27-Sep-2016
747,Revenue,CAHD,Bed Purchasing - South,Permanent Residential,Fairview House,1316.52, 27-Sep-2016
748,Revenue,CAHD,Bed Purchasing - South,Permanent Residential,Fairview House,1015.00, 27-Sep-2016
749,Revenue,CAHD,Bed Purchasing - South,Permanent Residential,Fairview House,1269.84, 27-Sep-2016
750,Revenue,CAHD,Bed Purchasing - South,Permanent Residential,Fairview House,1177.84, 27-Sep-2016
751,Revenue,CAHD,Bed Purchasing - South,Permanent Residential,Fairview House,1398.52, 27-Sep-2016
752,Revenue,CAHD,Bed Purchasing - South,Permanent Residential,Fairview House,1086.44, 27-Sep-2016
753,Revenue,CAHD,Bed Purchasing - South,Permanent Residential,Fairview House,1475.08, 27-Sep-2016
754,Revenue,CAHD,Bed Purchasing - Southmead Hospital,Permanent Residential,Faith House,605.56, 27-Sep-2016
755,Revenue,CAHD,Bed Purchasing - Southmead Hospital,Permanent Residential,Faith House,1286.72, 27-Sep-2016
756,Revenue,CAHD,Bed Purchasing - North,Permanent Residential,Fernbank,7388.40, 27-Sep-2016
757,Revenue,CAHD,Bed Purchasing - Southmead Hospital,Permanent Nursing,Field House Care Home,2413.32, 27-Sep-2016
758,Revenue,CAHD,Bed Purchasing - Southmead Hospital,Permanent Nursing,Field House Care Home,1987.44, 27-Sep-2016
759,Revenue,CAHD,Bed Purchasing - North,Permanent Nursing,Field House Care Home,1027.08, 27-Sep-2016
760,Revenue,CAHD,Bed Purchasing - North,Permanent Nursing,Field House Care Home,2554.96, 27-Sep-2016
761,Revenue,CAHD,Bed Purchasing - Southmead Hospital,Permanent Nursing,Field House Care Home,2227.92, 27-Sep-2016
762,Revenue,CAHD,Bed purchasing - Elderly S117 - South,Permanent Nursing,Fieldview,3400.00, 27-Sep-2016
763,Revenue,CAHD,Home Care - Elderly - South,Other Small Contracts,Firstpoint Homecare Ltd,1678.75, 15-Sep-2016
764,Revenue,CAHD,Home Care - Elderly - North,Day Care / Social Activities,Firstpoint Homecare Ltd,118.50, 15-Sep-2016
765,Revenue,CAHD,Home Care - Elderly - North,Other Small Contracts,Firstpoint Homecare Ltd,331.80, 15-Sep-2016
766,Revenue,CAHD,Home Care - Elderly - South,Other Small Contracts,Firstpoint Homecare Ltd,1639.25, 07-Sep-2016
767,Revenue,CAHD,Home Care - Elderly - North,Day Care / Social Activities,Firstpoint Homecare Ltd,118.50, 07-Sep-2016
768,Revenue,CAHD,Home Care - Elderly - North,Other Small Contracts,Firstpoint Homecare Ltd,359.45, 07-Sep-2016
769,Revenue,CAHD,Home Care - Elderly - South,Other Small Contracts,Firstpoint Homecare Ltd,1576.05, 01-Sep-2016
770,Revenue,CAHD,Home Care - Elderly - North,Day Care / Social Activities,Firstpoint Homecare Ltd,118.50, 01-Sep-2016
771,Revenue,CAHD,Home Care - Elderly - North,Other Small Contracts,Firstpoint Homecare Ltd,304.15, 01-Sep-2016
772,Revenue,CAHD,Home Care - Elderly - South,Other Small Contracts,Firstpoint Homecare Ltd,1516.80, 01-Sep-2016
773,Revenue,CAHD,Home Care - Elderly - North,Day Care / Social Activities,Firstpoint Homecare Ltd,118.50, 01-Sep-2016
774,Revenue,CAHD,Home Care - Elderly - North,Other Small Contracts,Firstpoint Homecare Ltd,335.75, 01-Sep-2016
775,Revenue,CAHD,Home Care - Elderly - South,Other Small Contracts,Firstpoint Homecare Ltd,1489.15, 15-Sep-2016
776,Revenue,CAHD,Home Care - Elderly - North,Day Care / Social Activities,Firstpoint Homecare Ltd,118.50, 15-Sep-2016
777,Revenue,CAHD,Home Care - Elderly - North,Other Small Contracts,Firstpoint Homecare Ltd,327.85, 15-Sep-2016
778,Revenue,CAHD,Home Care - Elderly - South,Other Small Contracts,Firstpoint Homecare Ltd,1516.80, 15-Sep-2016
779,Revenue,CAHD,Home Care - Elderly - North,Day Care / Social Activities,Firstpoint Homecare Ltd,118.50, 15-Sep-2016
780,Revenue,CAHD,Home Care - Elderly - North,Other Small Contracts,Firstpoint Homecare Ltd,343.65, 15-Sep-2016
781,Revenue,CAHD,Home Care - Elderly - South,Other Small Contracts,Firstpoint Homecare Ltd,1200.80, 15-Sep-2016
782,Revenue,CAHD,Home Care - Elderly - North,Day Care / Social Activities,Firstpoint Homecare Ltd,118.50, 15-Sep-2016
783,Revenue,CAHD,Home Care - Elderly - North,Other Small Contracts,Firstpoint Homecare Ltd,319.95, 15-Sep-2016
784,Revenue,CAHD,Home Care - Elderly - South,Other Small Contracts,Firstpoint Homecare Ltd,1311.40, 15-Sep-2016
785,Revenue,CAHD,Home Care - Elderly - North,Other Small Contracts,Firstpoint Homecare Ltd,343.65, 15-Sep-2016
786,Revenue,CAHD,Home Care - Elderly - South,Other Small Contracts,Firstpoint Homecare Ltd,1295.60, 15-Sep-2016
787,Revenue,CAHD,Home Care - Elderly - North,Day Care / Social Activities,Firstpoint Homecare Ltd,118.50, 15-Sep-2016
788,Revenue,CAHD,Home Care - Elderly - North,Other Small Contracts,Firstpoint Homecare Ltd,319.95, 15-Sep-2016
789,Revenue,CAHD,Home Care - Elderly - South,Other Small Contracts,Firstpoint Homecare Ltd,1279.80, 29-Sep-2016
790,Revenue,CAHD,Home Care - Elderly - North,Day Care / Social Activities,Firstpoint Homecare Ltd,102.70, 29-Sep-2016
791,Revenue,CAHD,Home Care - Elderly - North,Other Small Contracts,Firstpoint Homecare Ltd,343.65, 29-Sep-2016
792,Revenue,CAHD,Home Care - Elderly - South,Other Small Contracts,Firstpoint Homecare Ltd,1188.95, 29-Sep-2016
793,Revenue,CAHD,Home Care - Elderly - North,Day Care / Social Activities,Firstpoint Homecare Ltd,118.50, 29-Sep-2016
794,Revenue,CAHD,Home Care - Elderly - North,Other Small Contracts,Firstpoint Homecare Ltd,319.95, 29-Sep-2016
795,Revenue,CAHD,Home Care - Elderly - South,Day Care / Social Activities,Fourways Care Limited,414.52, 07-Sep-2016
796,Revenue,CAHD,Home Care - Elderly - South,Other Small Contracts,Fourways Care Limited,6205.08, 07-Sep-2016
797,Revenue,CAHD,Home Care - Elderly - North,Day Care / Social Activities,Fourways Care Limited,197.62, 07-Sep-2016
798,Revenue,CAHD,Home Care - Elderly - North,Other Small Contracts,Fourways Care Limited,2993.22, 07-Sep-2016
799,Revenue,CAHD,Younger MH non-res purchasing,Other Small Contracts,Fourways Care Limited,163.88, 07-Sep-2016
800,Revenue,CAHD,Home Care - Elderly - South,Day Care / Social Activities,Fourways Care Limited,404.88, 01-Sep-2016
801,Revenue,CAHD,Home Care - Elderly - South,Other Small Contracts,Fourways Care Limited,6947.36, 01-Sep-2016
802,Revenue,CAHD,Home Care - Elderly - North,Day Care / Social Activities,Fourways Care Limited,197.62, 01-Sep-2016
803,Revenue,CAHD,Home Care - Elderly - North,Other Small Contracts,Fourways Care Limited,3075.16, 01-Sep-2016
804,Revenue,CAHD,Younger MH non-res purchasing,Other Small Contracts,Fourways Care Limited,163.88, 01-Sep-2016
805,Revenue,CAHD,Home Care - Elderly - South,Day Care / Social Activities,Fourways Care Limited,414.52, 07-Sep-2016
806,Revenue,CAHD,Home Care - Elderly - South,Other Small Contracts,Fourways Care Limited,7061.68, 07-Sep-2016
807,Revenue,CAHD,Home Care - Elderly - North,Day Care / Social Activities,Fourways Care Limited,183.16, 07-Sep-2016
808,Revenue,CAHD,Home Care - Elderly - North,Other Small Contracts,Fourways Care Limited,3089.62, 07-Sep-2016
809,Revenue,CAHD,Younger MH non-res purchasing,Other Small Contracts,Fourways Care Limited,134.96, 07-Sep-2016
810,Revenue,CAHD,Home Care - Elderly - South,Day Care / Social Activities,Fourways Care Limited,428.98, 15-Sep-2016
811,Revenue,CAHD,Home Care - Elderly - South,Other Small Contracts,Fourways Care Limited,6415.80, 15-Sep-2016
812,Revenue,CAHD,Home Care - Elderly - North,Day Care / Social Activities,Fourways Care Limited,197.62, 15-Sep-2016
813,Revenue,CAHD,Home Care - Elderly - North,Other Small Contracts,Fourways Care Limited,3624.64, 15-Sep-2016
814,Revenue,CAHD,Younger MH non-res purchasing,Other Small Contracts,Fourways Care Limited,57.84, 15-Sep-2016
815,Revenue,CAHD,Home Care - Elderly - South,Day Care / Social Activities,Fourways Care Limited,404.88, 29-Sep-2016
816,Revenue,CAHD,Home Care - Elderly - South,Other Small Contracts,Fourways Care Limited,6341.40, 29-Sep-2016
817,Revenue,CAHD,Home Care - Elderly - North,Day Care / Social Activities,Fourways Care Limited,207.26, 29-Sep-2016
818,Revenue,CAHD,Home Care - Elderly - North,Other Small Contracts,Fourways Care Limited,3619.82, 29-Sep-2016
819,Revenue,CAHD,Younger MH non-res purchasing,Other Small Contracts,Fourways Care Limited,86.76, 29-Sep-2016
820,Revenue,CAHD,Supporting People Programme,Grants to Voluntary Bodies,Freeways Trust Limited,5473.14, 01-Sep-2016
821,Revenue,CAHD,Supporting People Programme,Grants to Voluntary Bodies,Freeways Trust Limited,5473.14, 30-Sep-2016
822,Revenue,CAHD,Freeways,Permanent Residential,Freeways Trust Limited,3705.32, 20-Sep-2016
823,Revenue,CAHD,Freeways,Permanent Residential,Freeways Trust Limited,2331.13, 20-Sep-2016
824,Revenue,CAHD,Freeways,Permanent Residential,Freeways Trust Limited,2409.93, 20-Sep-2016
825,Revenue,CAHD,Freeways,Permanent Residential,Freeways Trust Limited,3393.81, 20-Sep-2016
826,Revenue,CAHD,Freeways,Permanent Residential,Freeways Trust Limited,2331.13, 20-Sep-2016
827,Revenue,CAHD,Freeways,Permanent Residential,Freeways Trust Limited,3454.92, 20-Sep-2016
828,Revenue,CAHD,Freeways,Permanent Residential,Freeways Trust Limited,2997.80, 20-Sep-2016
829,Revenue,CAHD,Freeways,Permanent Residential,Freeways Trust Limited,3614.51, 20-Sep-2016
830,Revenue,CAHD,Freeways,Permanent Residential,Freeways Trust Limited,2749.17, 20-Sep-2016
831,Revenue,CAHD,Freeways,Permanent Residential,Freeways Trust Limited,3508.85, 20-Sep-2016
832,Revenue,CAHD,Freeways,Permanent Residential,Freeways Trust Limited,3158.33, 20-Sep-2016
833,Revenue,CAHD,Freeways,Permanent Residential,Freeways Trust Limited,2731.73, 20-Sep-2016
834,Revenue,CAHD,Freeways,Permanent Residential,Freeways Trust Limited,7455.24, 20-Sep-2016
835,Revenue,CAHD,Freeways,Permanent Residential,Freeways Trust Limited,2208.93, 20-Sep-2016
836,Revenue,CAHD,Freeways,Permanent Residential,Freeways Trust Limited,1656.70, 20-Sep-2016
837,Revenue,CAHD,Freeways,Permanent Residential,Freeways Trust Limited,3705.32, 09-Sep-2016
838,Revenue,CAHD,Freeways,Permanent Residential,Freeways Trust Limited,2331.13, 09-Sep-2016
839,Revenue,CAHD,Freeways,Permanent Residential,Freeways Trust Limited,2409.93, 09-Sep-2016
840,Revenue,CAHD,Freeways,Permanent Residential,Freeways Trust Limited,3393.81, 09-Sep-2016
841,Revenue,CAHD,Freeways,Permanent Residential,Freeways Trust Limited,2331.13, 09-Sep-2016
842,Revenue,CAHD,Freeways,Permanent Residential,Freeways Trust Limited,3454.92, 09-Sep-2016
843,Revenue,CAHD,Freeways,Permanent Residential,Freeways Trust Limited,975.62, 09-Sep-2016
844,Revenue,CAHD,Freeways,Permanent Residential,Freeways Trust Limited,1927.16, 09-Sep-2016
845,Revenue,CAHD,Freeways,Permanent Residential,Freeways Trust Limited,3614.51, 09-Sep-2016
846,Revenue,CAHD,Freeways,Permanent Residential,Freeways Trust Limited,2731.73, 09-Sep-2016
847,Revenue,CAHD,Freeways,Permanent Residential,Freeways Trust Limited,2749.17, 09-Sep-2016
848,Revenue,CAHD,Freeways,Permanent Residential,Freeways Trust Limited,3508.85, 09-Sep-2016
849,Revenue,CAHD,Freeways,Permanent Residential,Freeways Trust Limited,3158.33, 09-Sep-2016
850,Revenue,CAHD,Freeways,Permanent Residential,Freeways Trust Limited,2731.73, 09-Sep-2016
851,Revenue,CAHD,Freeways,Permanent Residential,Freeways Trust Limited,7455.24, 09-Sep-2016
852,Revenue,CAHD,Home Care - Elderly - South,Day Care / Social Activities,Freeways Trust Limited,1109.52, 13-Sep-2016
853,Revenue,CAHD,Home Care - Elderly - South,Day Care / Social Activities,Freeways Trust Limited,1170.16, 12-Sep-2016
854,Revenue,CAHD,Home Care - Elderly - North,Day Care / Social Activities,Freeways Trust Ltd,1317.68, 27-Sep-2016
855,Revenue,CAHD,Home Care - Elderly - North,Supported Living,Freeways Trust Ltd,600.00, 27-Sep-2016
856,Revenue,CAHD,Bed Purchasing - North,Permanent Residential,Freeways Trust Ltd,2960.12, 27-Sep-2016
857,Revenue,CAHD,Bed purchasing - S28A Under 65 - South,Permanent Residential,Freeways Trust Ltd,3023.48, 27-Sep-2016
858,Revenue,CAHD,Bed Purchasing - North,Permanent Residential,Freeways Trust Ltd,3238.60, 27-Sep-2016
859,Revenue,CAHD,Bed Purchasing - North,Permanent Residential,Freeways Trust Ltd,2827.28, 27-Sep-2016
860,Revenue,CAHD,Bed Purchasing - South,Permanent Residential,Freeways Trust Ltd,3375.48, 27-Sep-2016
861,Revenue,CAHD,Bed Purchasing - North,Permanent Residential,Freeways Trust Ltd,2328.44, 27-Sep-2016
862,Revenue,CAHD,Bed Purchasing - South,Permanent Residential,Freeways Trust Ltd,2481.04, 27-Sep-2016
863,Revenue,CAHD,Bed Purchasing - North,Permanent Residential,Freeways Trust Ltd,2748.48, 27-Sep-2016
864,Revenue,CAHD,Bed Purchasing - North,Permanent Residential,Freeways Trust Ltd,3246.40, 27-Sep-2016
865,Revenue,CAHD,18-25 Year Olds,Permanent Residential,Freeways Trust Ltd,3481.92, 27-Sep-2016
866,Revenue,CAHD,Bed Purchasing - North,Permanent Residential,Freeways Trust Ltd,3956.56, 27-Sep-2016
867,Revenue,CAHD,Pathway 3 - (Complex Beds),Permanent Nursing,Frenchay House,3162.00, 09-Sep-2016
868,Revenue,CAHD,Community Support - South,Preventative Assistance,Friends for Pets North Bristol Ltd,674.50, 21-Sep-2016
869,Revenue,CAHD,Bed Purchasing - South,Permanent Nursing,Fshc  1St Floor,911.04, 27-Sep-2016
870,Revenue,CAHD,South Glos Users in South Glos Homes,Permanent Nursing,Fshc  1St Floor,625.00, 27-Sep-2016
871,Revenue,CAHD,Swift Dump Code,Permanent Residential,Fshc  1St Floor,5872.24, 27-Sep-2016
872,Revenue,CAHD,Bed Purchasing - South,Permanent Nursing,Fshc  1St Floor,1067.68, 27-Sep-2016
873,Revenue,CAHD,Bed Purchasing - Southmead Hospital,Permanent Nursing,Fshc  1St Floor,1349.96, 27-Sep-2016
874,Revenue,CAHD,Bed Purchasing - South,Permanent Nursing,Fshc  1St Floor,1130.16, 27-Sep-2016
875,Revenue,CAHD,South Glos Users in South Glos Homes,Permanent Nursing,Fshc  1St Floor,625.00, 27-Sep-2016
876,Revenue,CAHD,Bed Purchasing - Southmead Hospital,Permanent Nursing,Fshc  1St Floor,2029.20, 27-Sep-2016
877,Revenue,CAHD,Bed Purchasing - Southmead Hospital,Permanent Nursing,Fshc  1St Floor,869.65, 27-Sep-2016
878,Revenue,CAHD,Bed Purchasing - Southmead Hospital,Permanent Nursing,Fshc  1St Floor,1433.28, 27-Sep-2016
879,Revenue,CAHD,South Glos Users in South Glos Homes,Permanent Nursing,Fshc  1St Floor,625.00, 27-Sep-2016
880,Revenue,CAHD,South Glos Users in South Glos Homes,Permanent Nursing,Fshc  1St Floor,625.00, 27-Sep-2016
881,Revenue,CAHD,Bed Purchasing - Southmead Hospital,Permanent Nursing,Fshc  1St Floor,1479.92, 27-Sep-2016
882,Revenue,CAHD,South Glos Users in South Glos Homes,Permanent Nursing,Fshc  1St Floor,625.00, 27-Sep-2016
883,Revenue,CAHD,Swift Dump Code,Permanent Residential,Fshc  1St Floor,2477.28, 27-Sep-2016
884,Revenue,CAHD,South Glos Users in South Glos Homes,Permanent Nursing,Fshc  1St Floor,625.00, 27-Sep-2016
885,Revenue,CAHD,South Glos Users in South Glos Homes,Permanent Nursing,Fshc  1St Floor,2633.93, 27-Sep-2016
886,Revenue,CAHD,South Glos Users in South Glos Homes,Permanent Nursing,Fshc  1St Floor,625.00, 27-Sep-2016
887,Revenue,CAHD,Bed Purchasing - Southmead Hospital,Permanent Nursing,Fshc  1St Floor,1515.92, 27-Sep-2016
888,Revenue,CAHD,South Glos Users in South Glos Homes,Permanent Nursing,Fshc  1St Floor,625.00, 27-Sep-2016
889,Revenue,CAHD,Bed Purchasing - Southmead Hospital,Permanent Nursing,Fshc  1St Floor,1190.92, 27-Sep-2016
890,Revenue,CAHD,South Glos Users in South Glos Homes,Permanent Nursing,Fshc  1St Floor,625.00, 27-Sep-2016
891,Revenue,CAHD,South Glos Users in South Glos Homes,Permanent Nursing,Fshc  1St Floor,625.00, 27-Sep-2016
892,Revenue,CAHD,Bed Purchasing - South,Permanent Nursing,Fshc  1St Floor,1759.84, 27-Sep-2016
893,Revenue,CAHD,Bed Purchasing - Southmead Hospital,Permanent Nursing,Fshc  1St Floor,1759.84, 27-Sep-2016
894,Revenue,CAHD,Bed Purchasing - South,Permanent Nursing,Fshc  1St Floor,1729.20, 27-Sep-2016
895,Revenue,CAHD,South Glos Users in South Glos Homes,Permanent Nursing,Fshc  1St Floor,625.00, 27-Sep-2016
896,Revenue,CAHD,South Glos Users in South Glos Homes,Permanent Nursing,Fshc  1St Floor,625.00, 27-Sep-2016
897,Revenue,CAHD,Bed Purchasing - Southmead Hospital,Permanent Nursing,Fshc  1St Floor,1515.92, 27-Sep-2016
898,Revenue,CAHD,South Glos Users in South Glos Homes,Permanent Nursing,Fshc  1St Floor,625.00, 27-Sep-2016
899,Revenue,CAHD,Bed Purchasing - Southmead Hospital,Permanent Nursing,Fshc  1St Floor,2148.28, 27-Sep-2016
900,Revenue,CAHD,South Glos Users in South Glos Homes,Permanent Nursing,Fshc  1St Floor,625.00, 27-Sep-2016
901,Revenue,CAHD,Bed Purchasing - South,Permanent Nursing,Fshc  1St Floor,1470.72, 27-Sep-2016
902,Revenue,CAHD,South Glos Users in South Glos Homes,Permanent Nursing,Fshc  1St Floor,625.00, 27-Sep-2016
903,Revenue,CAHD,Bed Purchasing - Southmead Hospital,Permanent Nursing,Fshc  1St Floor,1515.92, 27-Sep-2016
904,Revenue,CAHD,South Glos Users in South Glos Homes,Permanent Nursing,Fshc  1St Floor,625.00, 27-Sep-2016
905,Revenue,CAHD,Bed Purchasing - Southmead Hospital,Permanent Residential,Fshc  1St Floor,545.56, 27-Sep-2016
906,Revenue,CAHD,Bed Purchasing - South,Permanent Nursing,Fshc  1St Floor,1295.64, 27-Sep-2016
907,Revenue,CAHD,Bed Purchasing - North,Permanent Nursing,Fshc  1St Floor,2038.72, 27-Sep-2016
908,Revenue,CAHD,South Glos Users in South Glos Homes,Permanent Nursing,Fshc  1St Floor,625.00, 27-Sep-2016
909,Revenue,CAHD,South Glos Users in South Glos Homes,Permanent Nursing,Fshc  1St Floor,625.00, 27-Sep-2016
910,Revenue,CAHD,Bed Purchasing - Southmead Hospital,Permanent Nursing,Fshc  1St Floor,1331.36, 27-Sep-2016
911,Revenue,CAHD,South Glos Users in South Glos Homes,Permanent Nursing,Fshc  1St Floor,625.00, 27-Sep-2016
912,Revenue,CAHD,Bed Purchasing - South,Permanent Nursing,Fshc  1St Floor,1515.92, 27-Sep-2016
913,Revenue,CAHD,South Glos Users in South Glos Homes,Permanent Nursing,Fshc  1St Floor,625.00, 27-Sep-2016
914,Revenue,CAHD,South Glos Users in South Glos Homes,Permanent Nursing,Fshc  1St Floor,625.00, 27-Sep-2016
915,Revenue,CAHD,Bed Purchasing - South,Permanent Nursing,Fshc  1St Floor,1480.20, 27-Sep-2016
916,Revenue,CAHD,Bed Purchasing - North,Permanent Nursing,Fshc  1St Floor,1590.48, 27-Sep-2016
917,Revenue,CAHD,South Glos Users in South Glos Homes,Permanent Nursing,Fshc  1St Floor,625.00, 27-Sep-2016
918,Revenue,CAHD,Bed Purchasing - Southmead Hospital,Permanent Nursing,Fshc  1St Floor,1515.92, 27-Sep-2016
919,Revenue,CAHD,South Glos Users in South Glos Homes,Permanent Nursing,Fshc  1St Floor,625.00, 27-Sep-2016
920,Revenue,CAHD,South Glos Users in South Glos Homes,Permanent Nursing,Fshc  1St Floor,625.00, 27-Sep-2016
921,Revenue,CAHD,Bed Purchasing - Southmead Hospital,Permanent Nursing,Fshc  1St Floor,1729.20, 27-Sep-2016
922,Revenue,CAHD,Bed Purchasing - Southmead Hospital,Permanent Nursing,Fshc  1St Floor,802.84, 27-Sep-2016
923,Revenue,CAHD,South Glos Users in South Glos Homes,Permanent Nursing,Fshc  1St Floor,625.00, 27-Sep-2016
924,Revenue,CAHD,Bed Purchasing - North,Permanent Nursing,Fshc  1St Floor,1219.00, 27-Sep-2016
925,Revenue,CAHD,South Glos Users in South Glos Homes,Permanent Nursing,Fshc  1St Floor,625.00, 27-Sep-2016
926,Revenue,CAHD,Bed Purchasing - South,Permanent Nursing,Fshc  1St Floor,1296.12, 27-Sep-2016
927,Revenue,CAHD,South Glos Users in South Glos Homes,Permanent Nursing,Fshc  1St Floor,625.00, 27-Sep-2016
928,Revenue,CAHD,Bed Purchasing - Southmead Hospital,Permanent Nursing,Fshc  1St Floor,1146.00, 27-Sep-2016
929,Revenue,CAHD,South Glos Users in South Glos Homes,Permanent Nursing,Fshc  1St Floor,625.00, 27-Sep-2016
930,Revenue,CAHD,South Glos Users in South Glos Homes,Permanent Nursing,Fshc  1St Floor,625.00, 27-Sep-2016
931,Revenue,CAHD,Bed Purchasing - Southmead Hospital,Permanent Nursing,Fshc  1St Floor,1761.16, 27-Sep-2016
932,Revenue,CAHD,South Glos Users in South Glos Homes,Permanent Nursing,Fshc  1St Floor,625.00, 27-Sep-2016
933,Revenue,CAHD,Bed Purchasing - North,Permanent Nursing,Fshc  1St Floor,1402.36, 27-Sep-2016
934,Revenue,CAHD,South Glos Users in South Glos Homes,Permanent Nursing,Fshc  1St Floor,625.00, 27-Sep-2016
935,Revenue,CAHD,Bed Purchasing - Southmead Hospital,Permanent Nursing,Fshc  1St Floor,1056.36, 27-Sep-2016
936,Revenue,CAHD,South Glos Users in South Glos Homes,Permanent Nursing,Fshc  1St Floor,625.00, 27-Sep-2016
937,Revenue,CAHD,Bed Purchasing - Southmead Hospital,Permanent Residential,Fshc  1St Floor,1275.44, 27-Sep-2016
938,Revenue,CAHD,South Glos Users in South Glos Homes,Permanent Nursing,Fshc  1St Floor,625.00, 27-Sep-2016
939,Revenue,CAHD,Bed Purchasing - Southmead Hospital,Permanent Nursing,Fshc  1St Floor,1229.48, 27-Sep-2016
940,Revenue,CAHD,South Glos Users in South Glos Homes,Permanent Nursing,Fshc  1St Floor,625.00, 27-Sep-2016
941,Revenue,CAHD,Bed Purchasing - Southmead Hospital,Permanent Nursing,Fshc  1St Floor,1253.44, 27-Sep-2016
942,Revenue,CAHD,South Glos Users in South Glos Homes,Permanent Nursing,Fshc  1St Floor,625.00, 27-Sep-2016
943,Revenue,CAHD,South Glos Users in South Glos Homes,Permanent Nursing,Fshc  1St Floor,625.00, 27-Sep-2016
944,Revenue,CAHD,South Glos Users in South Glos Homes,Permanent Nursing,Fshc  1St Floor,625.00, 27-Sep-2016
945,Revenue,CAHD,Bed Purchasing - Southmead Hospital,Permanent Nursing,Fshc  1St Floor,1515.92, 27-Sep-2016
946,Revenue,CAHD,South Glos Users in South Glos Homes,Permanent Nursing,Fshc  1St Floor,625.00, 27-Sep-2016
947,Revenue,CAHD,Bed Purchasing - North,Permanent Nursing,Fshc  1St Floor,1451.48, 27-Sep-2016
948,Revenue,CAHD,South Glos Users in South Glos Homes,Permanent Nursing,Fshc  1St Floor,625.00, 27-Sep-2016
949,Revenue,CAHD,South Glos Users in South Glos Homes,Permanent Nursing,Fshc  1St Floor,625.00, 27-Sep-2016
950,Revenue,CAHD,Bed Purchasing - North,Permanent Nursing,Fshc  1St Floor,1337.64, 27-Sep-2016
951,Revenue,CAHD,Bed Purchasing - North,Permanent Residential,Fshc  1St Floor,1237.92, 27-Sep-2016
952,Revenue,CAHD,South Glos Users in South Glos Homes,Permanent Nursing,Fshc  1St Floor,625.00, 27-Sep-2016
953,Revenue,CAHD,South Glos Users in South Glos Homes,Permanent Nursing,Fshc  1St Floor,625.00, 27-Sep-2016
954,Revenue,CAHD,South Glos Users in South Glos Homes,Permanent Nursing,Fshc  1St Floor,625.00, 27-Sep-2016
955,Revenue,CAHD,South Glos Users in South Glos Homes,Permanent Nursing,Fshc  1St Floor,625.00, 27-Sep-2016
956,Revenue,CAHD,Bed Purchasing - Southmead Hospital,Permanent Nursing,Fshc  1St Floor,2227.20, 27-Sep-2016
957,Revenue,CAHD,South Glos Users in South Glos Homes,Permanent Nursing,Fshc  1St Floor,625.00, 27-Sep-2016
958,Revenue,CAHD,Bed Purchasing - Southmead Hospital,Permanent Nursing,Fshc  1St Floor,1515.92, 27-Sep-2016
959,Revenue,CAHD,South Glos Users in South Glos Homes,Permanent Nursing,Fshc  1St Floor,625.00, 27-Sep-2016
960,Revenue,CAHD,Bed Purchasing - North,Permanent Nursing,Fshc  1St Floor,667.16, 27-Sep-2016
961,Revenue,CAHD,South Glos Users in South Glos Homes,Permanent Nursing,Fshc  1St Floor,625.00, 27-Sep-2016
962,Revenue,CAHD,Bed Purchasing - Southmead Hospital,Permanent Residential,Fshc  1St Floor,1367.12, 27-Sep-2016
963,Revenue,CAHD,Bed Purchasing - North,Permanent Nursing,Fshc  1St Floor,1396.84, 27-Sep-2016
964,Revenue,CAHD,South Glos Users in South Glos Homes,Permanent Nursing,Fshc  1St Floor,625.00, 27-Sep-2016
965,Revenue,CAHD,Bed Purchasing - North,Permanent Nursing,Fshc  1St Floor,1029.60, 27-Sep-2016
966,Revenue,CAHD,South Glos Users in South Glos Homes,Permanent Nursing,Fshc  1St Floor,625.00, 27-Sep-2016
967,Revenue,CAHD,Bed Purchasing - North,Permanent Nursing,Fshc  1St Floor,1515.92, 27-Sep-2016
968,Revenue,CAHD,South Glos Users in South Glos Homes,Permanent Nursing,Fshc  1St Floor,625.00, 27-Sep-2016
969,Revenue,CAHD,Bed Purchasing - North,Permanent Nursing,Fshc  1St Floor,1701.12, 27-Sep-2016
970,Revenue,CAHD,South Glos Users in South Glos Homes,Permanent Nursing,Fshc  1St Floor,625.00, 27-Sep-2016
971,Revenue,CAHD,Bed Purchasing - North,Permanent Residential,Fshc  1St Floor,1449.16, 27-Sep-2016
972,Revenue,CAHD,South Glos Users in South Glos Homes,Permanent Nursing,Fshc  1St Floor,625.00, 27-Sep-2016
973,Revenue,CAHD,Bed Purchasing - North,Permanent Nursing,Fshc  1St Floor,1128.32, 27-Sep-2016
974,Revenue,CAHD,South Glos Users in South Glos Homes,Permanent Nursing,Fshc  1St Floor,625.00, 27-Sep-2016
975,Revenue,CAHD,Bed Purchasing - North,Permanent Nursing,Fshc  1St Floor,2038.72, 27-Sep-2016
976,Revenue,CAHD,South Glos Users in South Glos Homes,Permanent Nursing,Fshc  1St Floor,625.00, 27-Sep-2016
977,Revenue,CAHD,Bed Purchasing - North,Permanent Residential,Fshc  1St Floor,1394.20, 27-Sep-2016
978,Revenue,CAHD,South Glos Users in South Glos Homes,Permanent Nursing,Fshc  1St Floor,625.00, 27-Sep-2016
979,Revenue,CAHD,South Glos Users in South Glos Homes,Permanent Nursing,Fshc  1St Floor,625.00, 27-Sep-2016
980,Revenue,CAHD,Bed Purchasing - Southmead Hospital,Permanent Nursing,Fshc  1St Floor,1229.60, 27-Sep-2016
981,Revenue,CAHD,South Glos Users in South Glos Homes,Permanent Nursing,Fshc  1St Floor,625.00, 27-Sep-2016
982,Revenue,CAHD,Bed Purchasing - North,Permanent Nursing,Fshc  1St Floor,1547.92, 27-Sep-2016
983,Revenue,CAHD,South Glos Users in South Glos Homes,Permanent Nursing,Fshc  1St Floor,625.00, 27-Sep-2016
984,Revenue,CAHD,Bed Purchasing - North,Permanent Residential,Fshc  1St Floor,1553.04, 27-Sep-2016
985,Revenue,CAHD,Bed Purchasing - South,Respite Emergency - Nursing,Fshc  1St Floor,1904.00, 27-Sep-2016
986,Revenue,CAHD,Bed Purchasing - Southmead Hospital,Permanent Nursing,Fshc  1St Floor,1782.60, 27-Sep-2016
987,Revenue,CAHD,South Glos Users in South Glos Homes,Permanent Nursing,Fshc  1St Floor,625.00, 27-Sep-2016
988,Revenue,CAHD,South Glos Users in South Glos Homes,Permanent Nursing,Fshc  1St Floor,625.00, 27-Sep-2016
989,Revenue,CAHD,Bed Purchasing - North,Permanent Nursing,Fshc  1St Floor,1515.92, 27-Sep-2016
990,Revenue,CAHD,South Glos Users in South Glos Homes,Permanent Nursing,Fshc  1St Floor,625.00, 27-Sep-2016
991,Revenue,CAHD,Bed Purchasing - Southmead Hospital,Permanent Nursing,Fshc  1St Floor,1200.48, 27-Sep-2016
992,Revenue,CAHD,Bed Purchasing - South,Permanent Nursing,Fshc  1St Floor,1535.92, 27-Sep-2016
993,Revenue,CAHD,South Glos Users in South Glos Homes,Permanent Nursing,Fshc  1St Floor,625.00, 27-Sep-2016
994,Revenue,CAHD,South Glos Users in South Glos Homes,Permanent Nursing,Fshc  1St Floor,625.00, 27-Sep-2016
995,Revenue,CAHD,Bed Purchasing - Southmead Hospital,Permanent Nursing,Fshc  1St Floor,1316.52, 27-Sep-2016
996,Revenue,CAHD,South Glos Users in South Glos Homes,Permanent Nursing,Fshc  1St Floor,625.00, 27-Sep-2016
997,Revenue,CAHD,South Glos Users in South Glos Homes,Permanent Nursing,Fshc  1St Floor,625.00, 27-Sep-2016
998,Revenue,CAHD,South Glos Users in South Glos Homes,Permanent Nursing,Fshc  1St Floor,625.00, 27-Sep-2016
999,Revenue,CAHD,South Glos Users in South Glos Homes,Permanent Nursing,Fshc  1St Floor,625.00, 27-Sep-2016
1000,Revenue,CAHD,Bed Purchasing - North,Respite Planned - Nursing,Fshc  1St Floor,5458.29, 27-Sep-2016
1001,Revenue,CAHD,South Glos Users in South Glos Homes,Permanent Nursing,Fshc  1St Floor,625.00, 27-Sep-2016
1002,Revenue,CAHD,South Glos Users in South Glos Homes,Permanent Nursing,Fshc  1St Floor,625.00, 27-Sep-2016
1003,Revenue,CAHD,South Glos Users in South Glos Homes,Permanent Nursing,Fshc  1St Floor,625.00, 27-Sep-2016
1004,Revenue,CAHD,South Glos Users in South Glos Homes,Permanent Nursing,Fshc  1St Floor,625.00, 27-Sep-2016
1005,Revenue,CAHD,Bed Purchasing - Southmead Hospital,Permanent Residential,Fshc  1St Floor,1287.16, 27-Sep-2016
1006,Revenue,CAHD,South Glos Users in South Glos Homes,Permanent Nursing,Fshc  1St Floor,625.00, 27-Sep-2016
1007,Revenue,CAHD,South Glos Users in South Glos Homes,Permanent Nursing,Fshc  1St Floor,625.00, 27-Sep-2016
1008,Revenue,CAHD,Bed Purchasing - North,Permanent Nursing,Fshc  1St Floor,1018.12, 27-Sep-2016
1009,Revenue,CAHD,South Glos Users in South Glos Homes,Permanent Nursing,Fshc  1St Floor,625.00, 27-Sep-2016
1010,Revenue,CAHD,South Glos Users in South Glos Homes,Permanent Nursing,Fshc  1St Floor,3845.96, 27-Sep-2016
1011,Revenue,CAHD,South Glos Users in South Glos Homes,Permanent Nursing,Fshc  1St Floor,937.50, 27-Sep-2016
1012,Revenue,CAHD,South Glos Users in South Glos Homes,Permanent Nursing,Fshc  1St Floor,625.00, 27-Sep-2016
1013,Revenue,CAHD,Bed Purchasing - Southmead Hospital,Permanent Nursing,Fshc  1St Floor,1852.20, 27-Sep-2016
1014,Revenue,CAHD,Bed Purchasing - Southmead Hospital,Permanent Nursing,Fshc  1St Floor,1470.68, 27-Sep-2016
1015,Revenue,CAHD,South Glos Users in South Glos Homes,Permanent Nursing,Fshc  1St Floor,625.00, 27-Sep-2016
1016,Revenue,CAHD,Bed Purchasing - North,Permanent Nursing,Fshc  1St Floor,1140.76, 27-Sep-2016
1017,Revenue,CAHD,South Glos Users in South Glos Homes,Permanent Nursing,Fshc  1St Floor,625.00, 27-Sep-2016
1018,Revenue,CAHD,South Glos Users in South Glos Homes,Permanent Nursing,Fshc  1St Floor,625.00, 27-Sep-2016
1019,Revenue,CAHD,Bed Purchasing - North,Permanent Nursing,Fshc  1St Floor,1428.56, 27-Sep-2016
1020,Revenue,CAHD,South Glos Users in South Glos Homes,Permanent Nursing,Fshc  1St Floor,625.00, 27-Sep-2016
1021,Revenue,CAHD,South Glos Users in South Glos Homes,Permanent Nursing,Fshc  1St Floor,3035.71, 27-Sep-2016
1022,Revenue,CAHD,Bed Purchasing - Southmead Hospital,Permanent Nursing,Fshc  1St Floor,703.40, 27-Sep-2016
1023,Revenue,CAHD,South Glos Users in South Glos Homes,Permanent Nursing,Fshc  1St Floor,625.00, 27-Sep-2016
1024,Revenue,CAHD,Bed Purchasing - Southmead Hospital,Permanent Nursing,Fshc  1St Floor,1515.92, 27-Sep-2016
1025,Revenue,CAHD,South Glos Users in South Glos Homes,Permanent Nursing,Fshc  1St Floor,625.00, 27-Sep-2016
1026,Revenue,CAHD,Bed Purchasing - Southmead Hospital,Permanent Nursing,Fshc  1St Floor,1515.92, 27-Sep-2016
1027,Revenue,CAHD,South Glos Users in South Glos Homes,Permanent Nursing,Fshc  1St Floor,625.00, 27-Sep-2016
1028,Revenue,CAHD,Bed Purchasing - North,Permanent Nursing,Fshc  1St Floor,1728.60, 27-Sep-2016
1029,Revenue,CAHD,South Glos Users in South Glos Homes,Permanent Nursing,Fshc  1St Floor,625.00, 27-Sep-2016
1030,Revenue,CAHD,Bed Purchasing - North,Permanent Nursing,Fshc  1St Floor,1491.92, 27-Sep-2016
1031,Revenue,CAHD,South Glos Users in South Glos Homes,Permanent Nursing,Fshc  1St Floor,625.00, 27-Sep-2016
1032,Revenue,CAHD,South Glos Users in South Glos Homes,Permanent Nursing,Fshc  1St Floor,625.00, 27-Sep-2016
1033,Revenue,CAHD,Bed Purchasing - Southmead Hospital,Permanent Nursing,Fshc  1St Floor,1217.84, 27-Sep-2016
1034,Revenue,CAHD,South Glos Users in South Glos Homes,Permanent Nursing,Fshc  1St Floor,625.00, 27-Sep-2016
1035,Revenue,CAHD,Bed Purchasing - North,Permanent Nursing,Fshc  1St Floor,1443.20, 27-Sep-2016
1036,Revenue,CAHD,Bed Purchasing - North,Permanent Nursing,Fshc  1St Floor,3494.62, 27-Sep-2016
1037,Revenue,CAHD,South Glos Users in South Glos Homes,Permanent Nursing,Fshc  1St Floor,625.00, 27-Sep-2016
1038,Revenue,CAHD,Bed Purchasing - South,Permanent Nursing,Fshc  1St Floor,1320.08, 27-Sep-2016
1039,Revenue,CAHD,South Glos Users in South Glos Homes,Permanent Nursing,Fshc  1St Floor,625.00, 27-Sep-2016
1040,Revenue,CAHD,Bed Purchasing - South,Permanent Nursing,Fshc  1St Floor,1422.64, 27-Sep-2016
1041,Revenue,CAHD,South Glos Users in South Glos Homes,Permanent Nursing,Fshc  1St Floor,625.00, 27-Sep-2016
1042,Revenue,CAHD,Bed Purchasing - Southmead Hospital,Permanent Nursing,Fshc  1St Floor,1461.68, 27-Sep-2016
1043,Revenue,CAHD,South Glos Users in South Glos Homes,Permanent Nursing,Fshc  1St Floor,625.00, 27-Sep-2016
1044,Revenue,CAHD,Bed Purchasing - North,Permanent Nursing,Fshc  1St Floor,810.80, 27-Sep-2016
1045,Revenue,CAHD,South Glos Users in South Glos Homes,Permanent Nursing,Fshc  1St Floor,625.00, 27-Sep-2016
1046,Revenue,CAHD,Bed Purchasing - South,Permanent Nursing,Fshc  1St Floor,13074.01, 27-Sep-2016
1047,Revenue,CAHD,Bed Purchasing - South,Permanent Nursing,Fshc  1St Floor,2743.59, 27-Sep-2016
1048,Revenue,CAHD,Bed Purchasing - South,Permanent Nursing,Fshc  1St Floor,2038.72, 27-Sep-2016
1049,Revenue,CAHD,South Glos Users in South Glos Homes,Permanent Nursing,Fshc  1St Floor,625.00, 27-Sep-2016
1050,Revenue,CAHD,Bed Purchasing - Southmead Hospital,Permanent Residential,Fshc  1St Floor,1616.72, 27-Sep-2016
1051,Revenue,CAHD,Bed Purchasing - North,Permanent Nursing,Fshc  1St Floor,1265.84, 27-Sep-2016
1052,Revenue,CAHD,South Glos Users in South Glos Homes,Permanent Nursing,Fshc  1St Floor,625.00, 27-Sep-2016
1053,Revenue,CAHD,South Glos Users in South Glos Homes,Permanent Nursing,Fshc  1St Floor,625.00, 27-Sep-2016
1054,Revenue,CAHD,South Glos Users in South Glos Homes,Permanent Nursing,Fshc  1St Floor,625.00, 27-Sep-2016
1055,Revenue,CAHD,Bed Purchasing - South,Permanent Residential,Fshc  1St Floor,1182.00, 27-Sep-2016
1056,Revenue,CAHD,Bed Purchasing - North,Permanent Nursing,Fshc  1St Floor,1507.92, 27-Sep-2016
1057,Revenue,CAHD,South Glos Users in South Glos Homes,Permanent Nursing,Fshc  1St Floor,625.00, 27-Sep-2016
1058,Revenue,CAHD,Bed Purchasing - Southmead Hospital,Permanent Nursing,Fshc  1St Floor,1515.92, 27-Sep-2016
1059,Revenue,CAHD,South Glos Users in South Glos Homes,Permanent Nursing,Fshc  1St Floor,625.00, 27-Sep-2016
1060,Revenue,CAHD,Bed Purchasing - South,Permanent Nursing,Fshc  1St Floor,1249.88, 27-Sep-2016
1061,Revenue,CAHD,South Glos Users in South Glos Homes,Permanent Nursing,Fshc  1St Floor,625.00, 27-Sep-2016
1062,Revenue,CAHD,South Glos Users in South Glos Homes,Permanent Nursing,Fshc  1St Floor,625.00, 27-Sep-2016
1063,Revenue,CAHD,Bed Purchasing - South,Permanent Residential,Fshc  1St Floor,1453.20, 27-Sep-2016
1064,Revenue,CAHD,Bed Purchasing - Southmead Hospital,Permanent Nursing,Fshc  1St Floor,1379.32, 27-Sep-2016
1065,Revenue,CAHD,South Glos Users in South Glos Homes,Permanent Nursing,Fshc  1St Floor,625.00, 27-Sep-2016
1066,Revenue,CAHD,Bed Purchasing - Southmead Hospital,Permanent Nursing,Fshc  1St Floor,1707.12, 27-Sep-2016
1067,Revenue,CAHD,South Glos Users in South Glos Homes,Permanent Nursing,Fshc  1St Floor,625.00, 27-Sep-2016
1068,Revenue,CAHD,Bed Purchasing - South,Permanent Nursing,Fshc  1St Floor,1362.16, 27-Sep-2016
1069,Revenue,CAHD,South Glos Users in South Glos Homes,Permanent Nursing,Fshc  1St Floor,625.00, 27-Sep-2016
1070,Revenue,CAHD,Bed Purchasing - Southmead Hospital,Permanent Nursing,Fshc  1St Floor,1431.28, 27-Sep-2016
1071,Revenue,CAHD,South Glos Users in South Glos Homes,Permanent Nursing,Fshc  1St Floor,625.00, 27-Sep-2016
1072,Revenue,CAHD,South Glos Users in South Glos Homes,Permanent Nursing,Fshc  1St Floor,625.00, 27-Sep-2016
1073,Revenue,CAHD,South Glos Users in South Glos Homes,Permanent Nursing,Fshc  1St Floor,625.00, 27-Sep-2016
1074,Revenue,CAHD,Bed Purchasing - Southmead Hospital,Permanent Residential,Fshc  1St Floor,4714.29, 27-Sep-2016
1075,Revenue,CAHD,Bed Purchasing - Southmead Hospital,Permanent Residential,Fshc  1St Floor,1178.57, 27-Sep-2016
1076,Revenue,CAHD,Bed Purchasing - Southmead Hospital,Respite Emergency - Residential,Fshc  1St Floor,2000.00, 27-Sep-2016
1077,Revenue,CAHD,South Glos Users in South Glos Homes,Permanent Nursing,Fshc  1St Floor,625.00, 27-Sep-2016
1078,Revenue,CAHD,South Glos Users in South Glos Homes,Permanent Nursing,Fshc  1St Floor,625.00, 27-Sep-2016
1079,Revenue,CAHD,Bed Purchasing - South,Permanent Residential,Fshc  1St Floor,1378.72, 27-Sep-2016
1080,Revenue,CAHD,Bed Purchasing - Southmead Hospital,Permanent Nursing,Fshc  1St Floor,1515.92, 27-Sep-2016
1081,Revenue,CAHD,South Glos Users in South Glos Homes,Permanent Nursing,Fshc  1St Floor,625.00, 27-Sep-2016
1082,Revenue,CAHD,Bed Purchasing - South,Permanent Nursing,Fshc  1St Floor,1588.72, 27-Sep-2016
1083,Revenue,CAHD,South Glos Users in South Glos Homes,Permanent Nursing,Fshc  1St Floor,625.00, 27-Sep-2016
1084,Revenue,CAHD,Bed Purchasing - Southmead Hospital,Permanent Nursing,Fshc  1St Floor,1515.92, 27-Sep-2016
1085,Revenue,CAHD,South Glos Users in South Glos Homes,Permanent Nursing,Fshc  1St Floor,625.00, 27-Sep-2016
1086,Revenue,CAHD,Bed Purchasing - Southmead Hospital,Permanent Nursing,Fshc  1St Floor,1451.36, 27-Sep-2016
1087,Revenue,CAHD,South Glos Users in South Glos Homes,Permanent Nursing,Fshc  1St Floor,625.00, 27-Sep-2016
1088,Revenue,CAHD,Bed Purchasing - Southmead Hospital,Permanent Residential,Fshc  1St Floor,1517.20, 27-Sep-2016
1089,Revenue,CAHD,South Glos Users in South Glos Homes,Permanent Nursing,Fshc  1St Floor,625.00, 27-Sep-2016
1090,Revenue,CAHD,Bed Purchasing - South,Respite Emergency - Residential,Fshc  1St Floor,750.00, 27-Sep-2016
1091,Revenue,CAHD,Bed Purchasing - South,Respite Emergency - Nursing,Fshc  1St Floor,750.00, 27-Sep-2016
1092,Revenue,CAHD,Bed Purchasing - Southmead Hospital,Permanent Residential,Fshc  1St Floor,1243.64, 27-Sep-2016
1093,Revenue,CAHD,Bed Purchasing - South,Permanent Nursing,Fshc  1St Floor,1529.16, 27-Sep-2016
1094,Revenue,CAHD,South Glos Users in South Glos Homes,Permanent Nursing,Fshc  1St Floor,625.00, 27-Sep-2016
1095,Revenue,CAHD,Bed Purchasing - Southmead Hospital,Permanent Nursing,Fshc  1St Floor,813.29, 27-Sep-2016
1096,Revenue,CAHD,Bed Purchasing - South,Permanent Nursing,Fshc  1St Floor,2002.28, 27-Sep-2016
1097,Revenue,CAHD,South Glos Users in South Glos Homes,Permanent Nursing,Fshc  1St Floor,625.00, 27-Sep-2016
1098,Revenue,CAHD,Bed Purchasing - South,Permanent Nursing,Fshc  1St Floor,1268.32, 27-Sep-2016
1099,Revenue,CAHD,South Glos Users in South Glos Homes,Permanent Nursing,Fshc  1St Floor,625.00, 27-Sep-2016
1100,Revenue,CAHD,Bed Purchasing - South,Permanent Residential,Fshc  1St Floor,1518.52, 27-Sep-2016
1101,Revenue,CAHD,Bed Purchasing - South,Permanent Nursing,Fshc  1St Floor,1515.92, 27-Sep-2016
1102,Revenue,CAHD,South Glos Users in South Glos Homes,Permanent Nursing,Fshc  1St Floor,625.00, 27-Sep-2016
1103,Revenue,CAHD,Bed Purchasing - South,Permanent Nursing,Fshc  1St Floor,1271.04, 27-Sep-2016
1104,Revenue,CAHD,Bed Purchasing - Southmead Hospital,Permanent Nursing,Fshc  1St Floor,2309.36, 27-Sep-2016
1105,Revenue,CAHD,Bed Purchasing - South,Permanent Nursing,Fshc  1St Floor,30179.97, 27-Sep-2016
1106,Revenue,CAHD,Bed Purchasing - South,Permanent Nursing,Fshc  1St Floor,1435.08, 27-Sep-2016
1107,Revenue,CAHD,Bed purchasing - Elderly S117 - South,Permanent Nursing,Fshc  1St Floor,1929.88, 27-Sep-2016
1108,Revenue,CAHD,Bed Purchasing - South,Permanent Nursing,Fshc  1St Floor,1148.60, 27-Sep-2016
1109,Revenue,CAHD,Bed Purchasing - Southmead Hospital,Permanent Nursing,Fshc  1St Floor,1255.20, 27-Sep-2016
1110,Revenue,CAHD,Bed Purchasing - Southmead Hospital,Permanent Nursing,Fshc  1St Floor,1319.20, 27-Sep-2016
1111,Revenue,CAHD,Bed Purchasing - Southmead Hospital,Permanent Nursing,Fshc  1St Floor,1407.08, 27-Sep-2016
1112,Revenue,CAHD,Bed Purchasing - South,Permanent Nursing,Fshc  1St Floor,1271.00, 27-Sep-2016
1113,Revenue,CAHD,Bed Purchasing - Southmead Hospital,Permanent Residential,Fshc  1St Floor,602.08, 27-Sep-2016
1114,Revenue,CAHD,Bed Purchasing - North,Permanent Nursing,Fshc  1St Floor,1099.68, 27-Sep-2016
1115,Revenue,CAHD,Bed Purchasing - North,Permanent Nursing,Fshc  1St Floor,1404.56, 27-Sep-2016
1116,Revenue,CAHD,South Glos Users in South Glos Homes,Permanent Nursing,Fshc  1St Floor,625.00, 27-Sep-2016
1117,Revenue,CAHD,Bed Purchasing - North,Permanent Nursing,Fshc  1St Floor,1666.60, 27-Sep-2016
1118,Revenue,CAHD,Bed Purchasing - North,Respite Emergency - Residential,Fshc  1St Floor,1146.41, 27-Sep-2016
1119,Revenue,CAHD,South Glos Users in South Glos Homes,Permanent Nursing,Fshc  1St Floor,625.00, 27-Sep-2016
1120,Revenue,CAHD,Bed Purchasing - North,Permanent Nursing,Fshc  1St Floor,1408.72, 27-Sep-2016
1121,Revenue,CAHD,Bed Purchasing - Southmead Hospital,Permanent Nursing,Fshc  1St Floor,1666.60, 27-Sep-2016
1122,Revenue,CAHD,Bed Purchasing - Southmead Hospital,Permanent Nursing,Fshc  1St Floor,1086.80, 27-Sep-2016
1123,Revenue,CAHD,Bed Purchasing - Southmead Hospital,Permanent Nursing,Fshc  1St Floor,2345.71, 27-Sep-2016
1124,Revenue,CAHD,Bed Purchasing - Southmead Hospital,Permanent Nursing,Fshc  1St Floor,1642.00, 27-Sep-2016
1125,Revenue,CAHD,Bed Purchasing - North,Permanent Nursing,Fshc  1St Floor,858.32, 27-Sep-2016
1126,Revenue,CAHD,Bed Purchasing - South,Permanent Residential,Fshc  1St Floor,1677.20, 27-Sep-2016
1127,Revenue,CAHD,Bed Purchasing - North,Permanent Residential,Fshc  1St Floor,1092.64, 27-Sep-2016
1128,Revenue,CAHD,Bed Purchasing - South,Permanent Residential,Fshc  1St Floor,1420.76, 27-Sep-2016
1129,Revenue,CAHD,Bed Purchasing - Southmead Hospital,Permanent Residential,Fshc  1St Floor,817.44, 27-Sep-2016
1130,Revenue,CAHD,Bed Purchasing - South,Permanent Residential,Fshc  1St Floor,1180.56, 27-Sep-2016
1131,Revenue,CAHD,Bed Purchasing - South,Permanent Residential,Gladstone House,5354.36, 27-Sep-2016
1132,Revenue,CAHD,Bed Purchasing - South,Permanent Residential,Glasallt Fawr,4734.32, 27-Sep-2016
1133,Revenue,CAHD,South Glos Users in South Glos Homes,Permanent Nursing,Glebe House Nursing Home,625.00, 27-Sep-2016
1134,Revenue,CAHD,South Glos Users in South Glos Homes,Permanent Nursing,Glebe House Nursing Home,625.00, 27-Sep-2016
1135,Revenue,CAHD,South Glos Users in South Glos Homes,Permanent Nursing,Glebe House Nursing Home,625.00, 27-Sep-2016
1136,Revenue,CAHD,South Glos Users in South Glos Homes,Permanent Nursing,Glebe House Nursing Home,625.00, 27-Sep-2016
1137,Revenue,CAHD,Bed Purchasing - North,Permanent Nursing,Glebe House Nursing Home,2169.04, 27-Sep-2016
1138,Revenue,CAHD,South Glos Users in South Glos Homes,Permanent Nursing,Glebe House Nursing Home,625.00, 27-Sep-2016
1139,Revenue,CAHD,South Glos Users in South Glos Homes,Permanent Nursing,Glebe House Nursing Home,625.00, 27-Sep-2016
1140,Revenue,CAHD,South Glos Users in South Glos Homes,Permanent Nursing,Glebe House Nursing Home,625.00, 27-Sep-2016
1141,Revenue,CAHD,Bed Purchasing - North,Permanent Residential,Glebe House Nursing Home,2433.68, 27-Sep-2016
1142,Revenue,CAHD,South Glos Users in South Glos Homes,Permanent Nursing,Glebe House Nursing Home,625.00, 27-Sep-2016
1143,Revenue,CAHD,South Glos Users in South Glos Homes,Permanent Nursing,Glebe House Nursing Home,625.00, 27-Sep-2016
1144,Revenue,CAHD,Bed Purchasing - North,Permanent Nursing,Glebe House Nursing Home,2307.00, 27-Sep-2016
1145,Revenue,CAHD,South Glos Users in South Glos Homes,Permanent Nursing,Glebe House Nursing Home,625.00, 27-Sep-2016
1146,Revenue,CAHD,South Glos Users in South Glos Homes,Permanent Nursing,Glebe House Nursing Home,625.00, 27-Sep-2016
1147,Revenue,CAHD,South Glos Users in South Glos Homes,Permanent Nursing,Glebe House Nursing Home,625.00, 27-Sep-2016
1148,Revenue,CAHD,South Glos Users in South Glos Homes,Permanent Nursing,Glebe House Nursing Home,625.00, 27-Sep-2016
1149,Revenue,CAHD,South Glos Users in South Glos Homes,Permanent Nursing,Glebe House Nursing Home,625.00, 27-Sep-2016
1150,Revenue,CAHD,South Glos Users in South Glos Homes,Permanent Nursing,Glebe House Nursing Home,625.00, 27-Sep-2016
1151,Revenue,CAHD,South Glos Users in South Glos Homes,Permanent Nursing,Glebe House Nursing Home,625.00, 27-Sep-2016
1152,Revenue,CAHD,Bed Purchasing - South,Permanent Residential,Glebe House Nursing Home,1238.36, 27-Sep-2016
1153,Revenue,CAHD,South Glos Users in South Glos Homes,Permanent Nursing,Glebe House Nursing Home,625.00, 27-Sep-2016
1154,Revenue,CAHD,Bed Purchasing - North,Permanent Nursing,Glebe House Nursing Home,2209.20, 27-Sep-2016
1155,Revenue,CAHD,South Glos Users in South Glos Homes,Permanent Nursing,Glebe House Nursing Home,625.00, 27-Sep-2016
1156,Revenue,CAHD,South Glos Users in South Glos Homes,Permanent Nursing,Glebe House Nursing Home,625.00, 27-Sep-2016
1157,Revenue,CAHD,South Glos Users in South Glos Homes,Permanent Nursing,Glebe House Nursing Home,625.00, 27-Sep-2016
1158,Revenue,CAHD,South Glos Users in South Glos Homes,Permanent Nursing,Glebe House Nursing Home,625.00, 27-Sep-2016
1159,Revenue,CAHD,Bed Purchasing - South,Permanent Residential,Goldcare House,2293.04, 27-Sep-2016
1160,Revenue,CAHD,Bed Purchasing - South,Permanent Residential,Gordena Care Home,2189.64, 27-Sep-2016
1161,Revenue,CAHD,Bed Purchasing - South,Permanent Residential,Gordena Care Home,3052.76, 27-Sep-2016
1162,Revenue,CAHD,Bed Purchasing - South,Permanent Residential,Gordena Care Home,1984.56, 27-Sep-2016
1163,Revenue,CAHD,Bed Purchasing - South,Permanent Residential,Gordena Care Home,7937.00, 27-Sep-2016
1164,Revenue,CAHD,Bed Purchasing - South,Permanent Residential,Gordena Care Home,3185.84, 27-Sep-2016
1165,Revenue,CAHD,Bed Purchasing - South,Permanent Residential,Gordena Care Limited,4361.88, 27-Sep-2016
1166,Revenue,CAHD,Bed Purchasing - South,Permanent Residential,Gordena Care Limited,4124.24, 27-Sep-2016
1167,Revenue,CAHD,Bed purchasing - S28A Under 65 - South,Permanent Residential,Gordena Care Limited,4255.88, 27-Sep-2016
1168,Revenue,CAHD,Bed Purchasing - North,Permanent Residential,Gordena Care Limited,4227.32, 27-Sep-2016
1169,Revenue,CAHD,Bed Purchasing - South,Permanent Nursing,Gracefields Nursing Home,1732.24, 27-Sep-2016
1170,Revenue,CAHD,South Glos Users in South Glos Homes,Permanent Nursing,Gracefields Nursing Home,625.00, 27-Sep-2016
1171,Revenue,CAHD,South Glos Users in South Glos Homes,Permanent Nursing,Gracefields Nursing Home,625.00, 27-Sep-2016
1172,Revenue,CAHD,Bed Purchasing - Southmead Hospital,Permanent Nursing,Gracefields Nursing Home,1674.96, 27-Sep-2016
1173,Revenue,CAHD,South Glos Users in South Glos Homes,Permanent Nursing,Gracefields Nursing Home,625.00, 27-Sep-2016
1174,Revenue,CAHD,South Glos Users in South Glos Homes,Permanent Nursing,Gracefields Nursing Home,625.00, 27-Sep-2016
1175,Revenue,CAHD,Bed purchasing - Elderly S117 - South,Permanent Nursing,Gracefields Nursing Home,2414.28, 27-Sep-2016
1176,Revenue,CAHD,South Glos Users in South Glos Homes,Permanent Nursing,Gracefields Nursing Home,625.00, 27-Sep-2016
1177,Revenue,CAHD,South Glos Users in South Glos Homes,Permanent Nursing,Gracefields Nursing Home,625.00, 27-Sep-2016
1178,Revenue,CAHD,South Glos Users in South Glos Homes,Permanent Nursing,Gracefields Nursing Home,625.00, 27-Sep-2016
1179,Revenue,CAHD,South Glos Users in South Glos Homes,Permanent Nursing,Gracefields Nursing Home,625.00, 27-Sep-2016
1180,Revenue,CAHD,South Glos Users in South Glos Homes,Permanent Nursing,Gracefields Nursing Home,625.00, 27-Sep-2016
1181,Revenue,CAHD,South Glos Users in South Glos Homes,Permanent Nursing,Gracefields Nursing Home,625.00, 27-Sep-2016
1182,Revenue,CAHD,South Glos Users in South Glos Homes,Permanent Nursing,Gracefields Nursing Home,625.00, 27-Sep-2016
1183,Revenue,CAHD,South Glos Users in South Glos Homes,Permanent Nursing,Gracefields Nursing Home,625.00, 27-Sep-2016
1184,Revenue,CAHD,South Glos Users in South Glos Homes,Permanent Nursing,Gracefields Nursing Home,625.00, 27-Sep-2016
1185,Revenue,CAHD,South Glos Users in South Glos Homes,Permanent Nursing,Gracefields Nursing Home,625.00, 27-Sep-2016
1186,Revenue,CAHD,South Glos Users in South Glos Homes,Permanent Nursing,Gracefields Nursing Home,625.00, 27-Sep-2016
1187,Revenue,CAHD,South Glos Users in South Glos Homes,Permanent Nursing,Gracefields Nursing Home,625.00, 27-Sep-2016
1188,Revenue,CAHD,South Glos Users in South Glos Homes,Permanent Nursing,Gracefields Nursing Home,625.00, 27-Sep-2016
1189,Revenue,CAHD,South Glos Users in South Glos Homes,Permanent Nursing,Gracefields Nursing Home,625.00, 27-Sep-2016
1190,Revenue,CAHD,South Glos Users in South Glos Homes,Permanent Nursing,Gracefields Nursing Home,625.00, 27-Sep-2016
1191,Revenue,CAHD,South Glos Users in South Glos Homes,Permanent Nursing,Gracefields Nursing Home,625.00, 27-Sep-2016
1192,Revenue,CAHD,South Glos Users in South Glos Homes,Permanent Nursing,Gracefields Nursing Home,625.00, 27-Sep-2016
1193,Revenue,CAHD,South Glos Users in South Glos Homes,Permanent Nursing,Gracefields Nursing Home,625.00, 27-Sep-2016
1194,Revenue,CAHD,South Glos Users in South Glos Homes,Permanent Nursing,Gracefields Nursing Home,625.00, 27-Sep-2016
1195,Revenue,CAHD,South Glos Users in South Glos Homes,Permanent Nursing,Gracefields Nursing Home,625.00, 27-Sep-2016
1196,Revenue,CAHD,South Glos Users in South Glos Homes,Permanent Nursing,Gracefields Nursing Home,625.00, 27-Sep-2016
1197,Revenue,CAHD,South Glos Users in South Glos Homes,Permanent Nursing,Gracefields Nursing Home,625.00, 27-Sep-2016
1198,Revenue,CAHD,Bed Purchasing - South,Permanent Nursing,Gracefields Nursing Home,1620.96, 27-Sep-2016
1199,Revenue,CAHD,South Glos Users in South Glos Homes,Permanent Nursing,Gracefields Nursing Home,625.00, 27-Sep-2016
1200,Revenue,CAHD,South Glos Users in South Glos Homes,Permanent Nursing,Gracefields Nursing Home,625.00, 27-Sep-2016
1201,Revenue,CAHD,South Glos Users in South Glos Homes,Permanent Nursing,Gracefields Nursing Home,1941.96, 27-Sep-2016
1202,Revenue,CAHD,South Glos Users in South Glos Homes,Permanent Nursing,Gracefields Nursing Home,625.00, 27-Sep-2016
1203,Revenue,CAHD,South Glos Users in South Glos Homes,Permanent Nursing,Gracefields Nursing Home,625.00, 27-Sep-2016
1204,Revenue,CAHD,Bed Purchasing - Southmead Hospital,Permanent Nursing,Gracefields Nursing Home,1558.00, 27-Sep-2016
1205,Revenue,CAHD,South Glos Users in South Glos Homes,Permanent Nursing,Gracefields Nursing Home,625.00, 27-Sep-2016
1206,Revenue,CAHD,Bed Purchasing - Southmead Hospital,Permanent Residential,Granada House Residential Home,1085.28, 27-Sep-2016
1207,Revenue,CAHD,Bed Purchasing - North,Permanent Residential,Greensleeves,1358.08, 27-Sep-2016
1208,Revenue,CAHD,Bed Purchasing - South,Permanent Residential,Grove Care,1905.76, 27-Sep-2016
1209,Revenue,CAHD,Bed Purchasing - South,Permanent Residential,Gwendoline House,785.04, 27-Sep-2016
1210,Revenue,CAHD,Bed Purchasing - Southmead Hospital,Permanent Residential,Gwendoline House,1298.24, 27-Sep-2016
1211,Revenue,CAHD,Bed Purchasing - South,Permanent Residential,Gwendoline House,1587.28, 27-Sep-2016
1212,Revenue,CAHD,Bed Purchasing - South,Permanent Residential,Gwendoline House,1001.92, 27-Sep-2016
1213,Revenue,CAHD,Bed Purchasing - Southmead Hospital,Permanent Residential,Gwendoline House,1357.08, 27-Sep-2016
1214,Revenue,CAHD,Supporting People Programme,Grants to Voluntary Bodies,Habinteg Housing Association,1377.00, 01-Sep-2016
1215,Revenue,CAHD,Social Lettings Agency,Fees - General,Individual,16.46, 27-Sep-2016
1216,Revenue,CAHD,Social Lettings Agency,Other Supplies & Services,Individual,501.95, 27-Sep-2016
1217,Revenue,CAHD,Supporting People Programme,Grants to Voluntary Bodies,Hanover Housing Association,996.16, 01-Sep-2016
1218,Revenue,CAHD,Supporting People Programme,Grants to Voluntary Bodies,Hanover Housing Association,996.16, 30-Sep-2016
1219,Revenue,CAHD,Bed Purchasing - South,Permanent Residential,Harefield Hall,1235.16, 27-Sep-2016
1220,Revenue,CAHD,Bed Purchasing - South,Permanent Residential,Harefield Hall,1162.36, 27-Sep-2016
1221,Revenue,CAHD,Bed Purchasing - South,Permanent Residential,Harefield Hall,966.56, 27-Sep-2016
1222,Revenue,CAHD,Bed Purchasing - South,Permanent Residential,Harefield Hall,1057.68, 27-Sep-2016
1223,Revenue,CAHD,Bed Purchasing - South,Permanent Residential,Harefield Hall,1372.92, 27-Sep-2016
1224,Revenue,CAHD,Bed Purchasing - South,Permanent Residential,Harefield Hall,1280.92, 27-Sep-2016
1225,Revenue,CAHD,Bed Purchasing - Southmead Hospital,Permanent Nursing,Hazelwood Gardens Nursing Home,1662.24, 27-Sep-2016
1226,Revenue,CAHD,Bed Purchasing - Southmead Hospital,Permanent Nursing,Hc-One Ltd,1660.08, 27-Sep-2016
1227,Revenue,CAHD,Bed Purchasing - Southmead Hospital,Permanent Nursing,Hc-One Ltd,1504.56, 27-Sep-2016
1228,Revenue,CAHD,Bed Purchasing - North,Permanent Nursing,Hc-One Ltd,1564.36, 27-Sep-2016
1229,Revenue,CAHD,Bed Purchasing - South,Permanent Residential,Hc-One Ltd,1479.36, 27-Sep-2016
1230,Revenue,CAHD,Bed Purchasing - North,Permanent Residential,Hc-One Ltd,2112.00, 27-Sep-2016
1231,Revenue,CAHD,Bed Purchasing - Southmead Hospital,Permanent Nursing,Hc-One Ltd,1582.96, 27-Sep-2016
1232,Revenue,CAHD,Bed Purchasing - Southmead Hospital,Permanent Nursing,Hc-One Ltd,1533.80, 27-Sep-2016
1233,Revenue,CAHD,Bed Purchasing - Southmead Hospital,Permanent Nursing,Hc-One Ltd,2005.12, 27-Sep-2016
1234,Revenue,CAHD,Bed Purchasing - Southmead Hospital,Permanent Residential,Head Office,1707.12, 27-Sep-2016
1235,Revenue,CAHD,Home Care - Elderly - South,Day Care / Social Activities,Headway Bristol,980.72, 08-Sep-2016
1236,Revenue,CAHD,Home Care - Elderly - North,Day Care / Social Activities,Headway Bristol,692.90, 08-Sep-2016
1237,Revenue,CAHD,Home Care - Elderly - North,Other Small Contracts,Headway Bristol,191.88, 08-Sep-2016
1238,Revenue,CAHD,Home Care - Elderly - South,Day Care / Social Activities,Headway Bristol,980.72, 12-Sep-2016
1239,Revenue,CAHD,Home Care - Elderly - North,Day Care / Social Activities,Headway Bristol,778.18, 12-Sep-2016
1240,Revenue,CAHD,Home Care - Elderly - North,Other Small Contracts,Headway Bristol,191.88, 12-Sep-2016
1241,Revenue,CAHD,Home Care - Elderly - South,Day Care / Social Activities,Headway Bristol,852.80, 19-Sep-2016
1242,Revenue,CAHD,Home Care - Elderly - North,Day Care / Social Activities,Headway Bristol,815.49, 19-Sep-2016
1243,Revenue,CAHD,Home Care - Elderly - North,Other Small Contracts,Headway Bristol,127.92, 19-Sep-2016
1244,Revenue,CAHD,Home Care - Elderly - South,Other Small Contracts,Helping Hands Homecare,1334.64, 02-Sep-2016
1245,Revenue,CAHD,Home Care - Elderly - North,Day Care / Social Activities,Helping Hands Homecare,205.02, 02-Sep-2016
1246,Revenue,CAHD,Home Care - Elderly - North,Other Small Contracts,Helping Hands Homecare,2564.44, 02-Sep-2016
1247,Revenue,CAHD,Home Care - Elderly - South,Other Small Contracts,Helping Hands Homecare,1483.38, 02-Sep-2016
1248,Revenue,CAHD,Home Care - Elderly - North,Day Care / Social Activities,Helping Hands Homecare,217.08, 02-Sep-2016
1249,Revenue,CAHD,Home Care - Elderly - North,Other Small Contracts,Helping Hands Homecare,2684.34, 02-Sep-2016
1250,Revenue,CAHD,Home Care - Elderly - South,Other Small Contracts,Helping Hands Homecare,1503.48, 30-Sep-2016
1251,Revenue,CAHD,Home Care - Elderly - North,Day Care / Social Activities,Helping Hands Homecare,209.04, 30-Sep-2016
1252,Revenue,CAHD,Home Care - Elderly - North,Other Small Contracts,Helping Hands Homecare,2739.56, 30-Sep-2016
1253,Revenue,CAHD,Home Care - Elderly - South,Other Small Contracts,Helping Hands Homecare,1358.76, 30-Sep-2016
1254,Revenue,CAHD,Home Care - Elderly - North,Day Care / Social Activities,Helping Hands Homecare,144.72, 30-Sep-2016
1255,Revenue,CAHD,Home Care - Elderly - North,Other Small Contracts,Helping Hands Homecare,2696.32, 30-Sep-2016
1256,Revenue,CAHD,Home Care - Elderly - South,Other Small Contracts,Helping Hands Homecare,1286.40, 30-Sep-2016
1257,Revenue,CAHD,Home Care - Elderly - North,Day Care / Social Activities,Helping Hands Homecare,209.04, 30-Sep-2016
1258,Revenue,CAHD,Home Care - Elderly - North,Other Small Contracts,Helping Hands Homecare,2572.26, 30-Sep-2016
1259,Revenue,CAHD,S117 Placements PCT,Permanent Residential,Hesley Hall,18656.52, 27-Sep-2016
1260,Revenue,CAHD,Bed Purchasing - Southmead Hospital,Permanent Residential,Highfield House,1255.20, 27-Sep-2016
1261,Revenue,CAHD,Bed Purchasing - Southmead Hospital,Permanent Residential,Highgate Studios,1193.72, 27-Sep-2016
1262,Revenue,CAHD,Bed Purchasing - North,Permanent Residential,Holmleigh Care Homes Ltd,4119.76, 27-Sep-2016
1263,Revenue,CAHD,Bed Purchasing - South,Permanent Residential,Holmleigh Care Homes Ltd,4318.00, 27-Sep-2016
1264,Revenue,CAHD,Jointly Funded H&SC Packages,Permanent Residential,Holmleigh Care Homes Ltd,836.48, 27-Sep-2016
1265,Revenue,CAHD,Bed Purchasing - North,Permanent Residential,Home Farm Trust Ltd  5-6 Brook Office Pa,2750.88, 27-Sep-2016
1266,Revenue,CAHD,Bed Purchasing - South,Permanent Residential,Home Farm Trust Ltd  5-6 Brook Office Pa,5242.64, 27-Sep-2016
1267,Revenue,CAHD,Bed Purchasing - North,Permanent Residential,Home Farm Trust Ltd  5-6 Brook Office Pa,3465.28, 27-Sep-2016
1268,Revenue,CAHD,Bed Purchasing - South,Permanent Residential,Home Farm Trust Ltd  5-6 Brook Office Pa,5675.60, 27-Sep-2016
1269,Revenue,CAHD,18-25 Year Olds,Permanent Residential,Home From Home Care Ltd,9215.16, 27-Sep-2016
1270,Revenue,CAHD,Home Care - Elderly - South,Other Small Contracts,Homecare 4U,333.74, 01-Sep-2016
1271,Revenue,CAHD,Home Care - Elderly - North,Other Small Contracts,Homecare 4U,923.89, 01-Sep-2016
1272,Revenue,CAHD,Home Care - Elderly - South,Other Small Contracts,Homecare 4U,329.67, 01-Sep-2016
1273,Revenue,CAHD,Home Care - Elderly - North,Other Small Contracts,Homecare 4U,887.26, 01-Sep-2016
1274,Revenue,CAHD,Home Care - Elderly - South,Other Small Contracts,Homecare 4U,329.67, 07-Sep-2016
1275,Revenue,CAHD,Home Care - Elderly - North,Other Small Contracts,Homecare 4U,785.51, 07-Sep-2016
1276,Revenue,CAHD,Home Care - Elderly - South,Other Small Contracts,Homecare 4U,321.53, 07-Sep-2016
1277,Revenue,CAHD,Home Care - Elderly - North,Other Small Contracts,Homecare 4U,773.30, 07-Sep-2016
1278,Revenue,CAHD,Home Care - Elderly - South,Other Small Contracts,Homecare 4U,333.74, 29-Sep-2016
1279,Revenue,CAHD,Home Care - Elderly - North,Other Small Contracts,Homecare 4U,948.31, 29-Sep-2016
1280,Revenue,CAHD,Bed Purchasing - North,Permanent Residential,Homes Caring For Autism Ltd  Churchill H,8071.00, 27-Sep-2016
1281,Revenue,CAHD,Jointly Funded H&SC Packages,Permanent Residential,Homes Caring For Autism Ltd  Churchill H,2090.04, 27-Sep-2016
1282,Revenue,CAHD,18-25 Year Olds,Permanent Residential,Homes Caring For Autism Ltd  Churchill H,5691.32, 27-Sep-2016
1283,Revenue,CAHD,Jointly Funded H&SC Packages,Permanent Residential,Homes Caring For Autism Ltd  Churchill H,7535.48, 27-Sep-2016
1284,Revenue,CAHD,Bed Purchasing - Southmead Hospital,Permanent Nursing,Horfield Care Limited,1493.76, 09-Sep-2016
1285,Revenue,CAHD,Bed Purchasing - Southmead Hospital,Permanent Nursing,Horfield Care Limited,1877.05, 09-Sep-2016
1286,Revenue,CAHD,Bed Purchasing - Southmead Hospital,Permanent Nursing,Horfield Care Limited,1381.58, 09-Sep-2016
1287,Revenue,CAHD,Bed Purchasing - South,Permanent Nursing,Horfield Care Limited,1379.37, 09-Sep-2016
1288,Revenue,CAHD,Bed Purchasing - South,Respite Emergency - Nursing,Horfield Care Limited,1401.02, 09-Sep-2016
1289,Revenue,CAHD,Home Care - Elderly - North,Day Care / Social Activities,Housing & Care 21,4116.00, 27-Sep-2016
1290,Revenue,CAHD,Supporting People Programme,Grants to Voluntary Bodies,Housing 21,957.66, 01-Sep-2016
1291,Revenue,CAHD,Supporting People Programme,Grants to Voluntary Bodies,Housing 21,631.50, 01-Sep-2016
1292,Revenue,CAHD,Supporting People Programme,Grants to Voluntary Bodies,Housing 21,957.66, 30-Sep-2016
1293,Revenue,CAHD,Supporting People Programme,Grants to Voluntary Bodies,Housing 21,631.50, 30-Sep-2016
1294,Revenue,CAHD,Home Care - Elderly - North,Private & Voluntary Home Care,Housing 21,40371.16, 09-Sep-2016
1295,Revenue,CAHD,Home Care - Elderly - South,Private & Voluntary Home Care,Housing 21,25849.77, 01-Sep-2016
1296,Revenue,CAHD,Home Care - Elderly - South,Private & Voluntary Home Care,Housing 21,25849.77, 30-Sep-2016
1297,Revenue,CAHD,Social Lettings Agency,Fees - General,Individual,12.22, 09-Sep-2016
1298,Revenue,CAHD,Social Lettings Agency,Other Supplies & Services,Individual,600.92, 09-Sep-2016
1299,Revenue,CAHD,Social Lettings Agency,Fees - General,Individual,10.53, 01-Sep-2016
1300,Revenue,CAHD,Social Lettings Agency,Other Supplies & Services,Individual,595.11, 01-Sep-2016
1301,Revenue,CAHD,Social Lettings Agency,Fees - General,Individual,10.53, 30-Sep-2016
1302,Revenue,CAHD,Social Lettings Agency,Other Supplies & Services,Individual,595.11, 30-Sep-2016
1303,Revenue,CAHD,Bed Purchasing - South,Permanent Residential,Jonen House,3705.12, 27-Sep-2016
1304,Revenue,CAHD,Home Care - Elderly - South,Supported Living,Julia Simone- Supp. Ind.,1194.40, 27-Sep-2016
1305,Revenue,CAHD,Younger MH non-res purchasing,Supported Living,Julia Simone- Supp. Ind.,1194.40, 27-Sep-2016
1306,Revenue,CAHD,Younger MH non-res purchasing,Supported Living,Julia Simone- Supp. Ind.,1194.40, 27-Sep-2016
1307,Revenue,CAHD,Home Care - Elderly - North,Supported Living,Julia Simone- Supp. Ind.,1228.80, 27-Sep-2016
1308,Revenue,CAHD,Younger MH non-res purchasing,Supported Living,Julia Simone- Supp. Ind.,1194.24, 27-Sep-2016
1309,Revenue,CAHD,Younger MH non-res purchasing,Supported Living,Julia Simone- Supp. Ind.,1194.36, 27-Sep-2016
1310,Revenue,CAHD,Bed Purchasing - South,Permanent Residential,Julia Simone- Supp. Ind.,16384.32, 27-Sep-2016
1311,Revenue,CAHD,Bed Purchasing - South,Permanent Residential,Julia Simone- Supp. Ind.,10093.91, 27-Sep-2016
1312,Revenue,CAHD,Bed purchasing -S28A  Under 65 - North,Permanent Residential,Julia Simone- Supp. Ind.,14460.32, 27-Sep-2016
1313,Revenue,CAHD,Bed purchasing -S28A  Under 65 - North,Permanent Residential,Julia Simone- Supp. Ind.,8908.59, 27-Sep-2016
1314,Revenue,CAHD,CAHA - Complaints and FOI,Complaints External Expenses,Keith Smith,1525.28, 30-Sep-2016
1315,Revenue,CAHD,Bed and Breakfast,Storage & Removal,Kelly`s Storage Limited,475.98, 20-Sep-2016
1316,Revenue,CAHD,Home Care - Elderly - South,Other Small Contracts,Kensington Community Care,2556.25, 01-Sep-2016
1317,Revenue,CAHD,Home Care - Elderly - North,Other Small Contracts,Kensington Community Care,4826.20, 01-Sep-2016
1318,Revenue,CAHD,Home Care - Elderly - South,Other Small Contracts,Kensington Community Care,2531.71, 15-Sep-2016
1319,Revenue,CAHD,Home Care - Elderly - North,Other Small Contracts,Kensington Community Care,4973.44, 15-Sep-2016
1320,Revenue,CAHD,Home Care - Elderly - South,Other Small Contracts,Kensington Community Care,2670.77, 29-Sep-2016
1321,Revenue,CAHD,Home Care - Elderly - North,Other Small Contracts,Kensington Community Care,5431.52, 29-Sep-2016
1322,Revenue,CAHD,Home Care - Elderly - South,Other Small Contracts,Kensington Community Care,2613.51, 29-Sep-2016
1323,Revenue,CAHD,Home Care - Elderly - North,Other Small Contracts,Kensington Community Care,5591.03, 29-Sep-2016
1324,Revenue,CAHD,Home Care - Elderly - South,Other Small Contracts,Kensington Community Care,2609.42, 29-Sep-2016
1325,Revenue,CAHD,Home Care - Elderly - North,Other Small Contracts,Kensington Community Care,5726.00, 29-Sep-2016
1326,Revenue,CAHD,Bed Purchasing - Southmead Hospital,Permanent Residential,Kenver House Residential Home,1685.76, 27-Sep-2016
1327,Revenue,CAHD,Bed Purchasing - Southmead Hospital,Permanent Residential,Kenver House Residential Home,1697.28, 27-Sep-2016
1328,Revenue,CAHD,Bed Purchasing - Southmead Hospital,Permanent Residential,Kenver House Residential Home,1908.68, 27-Sep-2016
1329,Revenue,CAHD,Bed Purchasing - South,Permanent Residential,Kenver House Residential Home,1407.28, 27-Sep-2016
1330,Revenue,CAHD,Bed Purchasing - South,Permanent Residential,Kenver House Residential Home,1697.28, 27-Sep-2016
1331,Revenue,CAHD,Bed Purchasing - North,Permanent Residential,Kenver House Residential Home,1566.76, 27-Sep-2016
1332,Revenue,CAHD,Bed Purchasing - Southmead Hospital,Permanent Residential,Kenver House Residential Home,1784.68, 27-Sep-2016
1333,Revenue,CAHD,Bed Purchasing - South,Permanent Residential,Kenver House Residential Home,1908.68, 27-Sep-2016
1334,Revenue,CAHD,Bed purchasing - Elderly S117 - South,Permanent Residential,Kenver House Residential Home,2286.28, 27-Sep-2016
1335,Revenue,CAHD,Bed Purchasing - Southmead Hospital,Permanent Residential,Kenver House Residential Home,1836.24, 27-Sep-2016
1336,Revenue,CAHD,Bed Purchasing - South,One-off Planned Direct Payment,Kenver House Residential Home,781.55, 27-Sep-2016
1337,Revenue,CAHD,Bed Purchasing - South,Permanent Residential,Kenver House Residential Home,1611.04, 27-Sep-2016
1338,Revenue,CAHD,Bed Purchasing - South,Permanent Residential,Kenver House Residential Home,1881.04, 27-Sep-2016
1339,Revenue,CAHD,Bed Purchasing - South,Permanent Residential,Kenver House Residential Home,1526.72, 27-Sep-2016
1340,Revenue,CAHD,Bed Purchasing - Southmead Hospital,Permanent Residential,Kenver House Residential Home,1697.20, 27-Sep-2016
1341,Revenue,CAHD,Bed Purchasing - South,Permanent Residential,Kenver House Residential Home,1729.28, 27-Sep-2016
1342,Revenue,CAHD,Bed Purchasing - South,Respite Emergency - Residential,Kenver House Residential Home,2431.48, 27-Sep-2016
1343,Revenue,CAHD,Bed Purchasing - South,Respite Emergency - Residential,Kenver House Residential Home,1823.61, 27-Sep-2016
1344,Revenue,CAHD,Supporting People Programme,Grants to Voluntary Bodies,Keyring Living Support Networks,2988.58, 01-Sep-2016
1345,Revenue,CAHD,Supporting People Programme,Grants to Voluntary Bodies,Keyring Living Support Networks,2988.58, 30-Sep-2016
1346,Revenue,CAHD,Bed Purchasing - North,Permanent Residential,Kilkhampton Lodge,17099.40, 27-Sep-2016
1347,Revenue,CAHD,Supporting People Programme,Grants to Voluntary Bodies,Kingswood Young Homeless Project,17359.58, 01-Sep-2016
1348,Revenue,CAHD,Supporting People Programme,Grants to Voluntary Bodies,Kingswood Young Homeless Project,17359.58, 30-Sep-2016
1349,Revenue,CAHD,Bed Purchasing - North,Permanent Residential,Kisimul Group,11674.88, 27-Sep-2016
1350,Revenue,CAHD,Supporting People Programme,Grants to Voluntary Bodies,Knightstone Housing Association Limited,2544.33, 01-Sep-2016
1351,Revenue,CAHD,Supporting People Programme,Grants to Voluntary Bodies,Knightstone Housing Association Limited,1833.66, 01-Sep-2016
1352,Revenue,CAHD,Supporting People Programme,Grants to Voluntary Bodies,Knightstone Housing Association Limited,2543.75, 01-Sep-2016
1353,Revenue,CAHD,Supporting People Programme,Grants to Voluntary Bodies,Knightstone Housing Association Limited,865.25, 01-Sep-2016
1354,Revenue,CAHD,Supporting People Programme,Grants to Voluntary Bodies,Knightstone Housing Association Limited,13845.33, 01-Sep-2016
1355,Revenue,CAHD,Supporting People Programme,Grants to Voluntary Bodies,Knightstone Housing Association Limited,8747.50, 01-Sep-2016
1356,Revenue,CAHD,Supporting People Programme,Grants to Voluntary Bodies,Knightstone Housing Association Limited,7789.00, 01-Sep-2016
1357,Revenue,CAHD,Supporting People Programme,Grants to Voluntary Bodies,Knightstone Housing Association Limited,2544.33, 30-Sep-2016
1358,Revenue,CAHD,Supporting People Programme,Grants to Voluntary Bodies,Knightstone Housing Association Limited,1833.66, 30-Sep-2016
1359,Revenue,CAHD,Supporting People Programme,Grants to Voluntary Bodies,Knightstone Housing Association Limited,2543.75, 30-Sep-2016
1360,Revenue,CAHD,Supporting People Programme,Grants to Voluntary Bodies,Knightstone Housing Association Limited,865.25, 30-Sep-2016
1361,Revenue,CAHD,Home Care - Elderly - South,Other Small Contracts,Kumari Care Limited,1671.37, 06-Sep-2016
1362,Revenue,CAHD,Home Care - Elderly - North,Other Small Contracts,Kumari Care Limited,847.34, 06-Sep-2016
1363,Revenue,CAHD,Home Care - Elderly - South,Other Small Contracts,Kumari Care Limited,1703.13, 07-Sep-2016
1364,Revenue,CAHD,Home Care - Elderly - North,Other Small Contracts,Kumari Care Limited,847.31, 07-Sep-2016
1365,Revenue,CAHD,Bed Purchasing - North,Permanent Nursing,Larchfield Care Home,3029.00, 27-Sep-2016
1366,Revenue,CAHD,Bed purchasing - Elderly S117 - South,Permanent Nursing,Lavender Lodge Limited,8518.84, 27-Sep-2016
1367,Revenue,CAHD,Bed Purchasing - North,Permanent Residential,Leonard Cheshire  National Account Centr,2891.92, 27-Sep-2016
1368,Revenue,CAHD,Bed Purchasing - South,Permanent Residential,Leonard Cheshire  National Account Centr,3454.56, 27-Sep-2016
1369,Revenue,CAHD,Bed Purchasing - North,Permanent Nursing,Leonard Cheshire  National Account Centr,3642.00, 27-Sep-2016
1370,Revenue,CAHD,Bed Purchasing - North,Permanent Nursing,Leonard Cheshire  National Account Centr,2926.08, 27-Sep-2016
1371,Revenue,CAHD,South Glos Users in Gloucestershire Home,Permanent Nursing,Leonard Cheshire  National Account Centr,625.00, 27-Sep-2016
1372,Revenue,CAHD,18-25 Year Olds,Permanent Residential,Leonard Cheshire  National Account Centr,3308.92, 27-Sep-2016
1373,Revenue,CAHD,Bed Purchasing - North,Permanent Residential,Leonard Cheshire  National Account Centr,6111.20, 27-Sep-2016
1374,Revenue,CAHD,Bed Purchasing - North,Permanent Residential,Leonard Cheshire  National Account Centr,6109.60, 27-Sep-2016
1375,Revenue,CAHD,Bed Purchasing - South,Permanent Residential,Leonard Cheshire  National Account Centr,4595.20, 27-Sep-2016
1376,Revenue,CAHD,Bed Purchasing - North,Respite Planned - Nursing,Leonard Cheshire  National Account Centr,5442.44, 27-Sep-2016
1377,Revenue,CAHD,Bed Purchasing - North,Permanent Nursing,Leonard Cheshire  National Account Centr,5035.28, 27-Sep-2016
1378,Revenue,CAHD,Bed Purchasing - North,Permanent Nursing,Leonard Cheshire  National Account Centr,3206.68, 27-Sep-2016
1379,Revenue,CAHD,Bed Purchasing - North,Permanent Nursing,Leonard Cheshire  National Account Centr,5740.64, 27-Sep-2016
1380,Revenue,CAHD,Bed Purchasing - South,Permanent Nursing,Leonard Cheshire  National Account Centr,2986.36, 27-Sep-2016
1381,Revenue,CAHD,Bed Purchasing - Southmead Hospital,Permanent Nursing,Leonard Cheshire  National Account Centr,3126.84, 27-Sep-2016
1382,Revenue,CAHD,South Glos Users in all other LA Homes,Permanent Nursing,Leonard Cheshire  National Account Centr,856.20, 27-Sep-2016
1383,Revenue,CAHD,Bed Purchasing - South,Respite Emergency - Residential,Leonard Cheshire  National Account Centr,11057.88, 27-Sep-2016
1384,Revenue,CAHD,Bed Purchasing - North,Permanent Nursing,Leonard Cheshire  National Account Centr,4155.08, 27-Sep-2016
1385,Revenue,CAHD,Tenancy Start Up Scheme,Other Supplies & Services,Lets Let 2015,1250.00, 30-Sep-2016
1386,Revenue,CAHD,Home Care - Elderly - North,Other Small Contracts,Lifeways Community Care (Gloucester) Limited,11758.56, 13-Sep-2016
1387,Revenue,CAHD,Home Care - Elderly - North,Other Small Contracts,Lifeways Community Care (Gloucester) Limited,11758.56, 27-Sep-2016
1388,Revenue,CAHD,Bed Purchasing - Southmead Hospital,Permanent Residential,Little Croft,1127.16, 27-Sep-2016
1389,Revenue,CAHD,Bed Purchasing - Southmead Hospital,Permanent Residential,Little Croft,1308.52, 27-Sep-2016
1390,Revenue,CAHD,Bed Purchasing - Southmead Hospital,Respite Planned - Residential,Little Croft,2700.00, 27-Sep-2016
1391,Revenue,CAHD,Bed Purchasing - North,Permanent Residential,Little Croft,1256.20, 27-Sep-2016
1392,Revenue,CAHD,Bed Purchasing - South,Permanent Residential,Little Croft,1504.40, 27-Sep-2016
1393,Revenue,CAHD,Bed Purchasing - Southmead Hospital,Permanent Residential,Little Croft,1346.88, 27-Sep-2016
1394,Revenue,CAHD,Bed Purchasing - Southmead Hospital,Permanent Residential,Little Croft,1316.52, 27-Sep-2016
1395,Revenue,CAHD,Bed Purchasing - South,Permanent Residential,Little Croft,1817.12, 27-Sep-2016
1396,Revenue,CAHD,Bed Purchasing - North,Permanent Residential,Little Croft,1265.20, 27-Sep-2016
1397,Revenue,CAHD,Bed Purchasing - Southmead Hospital,Permanent Residential,Little Croft,1499.56, 27-Sep-2016
1398,Revenue,CAHD,Bed Purchasing - South,Respite Planned - Residential,Little Croft,575.00, 27-Sep-2016
1399,Revenue,CAHD,Bed Purchasing - South,Respite Emergency - Residential,Little Croft,2400.00, 27-Sep-2016
1400,Revenue,CAHD,Bed Purchasing - South,Permanent Residential,Little Croft,2336.91, 27-Sep-2016
1401,Revenue,CAHD,Bed Purchasing - South,Permanent Residential,Little Croft,1090.56, 27-Sep-2016
1402,Revenue,CAHD,Bed Purchasing - South,Permanent Residential,Little Croft,1308.52, 27-Sep-2016
1403,Revenue,CAHD,Bed Purchasing - Southmead Hospital,Permanent Residential,Little Croft,1789.72, 27-Sep-2016
1404,Revenue,CAHD,Bed Purchasing - Southmead Hospital,Permanent Residential,Little Croft,2981.88, 27-Sep-2016
1405,Revenue,CAHD,Bed Purchasing - South,Permanent Residential,Little Croft,1977.20, 27-Sep-2016
1406,Revenue,CAHD,Bed Purchasing - Southmead Hospital,Permanent Residential,Little Croft,1502.48, 27-Sep-2016
1407,Revenue,CAHD,Bed Purchasing - South,Permanent Residential,Little Croft,2010.40, 27-Sep-2016
1408,Revenue,CAHD,Bed Purchasing - Southmead Hospital,Permanent Residential,Little Croft,2984.85, 27-Sep-2016
1409,Revenue,CAHD,Bed Purchasing - Southmead Hospital,Permanent Residential,Little Croft,1553.20, 27-Sep-2016
1410,Revenue,CAHD,Swift Dump Code,Permanent Residential,Little Croft,1186.21, 27-Sep-2016
1411,Revenue,CAHD,Bed Purchasing - South,Respite Planned - Residential,Little Croft,1396.43, 27-Sep-2016
1412,Revenue,CAHD,Bed Purchasing - South,Respite Planned - Residential,Little Croft,985.71, 27-Sep-2016
1413,Revenue,CAHD,Bed Purchasing - Southmead Hospital,Permanent Residential,Little Croft,6648.90, 27-Sep-2016
1414,Revenue,CAHD,Bed Purchasing - Southmead Hospital,Permanent Residential,Little Croft,1677.20, 27-Sep-2016
1415,Revenue,CAHD,Bed Purchasing - Southmead Hospital,Permanent Residential,Little Croft,1280.88, 27-Sep-2016
1416,Revenue,CAHD,Bed Purchasing - North,Permanent Residential,Little Croft,1117.52, 27-Sep-2016
1417,Revenue,CAHD,Bed Purchasing - South,Permanent Residential,Little Croft,1487.60, 27-Sep-2016
1418,Revenue,CAHD,Bed Purchasing - South,Permanent Residential,Little Croft,1477.24, 27-Sep-2016
1419,Revenue,CAHD,Bed Purchasing - Southmead Hospital,Permanent Residential,Little Croft,1308.52, 27-Sep-2016
1420,Revenue,CAHD,Bed Purchasing - Southmead Hospital,Permanent Residential,Little Croft,3049.24, 27-Sep-2016
1421,Revenue,CAHD,Bed Purchasing - Southmead Hospital,Permanent Residential,Little Croft,2189.20, 27-Sep-2016
1422,Revenue,CAHD,Bed Purchasing - Southmead Hospital,Permanent Residential,Little Croft,1308.52, 27-Sep-2016
1423,Revenue,CAHD,Bed Purchasing - South,Permanent Residential,Little Croft,1485.20, 27-Sep-2016
1424,Revenue,CAHD,Bed Purchasing - South,Permanent Residential,Little Croft,1677.20, 27-Sep-2016
1425,Revenue,CAHD,Bed Purchasing - North,Permanent Residential,Littlecroft Residential Homes  Longcroft,6645.80, 27-Sep-2016
1426,Revenue,CAHD,18-25 Year Olds,Supported Living,Lloyds TSB Commercial Finance Limited,2878.40, 16-Sep-2016
1427,Revenue,CAHD,Home Care - Elderly - South,Day Care / Social Activities,Lloyds TSB Commercial Finance Limited,4972.52, 16-Sep-2016
1428,Revenue,CAHD,Home Care - Elderly - South,Other Small Contracts,Lloyds TSB Commercial Finance Limited,5921.01, 16-Sep-2016
1429,Revenue,CAHD,Home Care - Elderly - South,Supported Living,Lloyds TSB Commercial Finance Limited,8398.02, 16-Sep-2016
1430,Revenue,CAHD,Home Care - Elderly - North,Day Care / Social Activities,Lloyds TSB Commercial Finance Limited,198.24, 16-Sep-2016
1431,Revenue,CAHD,Home Care - Elderly - North,Supported Living,Lloyds TSB Commercial Finance Limited,1846.11, 16-Sep-2016
1432,Revenue,CAHD,Younger MH non-res purchasing,Other Small Contracts,Lloyds TSB Commercial Finance Limited,10788.03, 16-Sep-2016
1433,Revenue,CAHD,18-25 Year Olds,Supported Living,Lloyds TSB Commercial Finance Limited,2878.40, 16-Sep-2016
1434,Revenue,CAHD,Home Care - Elderly - South,Day Care / Social Activities,Lloyds TSB Commercial Finance Limited,5112.94, 16-Sep-2016
1435,Revenue,CAHD,Home Care - Elderly - South,Other Small Contracts,Lloyds TSB Commercial Finance Limited,5907.30, 16-Sep-2016
1436,Revenue,CAHD,Home Care - Elderly - South,Supported Living,Lloyds TSB Commercial Finance Limited,8168.74, 16-Sep-2016
1437,Revenue,CAHD,Home Care - Elderly - North,Day Care / Social Activities,Lloyds TSB Commercial Finance Limited,198.24, 16-Sep-2016
1438,Revenue,CAHD,Home Care - Elderly - North,Supported Living,Lloyds TSB Commercial Finance Limited,1503.32, 16-Sep-2016
1439,Revenue,CAHD,Younger MH non-res purchasing,Other Small Contracts,Lloyds TSB Commercial Finance Limited,10771.44, 16-Sep-2016
1440,Revenue,CAHD,18-25 Year Olds,Supported Living,Lloyds TSB Commercial Finance Limited,2878.40, 16-Sep-2016
1441,Revenue,CAHD,Home Care - Elderly - South,Day Care / Social Activities,Lloyds TSB Commercial Finance Limited,5112.94, 16-Sep-2016
1442,Revenue,CAHD,Home Care - Elderly - South,Other Small Contracts,Lloyds TSB Commercial Finance Limited,5921.01, 16-Sep-2016
1443,Revenue,CAHD,Home Care - Elderly - South,Supported Living,Lloyds TSB Commercial Finance Limited,7358.51, 16-Sep-2016
1444,Revenue,CAHD,Home Care - Elderly - North,Day Care / Social Activities,Lloyds TSB Commercial Finance Limited,198.24, 16-Sep-2016
1445,Revenue,CAHD,Home Care - Elderly - North,Supported Living,Lloyds TSB Commercial Finance Limited,1846.11, 16-Sep-2016
1446,Revenue,CAHD,Younger MH non-res purchasing,Other Small Contracts,Lloyds TSB Commercial Finance Limited,10798.45, 16-Sep-2016
1447,Revenue,CAHD,18-25 Year Olds,Supported Living,Lloyds TSB Commercial Finance Limited,2878.40, 16-Sep-2016
1448,Revenue,CAHD,Home Care - Elderly - South,Day Care / Social Activities,Lloyds TSB Commercial Finance Limited,5100.55, 16-Sep-2016
1449,Revenue,CAHD,Home Care - Elderly - South,Other Small Contracts,Lloyds TSB Commercial Finance Limited,5911.87, 16-Sep-2016
1450,Revenue,CAHD,Home Care - Elderly - South,Supported Living,Lloyds TSB Commercial Finance Limited,8445.44, 16-Sep-2016
1451,Revenue,CAHD,Home Care - Elderly - North,Day Care / Social Activities,Lloyds TSB Commercial Finance Limited,198.24, 16-Sep-2016
1452,Revenue,CAHD,Home Care - Elderly - North,Supported Living,Lloyds TSB Commercial Finance Limited,1462.02, 16-Sep-2016
1453,Revenue,CAHD,Younger MH non-res purchasing,Other Small Contracts,Lloyds TSB Commercial Finance Limited,10761.14, 16-Sep-2016
1454,Revenue,CAHD,18-25 Year Olds,Supported Living,Lloyds TSB Commercial Finance Limited,2878.40, 29-Sep-2016
1455,Revenue,CAHD,Home Care - Elderly - South,Day Care / Social Activities,Lloyds TSB Commercial Finance Limited,5046.86, 29-Sep-2016
1456,Revenue,CAHD,Home Care - Elderly - South,Other Small Contracts,Lloyds TSB Commercial Finance Limited,5916.44, 29-Sep-2016
1457,Revenue,CAHD,Home Care - Elderly - South,Supported Living,Lloyds TSB Commercial Finance Limited,8161.42, 29-Sep-2016
1458,Revenue,CAHD,Home Care - Elderly - North,Day Care / Social Activities,Lloyds TSB Commercial Finance Limited,198.24, 29-Sep-2016
1459,Revenue,CAHD,Home Care - Elderly - North,Supported Living,Lloyds TSB Commercial Finance Limited,1705.69, 29-Sep-2016
1460,Revenue,CAHD,Younger MH non-res purchasing,Other Small Contracts,Lloyds TSB Commercial Finance Limited,10787.79, 29-Sep-2016
1461,Revenue,CAHD,Bed Purchasing - Southmead Hospital,Permanent Nursing,Lodge House,1321.44, 27-Sep-2016
1462,Revenue,CAHD,South Glos Users in South Glos Homes,Permanent Nursing,Lodge House,625.00, 27-Sep-2016
1463,Revenue,CAHD,Bed Purchasing - Southmead Hospital,Permanent Nursing,Lodge House,2376.60, 27-Sep-2016
1464,Revenue,CAHD,South Glos Users in South Glos Homes,Permanent Nursing,Lodge House,625.00, 27-Sep-2016
1465,Revenue,CAHD,South Glos Users in South Glos Homes,Permanent Nursing,Lodge House,625.00, 27-Sep-2016
1466,Revenue,CAHD,Bed Purchasing - South,Permanent Nursing,Lodge House,1697.08, 27-Sep-2016
1467,Revenue,CAHD,South Glos Users in South Glos Homes,Permanent Nursing,Lodge House,625.00, 27-Sep-2016
1468,Revenue,CAHD,South Glos Users in South Glos Homes,Permanent Nursing,Lodge House,625.00, 27-Sep-2016
1469,Revenue,CAHD,South Glos Users in South Glos Homes,Permanent Nursing,Lodge House,625.00, 27-Sep-2016
1470,Revenue,CAHD,South Glos Users in South Glos Homes,Permanent Nursing,Lodge House,625.00, 27-Sep-2016
1471,Revenue,CAHD,Bed Purchasing - South,Permanent Nursing,Lodge House,2065.32, 27-Sep-2016
1472,Revenue,CAHD,South Glos Users in South Glos Homes,Permanent Nursing,Lodge House,625.00, 27-Sep-2016
1473,Revenue,CAHD,Bed Purchasing - South,Permanent Nursing,Lodge House,1722.60, 27-Sep-2016
1474,Revenue,CAHD,South Glos Users in South Glos Homes,Permanent Nursing,Lodge House,625.00, 27-Sep-2016
1475,Revenue,CAHD,South Glos Users in South Glos Homes,Permanent Nursing,Lodge House,625.00, 27-Sep-2016
1476,Revenue,CAHD,Bed Purchasing - South,Permanent Nursing,Lodge House,2293.36, 27-Sep-2016
1477,Revenue,CAHD,South Glos Users in South Glos Homes,Permanent Nursing,Lodge House,625.00, 27-Sep-2016
1478,Revenue,CAHD,Bed Purchasing - South,Permanent Nursing,Lodge House,1794.48, 27-Sep-2016
1479,Revenue,CAHD,South Glos Users in South Glos Homes,Permanent Nursing,Lodge House,625.00, 27-Sep-2016
1480,Revenue,CAHD,Bed Purchasing - Southmead Hospital,Permanent Nursing,Lodge House,2191.24, 27-Sep-2016
1481,Revenue,CAHD,South Glos Users in South Glos Homes,Permanent Nursing,Lodge House,625.00, 27-Sep-2016
1482,Revenue,CAHD,South Glos Users in South Glos Homes,Permanent Nursing,Lodge House,625.00, 27-Sep-2016
1483,Revenue,CAHD,Bed Purchasing - Southmead Hospital,Permanent Nursing,Lodge House,2033.84, 27-Sep-2016
1484,Revenue,CAHD,South Glos Users in South Glos Homes,Permanent Nursing,Lodge House,625.00, 27-Sep-2016
1485,Revenue,CAHD,South Glos Users in South Glos Homes,Permanent Nursing,Lodge House,625.00, 27-Sep-2016
1486,Revenue,CAHD,Bed Purchasing - North,Permanent Nursing,Lodge House,2044.36, 27-Sep-2016
1487,Revenue,CAHD,South Glos Users in South Glos Homes,Permanent Nursing,Lodge House,625.00, 27-Sep-2016
1488,Revenue,CAHD,Bed Purchasing - South,Permanent Nursing,Lodge House,2520.68, 27-Sep-2016
1489,Revenue,CAHD,South Glos Users in South Glos Homes,Permanent Nursing,Lodge House,625.00, 27-Sep-2016
1490,Revenue,CAHD,South Glos Users in South Glos Homes,Permanent Nursing,Lodge House,625.00, 27-Sep-2016
1491,Revenue,CAHD,South Glos Users in South Glos Homes,Permanent Nursing,Lodge House,625.00, 27-Sep-2016
1492,Revenue,CAHD,South Glos Users in South Glos Homes,Permanent Nursing,Lodge House,625.00, 27-Sep-2016
1493,Revenue,CAHD,South Glos Users in South Glos Homes,Permanent Nursing,Lodge House,625.00, 27-Sep-2016
1494,Revenue,CAHD,South Glos Users in South Glos Homes,Permanent Nursing,Lodge House,625.00, 27-Sep-2016
1495,Revenue,CAHD,South Glos Users in South Glos Homes,Permanent Nursing,Lodge House,625.00, 27-Sep-2016
1496,Revenue,CAHD,Bed Purchasing - Elderly S117- North,Permanent Nursing,Lodge House,3252.00, 27-Sep-2016
1497,Revenue,CAHD,South Glos Users in South Glos Homes,Permanent Nursing,Lodge House,625.00, 27-Sep-2016
1498,Revenue,CAHD,South Glos Users in South Glos Homes,Permanent Nursing,Lodge House,625.00, 27-Sep-2016
1499,Revenue,CAHD,South Glos Users in South Glos Homes,Permanent Nursing,Lodge House,625.00, 27-Sep-2016
1500,Revenue,CAHD,South Glos Users in South Glos Homes,Permanent Nursing,Lodge House,625.00, 27-Sep-2016
1501,Revenue,CAHD,South Glos Users in South Glos Homes,Permanent Nursing,Lodge House,625.00, 27-Sep-2016
1502,Revenue,CAHD,Bed Purchasing - Southmead Hospital,Permanent Nursing,Lodge House,3207.04, 27-Sep-2016
1503,Revenue,CAHD,South Glos Users in South Glos Homes,Permanent Nursing,Lodge House,625.00, 27-Sep-2016
1504,Revenue,CAHD,South Glos Users in South Glos Homes,Permanent Nursing,Lodge House,625.00, 27-Sep-2016
1505,Revenue,CAHD,South Glos Users in South Glos Homes,Permanent Nursing,Lodge House,625.00, 27-Sep-2016
1506,Revenue,CAHD,Bed Purchasing - South,Permanent Nursing,Lodge House,2732.20, 27-Sep-2016
1507,Revenue,CAHD,Bed Purchasing - South,Permanent Nursing,Lodge House,2049.15, 27-Sep-2016
1508,Revenue,CAHD,South Glos Users in South Glos Homes,Permanent Nursing,Lodge House,625.00, 27-Sep-2016
1509,Revenue,CAHD,South Glos Users in South Glos Homes,Permanent Nursing,Lodge House,625.00, 27-Sep-2016
1510,Revenue,CAHD,South Glos Users in South Glos Homes,Permanent Nursing,Lodge House,625.00, 27-Sep-2016
1511,Revenue,CAHD,South Glos Users in South Glos Homes,Permanent Nursing,Lodge House,625.00, 27-Sep-2016
1512,Revenue,CAHD,Bed Purchasing - Southmead Hospital,Permanent Nursing,Lodge House,2861.20, 27-Sep-2016
1513,Revenue,CAHD,South Glos Users in South Glos Homes,Permanent Nursing,Lodge House,625.00, 27-Sep-2016
1514,Revenue,CAHD,South Glos Users in South Glos Homes,Permanent Nursing,Lodge House,625.00, 27-Sep-2016
1515,Revenue,CAHD,Bed Purchasing - Southmead Hospital,Permanent Nursing,Lodge House,5327.53, 27-Sep-2016
1516,Revenue,CAHD,South Glos Users in South Glos Homes,Permanent Nursing,Lodge House,625.00, 27-Sep-2016
1517,Revenue,CAHD,South Glos Users in South Glos Homes,Permanent Nursing,Lodge House,625.00, 27-Sep-2016
1518,Revenue,CAHD,South Glos Users in South Glos Homes,Permanent Nursing,Lodge House,625.00, 27-Sep-2016
1519,Revenue,CAHD,Bed Purchasing - South,Permanent Nursing,Lodge House,2522.56, 27-Sep-2016
1520,Revenue,CAHD,South Glos Users in South Glos Homes,Permanent Nursing,Lodge House,625.00, 27-Sep-2016
1521,Revenue,CAHD,South Glos Users in South Glos Homes,Permanent Nursing,Lodge House,625.00, 27-Sep-2016
1522,Revenue,CAHD,Home Care - Elderly - North,Day Care / Social Activities,Lower Kilcott,1481.84, 27-Sep-2016
1523,Revenue,CAHD,Home Care - Elderly - North,Day Care / Social Activities,Lower Kilcott,710.16, 27-Sep-2016
1524,Revenue,CAHD,Social Lettings Agency,Fees - General,Individual,13.60, 05-Sep-2016
1525,Revenue,CAHD,Social Lettings Agency,Other Supplies & Services,Individual,768.40, 05-Sep-2016
1526,Revenue,CAHD,Bed Purchasing - Southmead Hospital,Permanent Nursing,Majestic 3 Limited,1048.60, 27-Sep-2016
1527,Revenue,CAHD,18-25 Year Olds,Day Care / Social Activities,Make it Mentoring CIC Ltd,672.00, 28-Sep-2016
1528,Revenue,CAHD,18-25 Year Olds,Day Care / Social Activities,Make it Mentoring CIC Ltd,1792.00, 22-Sep-2016
1529,Revenue,CAHD,Bed Purchasing - Southmead Hospital,Permanent Residential,Manor Cottage,1308.52, 27-Sep-2016
1530,Revenue,CAHD,Bed Purchasing - South,Permanent Residential,Manor Cottage,1897.20, 27-Sep-2016
1531,Revenue,CAHD,Bed Purchasing - South,Permanent Residential,Manor Cottage,1828.76, 27-Sep-2016
1532,Revenue,CAHD,Bed Purchasing - South,Respite Planned - Residential,Manor Cottage,700.00, 27-Sep-2016
1533,Revenue,CAHD,Bed Purchasing - Southmead Hospital,Permanent Residential,Manor Cottage,1083.16, 27-Sep-2016
1534,Revenue,CAHD,Bed Purchasing - South,Permanent Residential,Manor Cottage,1526.28, 27-Sep-2016
1535,Revenue,CAHD,Younger MH non-res purchasing,Supported Living,Maples Community Care Limited,1206.00, 12-Sep-2016
1536,Revenue,CAHD,Home Care - Elderly - South,Supported Living,Maples Community Care Limited,562.80, 12-Sep-2016
1537,Revenue,CAHD,Younger MH non-res purchasing,Supported Living,Maples Community Care Limited,804.00, 12-Sep-2016
1538,Revenue,CAHD,Younger MH non-res purchasing,Other Small Contracts,Maples Community Care Limited,809.60, 28-Sep-2016
1539,Revenue,CAHD,Younger MH non-res purchasing,Supported Living,Maples Community Care Limited,1214.40, 28-Sep-2016
1540,Revenue,CAHD,Younger MH non-res purchasing,Supported Living,Maples Community Care Limited,1202.28, 28-Sep-2016
1541,Revenue,CAHD,Home Care - Elderly - South,Supported Living,Maples Community Care Limited,956.34, 28-Sep-2016
1542,Revenue,CAHD,Home Care - Elderly - South,Supported Living,Maples Community Care Limited,4432.56, 28-Sep-2016
1543,Revenue,CAHD,Home Care - Elderly - South,Supported Living,Maples Community Care Limited,541.42, 28-Sep-2016
1544,Revenue,CAHD,Younger MH non-res purchasing,Supported Living,Maples Community Care Limited,1214.40, 28-Sep-2016
1545,Revenue,CAHD,Home Care - Elderly - South,Supported Living,Maples Community Care Limited,971.52, 28-Sep-2016
1546,Revenue,CAHD,Younger MH non-res purchasing,Other Small Contracts,Maples Community Care Limited,789.36, 29-Sep-2016
1547,Revenue,CAHD,Younger MH non-res purchasing,Supported Living,Maples Community Care Limited,1214.40, 29-Sep-2016
1548,Revenue,CAHD,Younger MH non-res purchasing,Supported Living,Maples Community Care Limited,1199.22, 29-Sep-2016
1549,Revenue,CAHD,Home Care - Elderly - South,Supported Living,Maples Community Care Limited,971.52, 29-Sep-2016
1550,Revenue,CAHD,Home Care - Elderly - South,Supported Living,Maples Community Care Limited,4533.76, 29-Sep-2016
1551,Revenue,CAHD,Home Care - Elderly - South,Supported Living,Maples Community Care Limited,566.72, 29-Sep-2016
1552,Revenue,CAHD,Younger MH non-res purchasing,Supported Living,Maples Community Care Limited,860.20, 29-Sep-2016
1553,Revenue,CAHD,Younger MH non-res purchasing,Supported Living,Maples Community Care Limited,1419.04, 27-Sep-2016
1554,Revenue,CAHD,Home Care - Elderly - South,Supported Living,Maples Community Care Limited,1419.04, 27-Sep-2016
1555,Revenue,CAHD,Home Care - Elderly - South,Supported Living,Maples Community Care Limited,1419.04, 27-Sep-2016
1556,Revenue,CAHD,Younger MH non-res purchasing,Supported Living,Maples Community Care Limited,1419.04, 27-Sep-2016
1557,Revenue,CAHD,Younger MH non-res purchasing,Supported Living,Maples Community Care Limited,1419.04, 27-Sep-2016
1558,Revenue,CAHD,Younger MH non-res purchasing,Supported Living,Maples Community Care Limited,1419.04, 27-Sep-2016
1559,Revenue,CAHD,Social Lettings Agency,Fees - General,Individual,12.22, 20-Sep-2016
1560,Revenue,CAHD,Social Lettings Agency,Other Supplies & Services,Individual,690.32, 20-Sep-2016
1561,Revenue,CAHD,Bed Purchasing - North,Permanent Residential,Marsden Healthcare Ltd,3275.48, 27-Sep-2016
1562,Revenue,CAHD,Bed Purchasing - South,Permanent Residential,Marsden Healthcare Ltd,1301.28, 27-Sep-2016
1563,Revenue,CAHD,Bed Purchasing - South,Permanent Residential,Marsden Healthcare Ltd,1563.80, 27-Sep-2016
1564,Revenue,CAHD,Bed Purchasing - South,Permanent Nursing,Meadow Care Home,1649.48, 27-Sep-2016
1565,Revenue,CAHD,Bed Purchasing - Elderly S117- North,Permanent Nursing,Meadow Care Home,3851.68, 27-Sep-2016
1566,Revenue,CAHD,Bed purchasing - Elderly S117 - South,Permanent Nursing,Meadow Care Home,4331.12, 27-Sep-2016
1567,Revenue,CAHD,Bed Purchasing - Elderly S117- North,Permanent Nursing,Meadow Care Home,4865.28, 27-Sep-2016
1568,Revenue,CAHD,Home Care - Elderly - South,Day Care / Social Activities,Mears Care,152.00, 12-Sep-2016
1569,Revenue,CAHD,Home Care - Elderly - South,Other Small Contracts,Mears Care,3948.00, 12-Sep-2016
1570,Revenue,CAHD,Home Care - Elderly - North,Other Small Contracts,Mears Care,4296.00, 12-Sep-2016
1571,Revenue,CAHD,Home Care - Elderly - North,Supported Living,Mears Care,64.00, 12-Sep-2016
1572,Revenue,CAHD,Home Care - Elderly - South,Day Care / Social Activities,Mears Care,176.00, 12-Sep-2016
1573,Revenue,CAHD,Home Care - Elderly - South,Other Small Contracts,Mears Care,4032.00, 12-Sep-2016
1574,Revenue,CAHD,Home Care - Elderly - North,Other Small Contracts,Mears Care,4412.00, 12-Sep-2016
1575,Revenue,CAHD,Home Care - Elderly - North,Supported Living,Mears Care,64.00, 12-Sep-2016
1576,Revenue,CAHD,Home Care - Elderly - South,Day Care / Social Activities,Mears Care,180.00, 12-Sep-2016
1577,Revenue,CAHD,Home Care - Elderly - South,Other Small Contracts,Mears Care,4076.00, 12-Sep-2016
1578,Revenue,CAHD,Home Care - Elderly - North,Other Small Contracts,Mears Care,4248.00, 12-Sep-2016
1579,Revenue,CAHD,Home Care - Elderly - North,Supported Living,Mears Care,64.00, 12-Sep-2016
1580,Revenue,CAHD,Home Care - Elderly - South,Day Care / Social Activities,Mears Care,180.00, 12-Sep-2016
1581,Revenue,CAHD,Home Care - Elderly - South,Other Small Contracts,Mears Care,4036.00, 12-Sep-2016
1582,Revenue,CAHD,Home Care - Elderly - North,Other Small Contracts,Mears Care,4332.00, 12-Sep-2016
1583,Revenue,CAHD,Home Care - Elderly - North,Supported Living,Mears Care,68.00, 12-Sep-2016
1584,Revenue,CAHD,Home Care - Elderly - South,Day Care / Social Activities,Mears Care,172.00, 29-Sep-2016
1585,Revenue,CAHD,Home Care - Elderly - South,Other Small Contracts,Mears Care,3944.00, 29-Sep-2016
1586,Revenue,CAHD,Home Care - Elderly - North,Other Small Contracts,Mears Care,4360.00, 29-Sep-2016
1587,Revenue,CAHD,Home Care - Elderly - North,Supported Living,Mears Care,96.00, 29-Sep-2016
1588,Revenue,CAHD,Home Care - Elderly - South,Day Care / Social Activities,Mears Care,116.00, 29-Sep-2016
1589,Revenue,CAHD,Home Care - Elderly - South,Other Small Contracts,Mears Care,3240.00, 29-Sep-2016
1590,Revenue,CAHD,Home Care - Elderly - North,Other Small Contracts,Mears Care,3372.00, 29-Sep-2016
1591,Revenue,CAHD,Home Care - Elderly - North,Supported Living,Mears Care,24.00, 29-Sep-2016
1592,Revenue,CAHD,Home Care - Elderly - South,Day Care / Social Activities,Mears Care,164.00, 29-Sep-2016
1593,Revenue,CAHD,Home Care - Elderly - South,Other Small Contracts,Mears Care,3088.00, 29-Sep-2016
1594,Revenue,CAHD,Home Care - Elderly - North,Other Small Contracts,Mears Care,3036.00, 29-Sep-2016
1595,Revenue,CAHD,Home Care - Elderly - North,Supported Living,Mears Care,32.00, 29-Sep-2016
1596,Revenue,CAHD,Home Care - Elderly - South,Private & Voluntary Home Care,Mears Care,49770.25, 28-Sep-2016
1597,Revenue,CAHD,Woodleaze,Equipment Maintenance,Medaco,1404.00, 16-Sep-2016
1598,Revenue,CAHD,Home Care - Elderly - South,Other Small Contracts,Medacs Home Care,14.36, 01-Sep-2016
1599,Revenue,CAHD,Home Care - Elderly - North,Other Small Contracts,Medacs Home Care,226.17, 01-Sep-2016
1600,Revenue,CAHD,Home Care - Elderly - North,Supported Living,Medacs Home Care,283.61, 01-Sep-2016
1601,Revenue,CAHD,Home Care - Elderly - North,Other Small Contracts,Medacs Home Care,229.76, 06-Sep-2016
1602,Revenue,CAHD,Home Care - Elderly - North,Supported Living,Medacs Home Care,287.20, 06-Sep-2016
1603,Revenue,CAHD,Home Care - Elderly - North,Other Small Contracts,Medacs Home Care,233.35, 29-Sep-2016
1604,Revenue,CAHD,Home Care - Elderly - North,Supported Living,Medacs Home Care,301.56, 29-Sep-2016
1605,Revenue,CAHD,ICES / NRS Contract,Daily Living Equipment,Medequip Assistive Technology Limited,164603.14, 30-Sep-2016
1606,Revenue,CAHD,Bed Purchasing - South,Permanent Residential,Mencap,2332.96, 27-Sep-2016
1607,Revenue,CAHD,Supporting People Programme,Grants to Voluntary Bodies,Merlin Housing Society,14987.58, 01-Sep-2016
1608,Revenue,CAHD,Supporting People Programme,Grants to Voluntary Bodies,Merlin Housing Society,2519.33, 01-Sep-2016
1609,Revenue,CAHD,Supporting People Programme,Grants to Voluntary Bodies,Merlin Housing Society,20687.41, 01-Sep-2016
1610,Revenue,CAHD,Supporting People Programme,Grants to Voluntary Bodies,Merlin Housing Society,1067.33, 01-Sep-2016
1611,Revenue,CAHD,Supporting People Programme,Grants to Voluntary Bodies,Merlin Housing Society,14987.58, 30-Sep-2016
1612,Revenue,CAHD,Supporting People Programme,Grants to Voluntary Bodies,Merlin Housing Society,2519.33, 30-Sep-2016
1613,Revenue,CAHD,Supporting People Programme,Grants to Voluntary Bodies,Merlin Housing Society,20687.41, 30-Sep-2016
1614,Revenue,CAHD,Supporting People Programme,Grants to Voluntary Bodies,Merlin Housing Society,1067.33, 30-Sep-2016
1615,Revenue,CAHD,Home Care - Elderly - South,Supported Living,Milestones - Unit 10,2131.96, 27-Sep-2016
1616,Revenue,CAHD,Home Care - Elderly - South,Supported Living,Milestones - Unit 10,3681.16, 27-Sep-2016
1617,Revenue,CAHD,Home Care - Elderly - North,Supported Living,Milestones - Unit 10,4362.68, 27-Sep-2016
1618,Revenue,CAHD,Home Care - Elderly - South,Supported Living,Milestones - Unit 10,1371.60, 27-Sep-2016
1619,Revenue,CAHD,Home Care - Elderly - South,Supported Living,Milestones - Unit 10,3681.16, 27-Sep-2016
1620,Revenue,CAHD,Home Care - Elderly - North,Supported Living,Milestones - Unit 10,4131.76, 27-Sep-2016
1621,Revenue,CAHD,Home Care - Elderly - South,Supported Living,Milestones - Unit 10,3693.16, 27-Sep-2016
1622,Revenue,CAHD,Home Care - Elderly - South,Supported Living,Milestones - Unit 10,2349.20, 27-Sep-2016
1623,Revenue,CAHD,Home Care - Elderly - North,Supported Living,Milestones - Unit 10,4131.76, 27-Sep-2016
1624,Revenue,CAHD,Home Care - Elderly - South,Supported Living,Milestones - Unit 10,3934.12, 27-Sep-2016
1625,Revenue,CAHD,Supported Living (S28a) North,Supported Living,Milestones - Unit 10,3652.08, 27-Sep-2016
1626,Revenue,CAHD,Supported Living (S28a) North,Supported Living,Milestones - Unit 10,3652.08, 27-Sep-2016
1627,Revenue,CAHD,Home Care - Elderly - South,Supported Living,Milestones - Unit 10,1268.04, 27-Sep-2016
1628,Revenue,CAHD,Supported Living (S28a) South,Supported Living,Milestones - Unit 10,5580.68, 27-Sep-2016
1629,Revenue,CAHD,Home Care - Elderly - South,Supported Living,Milestones - Unit 10,2262.88, 27-Sep-2016
1630,Revenue,CAHD,Supported Living (S28a) South,Supported Living,Milestones - Unit 10,2262.88, 27-Sep-2016
1631,Revenue,CAHD,Home Care - Elderly - North,Supported Living,Milestones - Unit 10,4362.68, 27-Sep-2016
1632,Revenue,CAHD,Home Care - Elderly - South,Supported Living,Milestones - Unit 10,2131.96, 27-Sep-2016
1633,Revenue,CAHD,Supported Living (S28a) North,Supported Living,Milestones - Unit 10,3664.36, 27-Sep-2016
1634,Revenue,CAHD,Supported Living (S28a) South,Supported Living,Milestones - Unit 10,2262.88, 27-Sep-2016
1635,Revenue,CAHD,Supported Living (S28a) South,Supported Living,Milestones - Unit 10,2262.88, 27-Sep-2016
1636,Revenue,CAHD,Section 117 Placements MH Younger,Permanent Nursing,Milestones - Unit 10,3547.60, 27-Sep-2016
1637,Revenue,CAHD,South Glos Users in South Glos Homes,Permanent Nursing,Milestones - Unit 10,625.00, 27-Sep-2016
1638,Revenue,CAHD,South Glos Users in South Glos Homes,Permanent Nursing,Milestones - Unit 10,625.00, 27-Sep-2016
1639,Revenue,CAHD,Bed Purchasing - South,Permanent Residential,Milestones - Unit 10,4992.88, 27-Sep-2016
1640,Revenue,CAHD,Bed Purchasing - South,Permanent Residential,Milestones - Unit 10,5176.32, 27-Sep-2016
1641,Revenue,CAHD,Jointly Funded H&SC Packages,Permanent Residential,Milestones - Unit 10,1359.60, 27-Sep-2016
1642,Revenue,CAHD,Bed Purchasing - South,Permanent Nursing,Milestones - Unit 10,2809.36, 27-Sep-2016
1643,Revenue,CAHD,Bed Purchasing - South,Permanent Nursing,Milestones - Unit 10,1316.36, 27-Sep-2016
1644,Revenue,CAHD,Bed Purchasing - South,Permanent Residential,Milestones - Unit 10,3679.64, 27-Sep-2016
1645,Revenue,CAHD,Bed purchasing - Elderly S117 - South,Permanent Nursing,Milestones - Unit 10,4929.52, 27-Sep-2016
1646,Revenue,CAHD,Jointly Funded H&SC Packages,Permanent Nursing,Milestones - Unit 10,2886.72, 27-Sep-2016
1647,Revenue,CAHD,South Glos Users in South Glos Homes,Permanent Nursing,Milestones - Unit 10,625.00, 27-Sep-2016
1648,Revenue,CAHD,Bed Purchasing - North,Permanent Nursing,Milestones - Unit 10,1440.96, 27-Sep-2016
1649,Revenue,CAHD,Bed Purchasing - North,Permanent Residential,Milestones - Unit 10,8970.04, 27-Sep-2016
1650,Revenue,CAHD,South Glos Users in South Glos Homes,Permanent Nursing,Milestones - Unit 10,625.00, 27-Sep-2016
1651,Revenue,CAHD,South Glos Users in South Glos Homes,Permanent Nursing,Milestones - Unit 10,625.00, 27-Sep-2016
1652,Revenue,CAHD,South Glos Users in South Glos Homes,Permanent Nursing,Milestones - Unit 10,625.00, 27-Sep-2016
1653,Revenue,CAHD,Bed Purchasing - South,Permanent Residential,Milestones - Unit 10,4319.08, 27-Sep-2016
1654,Revenue,CAHD,Bed Purchasing - South,Permanent Residential,Milestones - Unit 10,4247.08, 27-Sep-2016
1655,Revenue,CAHD,Bed Purchasing - North,Permanent Nursing,Milestones - Unit 10,4375.00, 27-Sep-2016
1656,Revenue,CAHD,Bed purchasing -S28A  Under 65 - North,Permanent Residential,Milestones - Unit 10,5450.24, 27-Sep-2016
1657,Revenue,CAHD,Bed purchasing - S28A Under 65 - South,Permanent Residential,Milestones - Unit 10,5590.24, 27-Sep-2016
1658,Revenue,CAHD,Bed Purchasing - South,Permanent Residential,Milestones - Unit 10,1356.80, 27-Sep-2016
1659,Revenue,CAHD,Bed Purchasing - South,Permanent Residential,Milestones - Unit 10,5115.28, 27-Sep-2016
1660,Revenue,CAHD,Bed Purchasing - South,Permanent Residential,Milestones - Unit 10,5676.44, 27-Sep-2016
1661,Revenue,CAHD,Bed purchasing - S28A Under 65 - South,Permanent Nursing,Milestones - Unit 10,7458.52, 27-Sep-2016
1662,Revenue,CAHD,MH Purchasing - Younger,Permanent Residential,Milestones - Unit 10,879.64, 27-Sep-2016
1663,Revenue,CAHD,Bed Purchasing - South,Permanent Residential,Milestones - Unit 10,5185.20, 27-Sep-2016
1664,Revenue,CAHD,Bed Purchasing - South,Permanent Residential,Milestones - Unit 10,5235.36, 27-Sep-2016
1665,Revenue,CAHD,Bed Purchasing - Southmead Hospital,Permanent Residential,Milestones - Unit 10,3660.76, 27-Sep-2016
1666,Revenue,CAHD,Bed Purchasing - North,Permanent Residential,Milestones - Unit 10,4359.12, 27-Sep-2016
1667,Revenue,CAHD,Bed purchasing -S28A  Under 65 - North,Permanent Nursing,Milestones - Unit 10,5394.36, 27-Sep-2016
1668,Revenue,CAHD,South Glos Users in South Glos Homes,Permanent Nursing,Milestones - Unit 10,625.00, 27-Sep-2016
1669,Revenue,CAHD,Bed Purchasing - North,Permanent Residential,Milestones - Unit 10,4792.16, 27-Sep-2016
1670,Revenue,CAHD,Bed purchasing -S28A  Under 65 - North,Permanent Residential,Milestones - Unit 10,7237.44, 27-Sep-2016
1671,Revenue,CAHD,Bed purchasing -S28A  Under 65 - North,Permanent Nursing,Milestones - Unit 10,5949.20, 27-Sep-2016
1672,Revenue,CAHD,South Glos Users in South Glos Homes,Permanent Nursing,Milestones - Unit 10,625.00, 27-Sep-2016
1673,Revenue,CAHD,Bed Purchasing - South,Permanent Residential,Milestones - Unit 10,3323.04, 27-Sep-2016
1674,Revenue,CAHD,Bed purchasing -S28A  Under 65 - North,Permanent Residential,Milestones - Unit 10,6926.36, 27-Sep-2016
1675,Revenue,CAHD,Bed Purchasing - South,Permanent Residential,Milestones - Unit 10,4645.72, 27-Sep-2016
1676,Revenue,CAHD,Bed Purchasing - South,Permanent Residential,Milestones - Unit 10,11894.90, 27-Sep-2016
1677,Revenue,CAHD,Bed purchasing - S28A Under 65 - South,Permanent Residential,Milestones - Unit 10,4679.64, 27-Sep-2016
1678,Revenue,CAHD,Bed Purchasing - S28A - Over 65- North,Permanent Residential,Milestones - Unit 10,6751.80, 27-Sep-2016
1679,Revenue,CAHD,Bed purchasing -S28A  Under 65 - North,Permanent Residential,Milestones - Unit 10,7197.64, 27-Sep-2016
1680,Revenue,CAHD,Bed purchasing -S28A  Under 65 - North,Permanent Residential,Milestones - Unit 10,7237.64, 27-Sep-2016
1681,Revenue,CAHD,Bed Purchasing - LD S28A- Over 65- South,Permanent Residential,Milestones - Unit 10,4219.24, 27-Sep-2016
1682,Revenue,CAHD,Bed purchasing - S28A Under 65 - South,Permanent Residential,Milestones - Unit 10,4551.76, 27-Sep-2016
1683,Revenue,CAHD,Bed purchasing - S28A Under 65 - South,Permanent Residential,Milestones - Unit 10,3789.96, 27-Sep-2016
1684,Revenue,CAHD,Bed Purchasing - LD S28A- Over 65- South,Permanent Residential,Milestones - Unit 10,5201.24, 27-Sep-2016
1685,Revenue,CAHD,Bed Purchasing - LD S28A- Over 65- South,Permanent Residential,Milestones - Unit 10,4853.32, 27-Sep-2016
1686,Revenue,CAHD,Bed Purchasing - LD S28A- Over 65- South,Permanent Residential,Milestones - Unit 10,5185.08, 27-Sep-2016
1687,Revenue,CAHD,Bed Purchasing - LD S28A- Over 65- South,Permanent Residential,Milestones - Unit 10,4482.56, 27-Sep-2016
1688,Revenue,CAHD,Bed Purchasing - LD S28A- Over 65- South,Permanent Residential,Milestones - Unit 10,5282.28, 27-Sep-2016
1689,Revenue,CAHD,Bed Purchasing - S28A - Over 65- North,Permanent Residential,Milestones - Unit 10,2956.72, 27-Sep-2016
1690,Revenue,CAHD,Bed Purchasing - South,Permanent Residential,Milestones - Unit 10,4523.52, 27-Sep-2016
1691,Revenue,CAHD,Section 117 Placements MH Younger,Permanent Residential,Milestones - Unit 10,1402.44, 27-Sep-2016
1692,Revenue,CAHD,Bed Purchasing - South,Permanent Residential,Milestones - Unit 10,893.44, 27-Sep-2016
1693,Revenue,CAHD,Bed Purchasing - Southmead Hospital,Permanent Nursing,Milestones - Unit 10,5894.84, 27-Sep-2016
1694,Revenue,CAHD,Bed Purchasing - North,Permanent Residential,Milestones - Unit 10,4435.28, 27-Sep-2016
1695,Revenue,CAHD,Bed Purchasing - North,Permanent Nursing,Milestones - Unit 10,7038.56, 27-Sep-2016
1696,Revenue,CAHD,South Glos Users in South Glos Homes,Permanent Nursing,Milestones - Unit 10,625.00, 27-Sep-2016
1697,Revenue,CAHD,Bed Purchasing - South,Permanent Residential,Milestones - Unit 10,4417.12, 27-Sep-2016
1698,Revenue,CAHD,Bed purchasing -S28A  Under 65 - North,Permanent Residential,Milestones - Unit 10,5820.32, 27-Sep-2016
1699,Revenue,CAHD,Bed Purchasing - S28A - Over 65- North,Permanent Residential,Milestones - Unit 10,3704.08, 27-Sep-2016
1700,Revenue,CAHD,Bed Purchasing - Southmead Hospital,Permanent Residential,Milestones - Unit 10,3267.96, 27-Sep-2016
1701,Revenue,CAHD,MH Purchasing - Younger,Permanent Residential,Milestones - Unit 10,1080.64, 27-Sep-2016
1702,Revenue,CAHD,Bed Purchasing - S28A - Over 65- North,Permanent Residential,Milestones - Unit 10,3307.16, 27-Sep-2016
1703,Revenue,CAHD,Bed Purchasing - LD S28A- Over 65- South,Permanent Residential,Milestones - Unit 10,3996.20, 27-Sep-2016
1704,Revenue,CAHD,Bed purchasing - S28A Under 65 - South,Permanent Residential,Milestones - Unit 10,5303.96, 27-Sep-2016
1705,Revenue,CAHD,Bed purchasing - S28A Under 65 - South,Permanent Nursing,Milestones - Unit 10,5300.36, 27-Sep-2016
1706,Revenue,CAHD,South Glos Users in South Glos Homes,Permanent Nursing,Milestones - Unit 10,625.00, 27-Sep-2016
1707,Revenue,CAHD,Bed Purchasing - LD S28A- Over 65- South,Permanent Nursing,Milestones - Unit 10,5338.96, 27-Sep-2016
1708,Revenue,CAHD,South Glos Users in South Glos Homes,Permanent Nursing,Milestones - Unit 10,625.00, 27-Sep-2016
1709,Revenue,CAHD,Bed Purchasing - LD S28A- Over 65- South,Permanent Residential,Milestones - Unit 10,4855.28, 27-Sep-2016
1710,Revenue,CAHD,Bed Purchasing - LD S28A- Over 65- South,Permanent Residential,Milestones - Unit 10,4737.08, 27-Sep-2016
1711,Revenue,CAHD,Bed purchasing - S28A Under 65 - South,Permanent Residential,Milestones - Unit 10,6204.36, 27-Sep-2016
1712,Revenue,CAHD,Bed Purchasing - LD S28A- Over 65- South,Permanent Residential,Milestones - Unit 10,4766.88, 27-Sep-2016
1713,Revenue,CAHD,Bed Purchasing - S28A - Over 65- North,Permanent Nursing,Milestones - Unit 10,4852.12, 27-Sep-2016
1714,Revenue,CAHD,South Glos Users in South Glos Homes,Permanent Nursing,Milestones - Unit 10,625.00, 27-Sep-2016
1715,Revenue,CAHD,Bed Purchasing - South,Permanent Nursing,Milestones - Unit 10,3364.96, 27-Sep-2016
1716,Revenue,CAHD,South Glos Users in South Glos Homes,Permanent Nursing,Milestones - Unit 10,625.00, 27-Sep-2016
1717,Revenue,CAHD,Bed Purchasing - S28A - Over 65- North,Permanent Residential,Milestones - Unit 10,4725.40, 27-Sep-2016
1718,Revenue,CAHD,Bed purchasing - S28A Under 65 - South,Permanent Residential,Milestones - Unit 10,4917.44, 27-Sep-2016
1719,Revenue,CAHD,Bed Purchasing - S28A - Over 65- North,Permanent Residential,Milestones - Unit 10,4637.28, 27-Sep-2016
1720,Revenue,CAHD,Bed purchasing -S28A  Under 65 - North,Permanent Residential,Milestones - Unit 10,7237.64, 27-Sep-2016
1721,Revenue,CAHD,Bed purchasing -S28A  Under 65 - North,Permanent Residential,Milestones - Unit 10,3418.40, 27-Sep-2016
1722,Revenue,CAHD,Jointly Funded H&SC Packages,Permanent Residential,Milestones - Unit 10,3717.52, 27-Sep-2016
1723,Revenue,CAHD,Bed Purchasing - North,Permanent Residential,Milestones - Unit 10,2409.36, 27-Sep-2016
1724,Revenue,CAHD,Bed Purchasing - S28A - Over 65- North,Permanent Residential,Milestones - Unit 10,3530.80, 27-Sep-2016
1725,Revenue,CAHD,Bed Purchasing - North,Permanent Residential,Milestones - Unit 10,9790.44, 27-Sep-2016
1726,Revenue,CAHD,Jointly Funded H&SC Packages,Permanent Residential,Milestones - Unit 10,530.36, 27-Sep-2016
1727,Revenue,CAHD,South Glos Users in South Glos Homes,Permanent Nursing,Milestones - Unit 10,625.00, 27-Sep-2016
1728,Revenue,CAHD,Bed Purchasing - North,Permanent Nursing,Milestones - Unit 10,1367.72, 27-Sep-2016
1729,Revenue,CAHD,South Glos Users in South Glos Homes,Permanent Nursing,Milestones - Unit 10,625.00, 27-Sep-2016
1730,Revenue,CAHD,MH Purchasing - Younger,Permanent Nursing,Milestones - Unit 10,985.52, 27-Sep-2016
1731,Revenue,CAHD,South Glos Users in South Glos Homes,Permanent Nursing,Milestones - Unit 10,625.00, 27-Sep-2016
1732,Revenue,CAHD,South Glos Users in South Glos Homes,Permanent Nursing,Milestones - Unit 10,691.96, 27-Sep-2016
1733,Revenue,CAHD,South Glos Users in South Glos Homes,Permanent Nursing,Milestones - Unit 10,625.00, 27-Sep-2016
1734,Revenue,CAHD,South Glos Users in South Glos Homes,Permanent Nursing,Milestones - Unit 10,625.00, 27-Sep-2016
1735,Revenue,CAHD,Bed Purchasing - South,Permanent Residential,Milestones - Unit 10,3348.12, 27-Sep-2016
1736,Revenue,CAHD,South Glos Users in South Glos Homes,Permanent Nursing,Milestones - Unit 10,625.00, 27-Sep-2016
1737,Revenue,CAHD,Bed purchasing - S28A Under 65 - South,Permanent Residential,Milestones - Unit 10,6069.84, 27-Sep-2016
1738,Revenue,CAHD,Bed purchasing - S28A Under 65 - South,Permanent Residential,Milestones - Unit 10,6142.88, 27-Sep-2016
1739,Revenue,CAHD,Bed Purchasing - Southmead Hospital,Permanent Nursing,Milestones - Unit 10,5920.40, 27-Sep-2016
1740,Revenue,CAHD,Bed Purchasing - LD S28A- Over 65- South,Permanent Residential,Milestones - Unit 10,4482.56, 27-Sep-2016
1741,Revenue,CAHD,Bed Purchasing - South,Permanent Residential,Milestones - Unit 10,6070.28, 27-Sep-2016
1742,Revenue,CAHD,Bed Purchasing - LD S28A- Over 65- South,Permanent Nursing,Milestones - Unit 10,5338.96, 27-Sep-2016
1743,Revenue,CAHD,South Glos Users in South Glos Homes,Permanent Nursing,Milestones - Unit 10,625.00, 27-Sep-2016
1744,Revenue,CAHD,Bed Purchasing - LD S28A- Over 65- South,Permanent Residential,Milestones - Unit 10,3644.04, 27-Sep-2016
1745,Revenue,CAHD,Bed Purchasing - South,Permanent Residential,Milestones - Unit 10,4472.36, 27-Sep-2016
1746,Revenue,CAHD,Bed Purchasing - South,Permanent Residential,Milestones - Unit 10,1286.60, 27-Sep-2016
1747,Revenue,CAHD,Bed purchasing -S28A  Under 65 - North,Permanent Nursing,Milestones - Unit 10,7807.00, 27-Sep-2016
1748,Revenue,CAHD,South Glos Users in South Glos Homes,Permanent Nursing,Milestones - Unit 10,625.00, 27-Sep-2016
1749,Revenue,CAHD,Bed Purchasing - North,Permanent Nursing,Milestones - Unit 10,1513.60, 27-Sep-2016
1750,Revenue,CAHD,Section 117 Placements MH Younger,Permanent Residential,Milestones - Unit 10,1402.44, 27-Sep-2016
1751,Revenue,CAHD,Bed Purchasing - South,Permanent Nursing,Milestones - Unit 10,3430.56, 27-Sep-2016
1752,Revenue,CAHD,Bed Purchasing - South,Permanent Nursing,Milestones - Unit 10,2835.96, 27-Sep-2016
1753,Revenue,CAHD,Bed Purchasing - S28A - Over 65- North,Permanent Nursing,Milestones - Unit 10,3720.92, 27-Sep-2016
1754,Revenue,CAHD,Bed Purchasing - Southmead Hospital,Permanent Nursing,Milestones - Unit 10,3125.60, 27-Sep-2016
1755,Revenue,CAHD,Home Care - Elderly - South,Other Small Contracts,Milestones Homecare & Dementia Service,1093.26, 02-Sep-2016
1756,Revenue,CAHD,Home Care - Elderly - North,Other Small Contracts,Milestones Homecare & Dementia Service,1991.01, 02-Sep-2016
1757,Revenue,CAHD,Home care - Elderly MH - North,Other Small Contracts,Milestones Homecare & Dementia Service,67.83, 02-Sep-2016
1758,Revenue,CAHD,Home Care - Elderly - South,Other Small Contracts,Milestones Homecare & Dementia Service,1069.32, 08-Sep-2016
1759,Revenue,CAHD,Home Care - Elderly - North,Other Small Contracts,Milestones Homecare & Dementia Service,1911.21, 08-Sep-2016
1760,Revenue,CAHD,Home care - Elderly MH - North,Other Small Contracts,Milestones Homecare & Dementia Service,83.79, 08-Sep-2016
1761,Revenue,CAHD,Home Care - Elderly - South,Other Small Contracts,Milestones Homecare & Dementia Service,1097.25, 23-Sep-2016
1762,Revenue,CAHD,Home Care - Elderly - North,Other Small Contracts,Milestones Homecare & Dementia Service,1795.50, 23-Sep-2016
1763,Revenue,CAHD,Home care - Elderly MH - North,Other Small Contracts,Milestones Homecare & Dementia Service,83.79, 23-Sep-2016
1764,Revenue,CAHD,Home Care - Elderly - South,Day Care / Social Activities,Milestones Supported Living Services,7821.59, 01-Sep-2016
1765,Revenue,CAHD,Home Care - Elderly - South,Other Small Contracts,Milestones Supported Living Services,2225.16, 01-Sep-2016
1766,Revenue,CAHD,Home Care - Elderly - South,Supported Living,Milestones Supported Living Services,1822.94, 01-Sep-2016
1767,Revenue,CAHD,Home Care - Elderly - North,Day Care / Social Activities,Milestones Supported Living Services,2517.20, 01-Sep-2016
1768,Revenue,CAHD,Home Care - Elderly - North,Other Small Contracts,Milestones Supported Living Services,820.40, 01-Sep-2016
1769,Revenue,CAHD,Home Care - Elderly - North,Supported Living,Milestones Supported Living Services,154.28, 01-Sep-2016
1770,Revenue,CAHD,Day Care - South,Day Care / Social Activities,Milestones Supported Living Services,101.50, 01-Sep-2016
1771,Revenue,CAHD,Day Care - North,Day Care / Social Activities,Milestones Supported Living Services,138.04, 01-Sep-2016
1772,Revenue,CAHD,Younger MH non-res purchasing,Day Care / Social Activities,Milestones Supported Living Services,24.36, 01-Sep-2016
1773,Revenue,CAHD,Home care - Elderly MH - North,Other Small Contracts,Milestones Supported Living Services,138.04, 01-Sep-2016
1774,Revenue,CAHD,Home Care - Elderly - North,Day Care / Social Activities,Milestones Trust,1164.75, 20-Sep-2016
1775,Revenue,CAHD,Bed Purchasing - Southmead Hospital,Permanent Nursing,Millennium House,3122.72, 27-Sep-2016
1776,Revenue,CAHD,Bed Purchasing - North,Permanent Residential,Millennium House,1481.48, 27-Sep-2016
1777,Revenue,CAHD,LD Direct Payments Over 65 North,One-off Planned Direct Payment,Miss Deborah Badman,1290.93, 09-Sep-2016
1778,Revenue,CAHD,Bed Purchasing - Southmead Hospital,Permanent Residential,Mostyn Lodge Residential Home,1185.56, 27-Sep-2016
1779,Revenue,CAHD,Bed Purchasing - North,Permanent Residential,Mostyn Lodge Residential Home,1286.40, 27-Sep-2016
1780,Revenue,CAHD,Home Care - Elderly - South,Supported Living,Moving On,5019.76, 02-Sep-2016
1781,Revenue,CAHD,Home Care - Elderly - South,Supported Living,Moving On,727.32, 21-Sep-2016
1782,Revenue,CAHD,Home Care - Elderly - South,Supported Living,Moving On,737.44, 22-Sep-2016
1783,Revenue,CAHD,Home Care - Elderly - South,Supported Living,Moving On,737.44, 12-Sep-2016
1784,Revenue,CAHD,Home Care - Elderly - South,Supported Living,Moving On (UK) Limited,1290.52, 27-Sep-2016
1785,Revenue,CAHD,Social Lettings Agency,Fees - General,Individual,10.53, 22-Sep-2016
1786,Revenue,CAHD,Social Lettings Agency,Other Supplies & Services,Individual,595.11, 22-Sep-2016
1787,Revenue,CAHD,Social Lettings Agency,Fees - General,Individual,7.24, 22-Sep-2016
1788,Revenue,CAHD,Social Lettings Agency,Other Supplies & Services,Individual,614.85, 22-Sep-2016
1789,Revenue,CAHD,Supporting People Programme,Grants to Voluntary Bodies,Mr & Mrs Watts,1023.33, 01-Sep-2016
1790,Revenue,CAHD,Supporting People Programme,Grants to Voluntary Bodies,Mr & Mrs Watts,1023.33, 30-Sep-2016
1791,Revenue,CAHD,Social Lettings Agency,Fees - General,Individual,12.22, 30-Sep-2016
1792,Revenue,CAHD,Social Lettings Agency,Other Supplies & Services,Individual,690.32, 30-Sep-2016
1793,Revenue,CAHD,Tenancy Start Up Scheme,Other Supplies & Services,Individual,1250.00, 16-Sep-2016
1794,Revenue,CAHD,Homeless - Private Sector Leasing,Other Supplies & Services,Individual,570.00, 06-Sep-2016
1795,Revenue,CAHD,Tenancy Start Up Scheme,Other Supplies & Services,Individual,1600.00, 15-Sep-2016
1796,Revenue,CAHD,Homeless - Private Sector Leasing,Other Supplies & Services,Individual,595.00, 23-Sep-2016
1797,Revenue,CAHD,Social Lettings Agency,Fees - General,Individual,16.85, 07-Sep-2016
1798,Revenue,CAHD,Social Lettings Agency,Other Supplies & Services,Individual,951.89, 07-Sep-2016
1799,Revenue,CAHD,Learning Difficulties PSL,Other Supplies & Services,Individual,778.47, 23-Sep-2016
1800,Revenue,CAHD,Social Lettings Agency,Fees - General,Individual,10.53, 01-Sep-2016
1801,Revenue,CAHD,Social Lettings Agency,Other Supplies & Services,Individual,595.11, 01-Sep-2016
1802,Revenue,CAHD,Social Lettings Agency,Fees - General,Individual,10.53, 30-Sep-2016
1803,Revenue,CAHD,Social Lettings Agency,Other Supplies & Services,Individual,595.11, 30-Sep-2016
1804,Revenue,CAHD,Social Lettings Agency,Fees - General,Individual,10.53, 01-Sep-2016
1805,Revenue,CAHD,Social Lettings Agency,Other Supplies & Services,Individual,595.11, 01-Sep-2016
1806,Revenue,CAHD,Social Lettings Agency,Fees - General,Individual,10.53, 30-Sep-2016
1807,Revenue,CAHD,Social Lettings Agency,Other Supplies & Services,Individual,595.11, 30-Sep-2016
1808,Revenue,CAHD,Social Lettings Agency,Fees - General,Individual,10.53, 01-Sep-2016
1809,Revenue,CAHD,Social Lettings Agency,Other Supplies & Services,Individual,595.11, 01-Sep-2016
1810,Revenue,CAHD,Social Lettings Agency,Fees - General,Individual,10.53, 30-Sep-2016
1811,Revenue,CAHD,Social Lettings Agency,Other Supplies & Services,Individual,595.11, 30-Sep-2016
1812,Revenue,CAHD,Social Lettings Agency,Fees - General,Individual,10.53, 01-Sep-2016
1813,Revenue,CAHD,Social Lettings Agency,Other Supplies & Services,Individual,595.11, 01-Sep-2016
1814,Revenue,CAHD,Social Lettings Agency,Fees - General,Individual,10.53, 30-Sep-2016
1815,Revenue,CAHD,Social Lettings Agency,Other Supplies & Services,Individual,595.11, 30-Sep-2016
1816,Revenue,CAHD,Social Lettings Agency,Fees - General,Individual,10.53, 08-Sep-2016
1817,Revenue,CAHD,Social Lettings Agency,Other Supplies & Services,Individual,595.11, 08-Sep-2016
1818,Revenue,CAHD,Social Lettings Agency,Fees - General,Individual,12.22, 09-Sep-2016
1819,Revenue,CAHD,Social Lettings Agency,Other Supplies & Services,Individual,690.32, 09-Sep-2016
1820,Revenue,CAHD,Social Lettings Agency,Fees - General,Individual,12.22, 02-Sep-2016
1821,Revenue,CAHD,Social Lettings Agency,Other Supplies & Services,Individual,690.32, 02-Sep-2016
1822,Revenue,CAHD,Social Lettings Agency,Fees - General,Individual,12.22, 30-Sep-2016
1823,Revenue,CAHD,Social Lettings Agency,Other Supplies & Services,Individual,690.32, 30-Sep-2016
1824,Revenue,CAHD,Social Lettings Agency,Fees - General,Individual,10.53, 22-Sep-2016
1825,Revenue,CAHD,Social Lettings Agency,Other Supplies & Services,Individual,595.11, 22-Sep-2016
1826,Revenue,CAHD,Tenancy Start Up Scheme,Other Supplies & Services,Individual,1300.00, 30-Sep-2016
1827,Revenue,CAHD,Social Lettings Agency,Fees - General,Individual,12.22, 20-Sep-2016
1828,Revenue,CAHD,Social Lettings Agency,Other Supplies & Services,Individual,690.32, 20-Sep-2016
1829,Revenue,CAHD,Social Lettings Agency,Fees - General,Individual,10.53, 16-Sep-2016
1830,Revenue,CAHD,Social Lettings Agency,Other Supplies & Services,Individual,595.11, 16-Sep-2016
1831,Revenue,CAHD,Social Lettings Agency,Fees - General,Individual,16.85, 22-Sep-2016
1832,Revenue,CAHD,Social Lettings Agency,Other Supplies & Services,Individual,951.90, 22-Sep-2016
